BodyName,ServiceAreaCategorisation,ServiceDivisionCategorisation,ExpensesType,Date,TransactionNumber,Amount,CapitalorRevenue,SupplierName,MerchantCategory
Peterborough City Council,Children's & Safeguarding,Commissioning - CSC,Third Party Payments,01/03/2018,8000110553,560482.97,Revenue,IAS TACT,Third Party Payments - Contract
Peterborough City Council,Corporate,Corporate,Non Revenue,01/03/2018,8000111673,174773,Capital,Kier Construction Ltd,Building And Site Works
Peterborough City Council,Adults,Independent Sector Placements,Services,02/03/2018,30161999,3244,Revenue,Richmond Fellowship,Residential Care
Peterborough City Council,Adults,Independent Sector Placements,Services,02/03/2018,30162000,3292,Revenue,Richmond Fellowship,Residential Care
Peterborough City Council,Adults,Mental Health,Third Party Payments,02/03/2018,30162885,-12408.33,Revenue,Richmond Fellowship,Third Party Payments - Contract
Peterborough City Council,Adults,Independent Sector Placements,Services,02/03/2018,30164492,1224.08,Revenue,Stonehaven (Healthcare) Ltd TA The Manor Exminster,Residential Care
Peterborough City Council,Sustainable Growth Strategy,Natural & Historic Environment,Services,02/03/2018,30164564,6095,Revenue,Wildlife Conservation Partnership,Conservation And Bio Diversity Projects
Peterborough City Council,Corporate Items,Corporate Services,Agency Staff,02/03/2018,30164605,14630,Revenue,Penna Plc,External Temporary Staff
Peterborough City Council,Financial Services,Finance,Agency Staff,02/03/2018,30164608,12980,Revenue,Penna Plc,External Temporary Staff
Peterborough City Council,Corporate,Corporate,Non Revenue,02/03/2018,30164684,122919.42,Capital,British Telecom PLC,Building And Site Works
Peterborough City Council,Energy,Environment Capital,Repair & Maintenance of Buildings,02/03/2018,30164691,12737,Revenue,B & H Projects Ltd,Premises Maintenance
Peterborough City Council,Commissioning and Commercial Operations,Clare Lodge,"Tools, Equipment, Furniture & Materials",02/03/2018,30164697,2077.68,Revenue,B & H Projects Ltd,Furniture And Equipment Purchase
Peterborough City Council,Adults,Independent Sector Placements,Services,02/03/2018,30164731,3985.64,Revenue,Voyage,Home Care
Peterborough City Council,Adults,Independent Sector Placements,Services,02/03/2018,30164732,3538.96,Revenue,Voyage,Home Care
Peterborough City Council,Adults,Independent Sector Placements,Services,02/03/2018,30164733,4334.4,Revenue,Voyage,Home Care
Peterborough City Council,Adults,Independent Sector Placements,Services,02/03/2018,30164734,5470.4,Revenue,Voyage,Home Care
Peterborough City Council,Adults,Independent Sector Placements,Services,02/03/2018,30164735,4659,Revenue,Voyage,Residential Care
Peterborough City Council,Adults,Independent Sector Placements,Services,02/03/2018,30164736,4174,Revenue,Voyage,Home Care
Peterborough City Council,Adults,Independent Sector Placements,Services,02/03/2018,30164739,1931.2,Revenue,Voyage,Home Care
Peterborough City Council,ICT,ICT,Agency Staff,02/03/2018,30164747,2500,Revenue,Cranford Solutions (UK) Ltd,External Temporary Staff
Peterborough City Council,Adults,Independent Sector Placements,Services,02/03/2018,30164750,6642.2,Revenue,Voyage,Home Care
Peterborough City Council,Adults,Independent Sector Placements,Services,02/03/2018,30164751,1931.2,Revenue,Voyage,Home Care
Peterborough City Council,Adults,Independent Sector Placements,Services,02/03/2018,30164752,3095.6,Revenue,Voyage,Home Care
Peterborough City Council,Adults,Independent Sector Placements,Services,02/03/2018,30164753,2186.8,Revenue,Voyage,Home Care
Peterborough City Council,Adults,Independent Sector Placements,Services,02/03/2018,30164754,1988,Revenue,Voyage,Home Care
Peterborough City Council,Adults,Independent Sector Placements,Services,02/03/2018,30164755,3095.6,Revenue,Voyage,Home Care
Peterborough City Council,Adults,Independent Sector Placements,Services,02/03/2018,30164757,1830.72,Revenue,Voyage,Home Care
Peterborough City Council,Adults,Independent Sector Placements,Services,02/03/2018,30164758,2385.6,Revenue,Voyage,Home Care
Peterborough City Council,Adults,Independent Sector Placements,Services,02/03/2018,30164760,6641.6,Revenue,Voyage,Home Care
Peterborough City Council,Adults,Independent Sector Placements,Services,02/03/2018,30164863,3751.08,Revenue,Voyage,Home Care
Peterborough City Council,Adults,Independent Sector Placements,Services,02/03/2018,30164864,4724.04,Revenue,Voyage,Home Care
Peterborough City Council,Adults,Mental Health,Third Party Payments,02/03/2018,30164982,105114.16,Revenue,Cambs & P'boro NHS Foundation Trust,Third Party Payments - Contract
Peterborough City Council,Financial Services,Finance,Agency Staff,02/03/2018,30165103,1220.24,Revenue,Morgan Hunt UK Ltd,External Temporary Staff
Peterborough City Council,Adults,Mental Capacity Act & DoLs,Agency Staff,02/03/2018,30165111,2660,Revenue,Sanctuary Personnel Ltd,External Temporary Staff
Peterborough City Council,Adults,Mental Capacity Act & DoLs,Agency Staff,02/03/2018,30165112,2280,Revenue,Sanctuary Personnel Ltd,External Temporary Staff
Peterborough City Council,Adults,Mental Capacity Act & DoLs,Agency Staff,02/03/2018,30165135,3040,Revenue,Sanctuary Personnel Ltd,External Temporary Staff
Peterborough City Council,Adults,Mental Capacity Act & DoLs,Agency Staff,02/03/2018,30165143,1900,Revenue,Sanctuary Personnel Ltd,External Temporary Staff
Peterborough City Council,Adults,Mental Capacity Act & DoLs,Agency Staff,02/03/2018,30165155,1900,Revenue,Sanctuary Personnel Ltd,External Temporary Staff
Peterborough City Council,Adults,Mental Capacity Act & DoLs,Agency Staff,02/03/2018,30165164,3040,Revenue,Sanctuary Personnel Ltd,External Temporary Staff
Peterborough City Council,Adults,Mental Capacity Act & DoLs,Agency Staff,02/03/2018,30165171,2660,Revenue,Sanctuary Personnel Ltd,External Temporary Staff
Peterborough City Council,Adults,Mental Capacity Act & DoLs,Agency Staff,02/03/2018,30165176,3040,Revenue,Sanctuary Personnel Ltd,External Temporary Staff
Peterborough City Council,Adults,Mental Capacity Act & DoLs,Agency Staff,02/03/2018,30165182,760,Revenue,Sanctuary Personnel Ltd,External Temporary Staff
Peterborough City Council,Adults,Mental Capacity Act & DoLs,Agency Staff,02/03/2018,30165187,1140,Revenue,Sanctuary Personnel Ltd,External Temporary Staff
Peterborough City Council,Children's & Safeguarding,Access to Resources & Specialist Commissioning,Services,02/03/2018,30165354,11388,Revenue,Positive Steps (Care Services) Ltd,Boarding Out Allowances
Peterborough City Council,Energy,Environment Capital,Repair & Maintenance of Buildings,02/03/2018,30165373,2300,Revenue,B & H Projects Ltd,Premises Maintenance
Peterborough City Council,Energy,Environment Capital,Services,02/03/2018,30165376,3450,Revenue,B & H Projects Ltd,Hired Services
Peterborough City Council,Energy,Environment Capital,Repair & Maintenance of Buildings,02/03/2018,30165379,1885,Revenue,B & H Projects Ltd,Premises Maintenance
Peterborough City Council,Public Health,PH Commissioning,Third Party Payments,02/03/2018,30165418,63250,Revenue,Cambs & P'boro NHS Foundation Trust,Third Party Payments - Contract
Peterborough City Council,Public Health,PH Commissioning,Services,02/03/2018,30165535,244688.83,Revenue,Cambs & P'boro NHS Foundation Trust,Hired Services
Peterborough City Council,Commissioning and Commercial Operations,Commissioning Team,Agency Staff,02/03/2018,30165590,15817.5,Revenue,Sanctuary Personnel Ltd,External Temporary Staff
Peterborough City Council,Education,Special Educational Needs / Inclusion,Agency Staff,02/03/2018,30165591,3366,Revenue,Sanctuary Personnel Ltd,External Temporary Staff
Peterborough City Council,Children's & Safeguarding,Children's Social Care,Agency Staff,02/03/2018,30165592,7712.88,Revenue,Sanctuary Personnel Ltd,External Temporary Staff
Peterborough City Council,Adults,Therapy/Reablement/Community Equipment,Agency Staff,02/03/2018,30165593,1104,Revenue,Sanctuary Personnel Ltd,External Temporary Staff
Peterborough City Council,Commissioning and Commercial Operations,Commissioning Team,Agency Staff,02/03/2018,30165597,19980,Revenue,Sanctuary Personnel Ltd,External Temporary Staff
Peterborough City Council,Adults,Therapy/Reablement/Community Equipment,Agency Staff,02/03/2018,30165599,4480,Revenue,Sanctuary Personnel Ltd,External Temporary Staff
Peterborough City Council,Adults,Community Team,Agency Staff,02/03/2018,30165604,7500,Revenue,Sanctuary Personnel Ltd,External Temporary Staff
Peterborough City Council,Adults,Therapy/Reablement/Community Equipment,Agency Staff,02/03/2018,30165613,3997.29,Revenue,Sanctuary Personnel Ltd,External Temporary Staff
Peterborough City Council,Adults,Finance,Agency Staff,02/03/2018,30165618,10989,Revenue,Sanctuary Personnel Ltd,External Temporary Staff
Peterborough City Council,Various,Various,Services,02/03/2018,30165623,2768.74,Revenue,Whistl UK Ltd,Postage
Peterborough City Council,Adults,Community Team,Agency Staff,02/03/2018,30165652,3063.6,Revenue,Sanctuary Personnel Ltd,External Temporary Staff
Peterborough City Council,Commissioning and Commercial Operations,Clare Lodge,Agency Staff,02/03/2018,30165856,1400,Revenue,Wrixon Care Services,External Temporary Staff
Peterborough City Council,Commissioning and Commercial Operations,Clare Lodge,Agency Staff,02/03/2018,30165857,1472,Revenue,Wrixon Care Services,External Temporary Staff
Peterborough City Council,Commissioning and Commercial Operations,Clare Lodge,Agency Staff,02/03/2018,30165863,2080,Revenue,Wrixon Care Services,External Temporary Staff
Peterborough City Council,Commissioning and Commercial Operations,Clare Lodge,Agency Staff,02/03/2018,30165865,536,Revenue,Wrixon Care Services,External Temporary Staff
Peterborough City Council,Commissioning and Commercial Operations,Clare Lodge,Agency Staff,02/03/2018,30165866,1664,Revenue,Wrixon Care Services,External Temporary Staff
Peterborough City Council,Commissioning and Commercial Operations,Clare Lodge,Agency Staff,02/03/2018,30165867,848,Revenue,Wrixon Care Services,External Temporary Staff
Peterborough City Council,Commissioning and Commercial Operations,Commissioning Team,Agency Staff,02/03/2018,30166183,13244,Revenue,Sanctuary Personnel Ltd,External Temporary Staff
Peterborough City Council,Westcombe Engineering,Westcombe Engineering,"Tools, Equipment, Furniture & Materials",02/03/2018,30166307,571.75,Revenue,Barron Clark Castings Ltd,Items For Resale
Peterborough City Council,Corporate Items,Corporate Services,Third Party Payments,02/03/2018,30166332,12739.27,Revenue,Transport For Greater Manchester,Third Party Payments - Contract
Peterborough City Council,ICT,ICT,Services,02/03/2018,30166547,33500,Revenue,Arcus Global ltd,Computer Software
Peterborough City Council,ICT,ICT,Services,02/03/2018,30166548,22727.25,Revenue,Arcus Global ltd,Computer Software
Peterborough City Council,ICT,ICT,Services,02/03/2018,30166635,51600,Revenue,Arcus Global ltd,Computer Software
Peterborough City Council,Adults,Independent Sector Placements,Services,02/03/2018,30166705,1821.88,Revenue,Bestcare Ltd,Residential Care
Peterborough City Council,Adults,Independent Sector Placements,Services,02/03/2018,30166719,8752,Revenue,Autism Care (UK) Ltd,Residential Care
Peterborough City Council,City Servs & Communications,Regulatory Services,Services,02/03/2018,30166847,948.96,Revenue,Public Analyst Scientific Services Ltd,Scientific Testing
Peterborough City Council,Communities,Targeted Youth Service,Services,02/03/2018,30166892,2835,Revenue,Cambridgeshire County Council t/a Grafham Water Centre,Programmes
Peterborough City Council,Children's & Safeguarding,External Education Placements,Services,02/03/2018,30166910,19069.43,Revenue,Blue Mountain Homes,Boarding Out Allowances
Peterborough City Council,Education,Special Educational Needs / Inclusion,Services,02/03/2018,30166984,1206,Revenue,Kay Pictures Limited,Education Expenses
Peterborough City Council,Legal & Democratic,Legal Services,Agency Staff,02/03/2018,30167059,892.25,Revenue,Giant Professional Limited,External Temporary Staff
Peterborough City Council,Education,Special Educational Needs / Inclusion,Services,02/03/2018,30167359,1350,Revenue,"Hattee, Mrs Caroline",Occupational Health
Peterborough City Council,Peterborough Highway Services,Transport & Infrastructure Commissioning,Expenses,02/03/2018,30167376,833.33,Revenue,Cyclescheme Ltd,Cycling
Peterborough City Council,Adults,Independent Sector Placements,Services,02/03/2018,30167502,3400,Revenue,LESTER HALL APARTMENTS LTD,Residential Care
Peterborough City Council,Adults,Independent Sector Placements,Services,02/03/2018,30167537,1118.25,Revenue,Carewatch Care Services Ltd,Home Care
Peterborough City Council,Adults,Independent Sector Placements,Services,02/03/2018,30167541,635.45,Revenue,Carewatch Care Services Ltd,Home Care
Peterborough City Council,Adults,Independent Sector Placements,Services,02/03/2018,30167542,667.4,Revenue,Carewatch Care Services Ltd,Home Care
Peterborough City Council,Adults,Independent Sector Placements,Services,02/03/2018,30167544,894.6,Revenue,Carewatch Care Services Ltd,Home Care
Peterborough City Council,Adults,Independent Sector Placements,Services,02/03/2018,30167546,1832.89,Revenue,Alysia Caring Ltd T/a Cherry Blossom care Home,Residential Care
Peterborough City Council,Adults,Independent Sector Placements,Services,02/03/2018,30167553,1270.9,Revenue,Carewatch Care Services Ltd,Home Care
Peterborough City Council,Adults,Independent Sector Placements,Services,02/03/2018,30167554,1057.9,Revenue,Carewatch Care Services Ltd,Home Care
Peterborough City Council,Adults,Independent Sector Placements,Services,02/03/2018,30167556,870.93,Revenue,Carewatch Care Services Ltd,Home Care
Peterborough City Council,Adults,Independent Sector Placements,Services,02/03/2018,30167558,752.6,Revenue,Carewatch Care Services Ltd,Home Care
Peterborough City Council,Adults,Independent Sector Placements,Services,02/03/2018,30167559,1679.15,Revenue,Carewatch Care Services Ltd,Home Care
Peterborough City Council,Adults,Independent Sector Placements,Services,02/03/2018,30167562,678.05,Revenue,Carewatch Care Services Ltd,Home Care
Peterborough City Council,Adults,Independent Sector Placements,Services,02/03/2018,30167563,770.35,Revenue,Carewatch Care Services Ltd,Home Care
Peterborough City Council,Adults,Independent Sector Placements,Services,02/03/2018,30167578,1272.08,Revenue,Carewatch Care Services Ltd,Home Care
Peterborough City Council,Adults,Independent Sector Placements,Services,02/03/2018,30167590,852,Revenue,Carewatch Care Services Ltd,Home Care
Peterborough City Council,Adults,Independent Sector Placements,Services,02/03/2018,30167593,844.9,Revenue,Carewatch Care Services Ltd,Home Care
Peterborough City Council,Adults,Independent Sector Placements,Services,02/03/2018,30167601,1140.08,Revenue,Oakhouse Homecare Cambs Ltd,Residential Care
Peterborough City Council,Adults,Independent Sector Placements,Services,02/03/2018,30167603,1278.04,Revenue,The Regard Partnership Limited,Residential Care
Peterborough City Council,Adults,Independent Sector Placements,Services,02/03/2018,30167604,1008.68,Revenue,Oakhouse Homecare Cambs Ltd,Residential Care
Peterborough City Council,Adults,Independent Sector Placements,Services,02/03/2018,30167605,1225,Revenue,Oakhouse Homecare Cambs Ltd,Residential Care
Peterborough City Council,Adults,Independent Sector Placements,Services,02/03/2018,30167606,3292,Revenue,Richmond Fellowship,Residential Care
Peterborough City Council,Adults,Independent Sector Placements,Services,02/03/2018,30167607,3244,Revenue,Richmond Fellowship,Residential Care
Peterborough City Council,Adults,Independent Sector Placements,Services,02/03/2018,30167608,3600,Revenue,LESTER HALL APARTMENTS LTD,Residential Care
Peterborough City Council,Adults,Independent Sector Placements,Contract Hire and Operating Leases,02/03/2018,30167609,1575,Revenue,King Carz Ltd,Hired Transport
Peterborough City Council,Adults,Independent Sector Placements,Services,02/03/2018,30167610,1352,Revenue,Park Vista Care Home,Residential Care
Peterborough City Council,Education,School Standards & Effectiveness,Services,02/03/2018,30167641,6343.42,Revenue,Foxton Primary School,Grant Payment
Peterborough City Council,Adults,Independent Sector Placements,Services,02/03/2018,30167708,1260,Revenue,THE HELPING HANDS GROUP,Day Care
Peterborough City Council,Adults,Independent Sector Placements,Services,02/03/2018,30167736,685.15,Revenue,Carewatch Care Services Ltd,Home Care
Peterborough City Council,Adults,Independent Sector Placements,Services,02/03/2018,30167739,621.25,Revenue,Carewatch Care Services Ltd,Home Care
Peterborough City Council,Adults,Independent Sector Placements,Services,02/03/2018,30167775,5720.32,Revenue,Sense,Residential Care
Peterborough City Council,Adults,Independent Sector Placements,Services,02/03/2018,30167776,9261.28,Revenue,Sense,Residential Care
Peterborough City Council,Adults,Independent Sector Placements,Services,02/03/2018,30167777,7639.72,Revenue,Sense,Residential Care
Peterborough City Council,Adults,Independent Sector Placements,Services,02/03/2018,30167778,6597.4,Revenue,Sense,Residential Care
Peterborough City Council,Adults,Independent Sector Placements,Services,02/03/2018,30167779,5509.4,Revenue,Sense,Residential Care
Peterborough City Council,Adults,Independent Sector Placements,Services,02/03/2018,30167780,1856.2,Revenue,Sense,Day Care
Peterborough City Council,Adults,Independent Sector Placements,Services,02/03/2018,30167784,980,Revenue,Sahara Community Care Services,Home Care
Peterborough City Council,Adults,Independent Sector Placements,Services,02/03/2018,30167791,1372,Revenue,Sahara Community Care Services,Home Care
Peterborough City Council,Adults,Independent Sector Placements,Services,02/03/2018,30167801,1102.5,Revenue,Sahara Community Care Services,Home Care
Peterborough City Council,Adults,Independent Sector Placements,Services,02/03/2018,30167809,938,Revenue,Sahara Community Care Services,Home Care
Peterborough City Council,Adults,Independent Sector Placements,Services,02/03/2018,30167811,1176,Revenue,Sahara Community Care Services,Home Care
Peterborough City Council,Adults,Independent Sector Placements,Services,02/03/2018,30167812,812,Revenue,Sahara Community Care Services,Home Care
Peterborough City Council,Adults,Independent Sector Placements,Services,02/03/2018,30167813,686,Revenue,Sahara Community Care Services,Home Care
Peterborough City Council,Adults,Independent Sector Placements,Services,02/03/2018,30167815,801.5,Revenue,Sahara Community Care Services,Home Care
Peterborough City Council,Adults,Independent Sector Placements,Services,02/03/2018,30167816,896,Revenue,Sahara Community Care Services,Home Care
Peterborough City Council,Adults,Independent Sector Placements,Services,02/03/2018,30167817,784,Revenue,Sahara Community Care Services,Home Care
Peterborough City Council,Adults,Independent Sector Placements,Services,02/03/2018,30167818,2751,Revenue,Sahara Community Care Services,Home Care
Peterborough City Council,Adults,Independent Sector Placements,Services,02/03/2018,30167819,2352,Revenue,Sahara Community Care Services,Home Care
Peterborough City Council,Adults,Independent Sector Placements,Services,02/03/2018,30167825,1078,Revenue,Sahara Community Care Services,Home Care
Peterborough City Council,Adults,Independent Sector Placements,Services,02/03/2018,30167828,1176,Revenue,Sahara Community Care Services,Home Care
Peterborough City Council,Adults,Independent Sector Placements,Services,02/03/2018,30167835,714,Revenue,Sahara Community Care Services,Home Care
Peterborough City Council,Adults,Independent Sector Placements,Services,02/03/2018,30167837,556.5,Revenue,Sahara Community Care Services,Home Care
Peterborough City Council,Adults,Independent Sector Placements,Services,02/03/2018,30167838,882,Revenue,Sahara Community Care Services,Home Care
Peterborough City Council,Communities,Housing,Services,02/03/2018,30167842,1528,Revenue,Woodcock Holmes,Financial Assistance
Peterborough City Council,Financial Services,Finance,Agency Staff,02/03/2018,30167865,1471.6,Revenue,Reed Specialist Recruitment Limited,External Temporary Staff
Peterborough City Council,Financial Services,Finance,Agency Staff,02/03/2018,30167867,616.59,Revenue,Reed Specialist Recruitment Limited,External Temporary Staff
Peterborough City Council,Commissioning and Commercial Operations,Commissioning Team,Agency Staff,02/03/2018,30167871,2243.6,Revenue,Reed Specialist Recruitment Limited,External Temporary Staff
Peterborough City Council,Corporate,Corporate,Non Revenue,02/03/2018,30167875,550,Capital,Newborough Village Hall,Grant Payment
Peterborough City Council,Adults,Independent Sector Placements,Services,02/03/2018,30167892,506.52,Revenue,Carers Trust Cambridgeshire,Home Care
Peterborough City Council,Vivacity/Cultural Services,Cultural Services,Services,02/03/2018,30167902,650,Revenue,Peterborough Music Festival,Hired Services
Peterborough City Council,Vivacity/Cultural Services,Cultural Services,Services,02/03/2018,30167903,2000,Revenue,Peterborough Sings,Hired Services
Peterborough City Council,Adults,Day opportunities - Older People,Agency Staff,02/03/2018,30167948,-1527.28,Revenue,Evergood Associates LTD,External Temporary Staff
Peterborough City Council,Adults,Day opportunities - Older People,Agency Staff,02/03/2018,30167970,1154.02,Revenue,Evergood Associates LTD,External Temporary Staff
Peterborough City Council,Adults,Day opportunities - Older People,Agency Staff,02/03/2018,30167986,1106.18,Revenue,Evergood Associates LTD,External Temporary Staff
Peterborough City Council,Corporate,Corporate,Non Revenue,02/03/2018,30168000,764135.4,Balance Sheet,Teachers Pensions,Pensions
Peterborough City Council,Adults,Day opportunities - Older People,Agency Staff,02/03/2018,30168004,1158.62,Revenue,Evergood Associates LTD,External Temporary Staff
Peterborough City Council,Adults,Day opportunities - Older People,Agency Staff,02/03/2018,30168031,-1890.92,Revenue,Evergood Associates LTD,External Temporary Staff
Peterborough City Council,Adults,Day opportunities - Older People,Agency Staff,02/03/2018,30168037,1562.51,Revenue,Evergood Associates LTD,External Temporary Staff
Peterborough City Council,Adults,Day opportunities - Older People,Agency Staff,02/03/2018,30168043,1939.04,Revenue,Evergood Associates LTD,External Temporary Staff
Peterborough City Council,"Cemeteries, Cremation & Registrars",Bereavement Service,Repair & Maintenance of Buildings,02/03/2018,30168055,1974,Revenue,A M Strickland Builders,Premises Maintenance
Peterborough City Council,Adults,Day opportunities - Older People,Agency Staff,05/03/2018,30153093,3258.45,Revenue,Service Care Solutions Ltd,External Temporary Staff
Peterborough City Council,Children's & Safeguarding,Children's Social Care,Agency Staff,05/03/2018,30153512,1490.4,Revenue,Service Care Solutions Ltd,External Temporary Staff
Peterborough City Council,"Cemeteries, Cremation & Registrars",Bereavement Service,"Tools, Equipment, Furniture & Materials",05/03/2018,30165121,3550,Revenue,The Columbaria Company,Memorials
Peterborough City Council,Adults,Independent Sector Placements,Services,05/03/2018,30165149,1038.44,Revenue,GCH (North London) Ltd - Tudors,Residential Care
Peterborough City Council,Adults,Independent Sector Placements,Services,05/03/2018,30165201,1114.68,Revenue,GCH (North London) Ltd - Tudors,Residential Care
Peterborough City Council,Adults,Independent Sector Placements,Services,05/03/2018,30165202,1776.24,Revenue,GCH (North London) Ltd - Tudors,Residential Care
Peterborough City Council,Adults,Independent Sector Placements,Services,05/03/2018,30165203,1064.8,Revenue,GCH (North London) Ltd - Tudors,Residential Care
Peterborough City Council,Adults,Independent Sector Placements,Services,05/03/2018,30165204,1284.08,Revenue,GCH (North London) Ltd - Tudors,Residential Care
Peterborough City Council,Adults,Independent Sector Placements,Services,05/03/2018,30165205,1085.72,Revenue,GCH (North London) Ltd - Tudors,Residential Care
Peterborough City Council,Adults,Independent Sector Placements,Services,05/03/2018,30165206,724.24,Revenue,GCH (North London) Ltd - Tudors,Residential Care
Peterborough City Council,Adults,Independent Sector Placements,Services,05/03/2018,30165207,1008.76,Revenue,GCH (North London) Ltd - Tudors,Residential Care
Peterborough City Council,Adults,Independent Sector Placements,Services,05/03/2018,30165208,1640.28,Revenue,GCH (North London) Ltd - Tudors,Residential Care
Peterborough City Council,Adults,Independent Sector Placements,Services,05/03/2018,30165209,701.2,Revenue,GCH (North London) Ltd - Tudors,Residential Care
Peterborough City Council,Adults,Independent Sector Placements,Services,05/03/2018,30165210,1312.08,Revenue,GCH (North London) Ltd - Tudors,Residential Care
Peterborough City Council,Adults,Independent Sector Placements,Services,05/03/2018,30165211,1484.08,Revenue,GCH (North London) Ltd - Tudors,Residential Care
Peterborough City Council,Adults,Independent Sector Placements,Services,05/03/2018,30165212,1707.72,Revenue,GCH (North London) Ltd - Tudors,Residential Care
Peterborough City Council,Adults,Independent Sector Placements,Services,05/03/2018,30165213,1721.96,Revenue,GCH (North London) Ltd - Tudors,Residential Care
Peterborough City Council,Adults,Independent Sector Placements,Services,05/03/2018,30165214,1172.28,Revenue,GCH (North London) Ltd - Tudors,Residential Care
Peterborough City Council,Adults,Independent Sector Placements,Services,05/03/2018,30165215,1384.08,Revenue,GCH (North London) Ltd - Tudors,Residential Care
Peterborough City Council,Adults,Independent Sector Placements,Services,05/03/2018,30165216,972.96,Revenue,GCH (North London) Ltd - Tudors,Residential Care
Peterborough City Council,Adults,Independent Sector Placements,Services,05/03/2018,30165217,1288.08,Revenue,GCH (North London) Ltd - Tudors,Residential Care
Peterborough City Council,Adults,Independent Sector Placements,Services,05/03/2018,30165218,1367.4,Revenue,GCH (North London) Ltd - Tudors,Residential Care
Peterborough City Council,Adults,Independent Sector Placements,Services,05/03/2018,30165219,1208.8,Revenue,GCH (North London) Ltd - Tudors,Residential Care
Peterborough City Council,Adults,Independent Sector Placements,Services,05/03/2018,30165220,2021.88,Revenue,GCH (North London) Ltd - Tudors,Residential Care
Peterborough City Council,Adults,Independent Sector Placements,Services,05/03/2018,30165221,1239.6,Revenue,GCH (North London) Ltd - Tudors,Residential Care
Peterborough City Council,Children's & Safeguarding,Children's Social Care,Agency Staff,05/03/2018,30165260,1406,Revenue,NonStop Recruitment Ltd,External Temporary Staff
Peterborough City Council,Adults,Mental Capacity Act & DoLs,Services,05/03/2018,30165348,1528,Revenue,Raj Medical Consultancy Limited,Hired Services
Peterborough City Council,Corporate,Corporate,Non Revenue,05/03/2018,30165363,6974,Capital,Enterprise Managed Services Limited,Building And Site Works
Peterborough City Council,Corporate,Corporate,Non Revenue,05/03/2018,30165364,48330,Capital,Enterprise Managed Services Limited,Building And Site Works
Peterborough City Council,Westcombe Engineering,Westcombe Engineering,"Tools, Equipment, Furniture & Materials",05/03/2018,30165657,510,Revenue,Olis Machine Tools Ltd,Equipment Maintenance
Peterborough City Council,Corporate,Corporate,Non Revenue,05/03/2018,30165835,2148,Capital,Enterprise Managed Services Limited,Infrastructure
Peterborough City Council,Commissioning and Commercial Operations,Clare Lodge,Agency Staff,05/03/2018,30165859,1064,Revenue,Wrixon Care Services,External Temporary Staff
Peterborough City Council,Commissioning and Commercial Operations,Clare Lodge,Agency Staff,05/03/2018,30165860,2192,Revenue,Wrixon Care Services,External Temporary Staff
Peterborough City Council,Peterborough Serco Strategic Partnership,Peterborough Serco Strategic Partnership,Services,05/03/2018,30165999,6454.06,Revenue,DX Network Services Ltd,Postage
Peterborough City Council,Westcombe Engineering,Westcombe Engineering,"Tools, Equipment, Furniture & Materials",05/03/2018,30166309,1839,Revenue,Barron Clark Castings Ltd,Items For Resale
Peterborough City Council,Westcombe Engineering,Westcombe Engineering,"Tools, Equipment, Furniture & Materials",05/03/2018,30166314,982,Revenue,Barron Clark Castings Ltd,Items For Resale
Peterborough City Council,Adults,Independent Sector Placements,Services,05/03/2018,30166458,2103.75,Revenue,Alysia Caring Ltd T/a Cherry Blossom care Home,Residential Care
Peterborough City Council,Adults,Independent Sector Placements,Services,05/03/2018,30166459,3600,Revenue,Alysia Caring Ltd T/a Cherry Blossom care Home,Residential Care
Peterborough City Council,Adults,Independent Sector Placements,Services,05/03/2018,30166460,1010.44,Revenue,Alysia Caring Ltd T/a Cherry Blossom care Home,Residential Care
Peterborough City Council,Adults,Independent Sector Placements,Services,05/03/2018,30166461,3460.44,Revenue,Alysia Caring Ltd T/a Cherry Blossom care Home,Residential Care
Peterborough City Council,Adults,Independent Sector Placements,Services,05/03/2018,30166462,2952.8,Revenue,Alysia Caring Ltd T/a Cherry Blossom care Home,Residential Care
Peterborough City Council,Adults,Independent Sector Placements,Services,05/03/2018,30166463,2909.28,Revenue,Alysia Caring Ltd T/a Cherry Blossom care Home,Residential Care
Peterborough City Council,Adults,Independent Sector Placements,Services,05/03/2018,30166464,2739.2,Revenue,Alysia Caring Ltd T/a Cherry Blossom care Home,Residential Care
Peterborough City Council,Adults,Independent Sector Placements,Services,05/03/2018,30166465,664.8,Revenue,Alysia Caring Ltd T/a Cherry Blossom care Home,Residential Care
Peterborough City Council,Adults,Independent Sector Placements,Services,05/03/2018,30166466,3100,Revenue,Alysia Caring Ltd T/a Cherry Blossom care Home,Residential Care
Peterborough City Council,Adults,Independent Sector Placements,Services,05/03/2018,30166467,1900.52,Revenue,Alysia Caring Ltd T/a Cherry Blossom care Home,Residential Care
Peterborough City Council,Adults,Independent Sector Placements,Services,05/03/2018,30166468,2467.48,Revenue,Alysia Caring Ltd T/a Cherry Blossom care Home,Residential Care
Peterborough City Council,Adults,Independent Sector Placements,Services,05/03/2018,30166469,3100,Revenue,Alysia Caring Ltd T/a Cherry Blossom care Home,Residential Care
Peterborough City Council,Adults,Independent Sector Placements,Services,05/03/2018,30166470,1775.76,Revenue,Alysia Caring Ltd T/a Cherry Blossom care Home,Residential Care
Peterborough City Council,Adults,Independent Sector Placements,Services,05/03/2018,30166471,569.83,Revenue,Alysia Caring Ltd T/a Cherry Blossom care Home,Residential Care
Peterborough City Council,Adults,Independent Sector Placements,Services,05/03/2018,30166472,1862.2,Revenue,Alysia Caring Ltd T/a Cherry Blossom care Home,Residential Care
Peterborough City Council,Adults,Independent Sector Placements,Services,05/03/2018,30166473,2827.2,Revenue,Alysia Caring Ltd T/a Cherry Blossom care Home,Residential Care
Peterborough City Council,Adults,Home Services Delivery Model,Third Party Payments,05/03/2018,30166512,1777.8,Revenue,Mind in Cambridgeshire,Grant-Third Party
Peterborough City Council,Communities,Service Director - Adults & Communities,Third Party Payments,05/03/2018,30166522,2500,Revenue,Mind in Cambridgeshire,Grant-Third Party
Peterborough City Council,Development and Construction,Development Management,Agency Staff,05/03/2018,30166828,1000.21,Revenue,Reed Specialist Recruitment Limited,External Temporary Staff
Peterborough City Council,Adults,Independent Sector Placements,Services,05/03/2018,30166934,2100,Revenue,GCH (North London) Ltd - Tudors,Residential Care
Peterborough City Council,Adults,Independent Sector Placements,Services,05/03/2018,30167113,-4875,Revenue,GCH (North London) Ltd - Tudors,Residential Care
Peterborough City Council,Adults,Independent Sector Placements,Services,05/03/2018,30167450,2480,Revenue,Kemps Place Ltd,Residential Care
Peterborough City Council,Adults,Independent Sector Placements,Services,05/03/2018,30167451,1071,Revenue,Kemps Place Ltd,Residential Care
Peterborough City Council,Adults,Independent Sector Placements,Services,05/03/2018,30167452,2680,Revenue,Kemps Place Ltd,Residential Care
Peterborough City Council,Adults,Independent Sector Placements,Services,05/03/2018,30167655,4606.2,Revenue,Mencap,Residential Care
Peterborough City Council,Adults,Independent Sector Placements,Services,05/03/2018,30167656,3999.4,Revenue,Mencap,Residential Care
Peterborough City Council,Adults,Independent Sector Placements,Services,05/03/2018,30167657,4853,Revenue,Mencap,Residential Care
Peterborough City Council,Corporate Property,Commercial Propety,Repair & Maintenance of Buildings,05/03/2018,30167873,500,Revenue,Stanground Community Space CIC,Service Charges - Premises
Peterborough City Council,Adults,Independent Sector Placements,Services,05/03/2018,30168022,1768.92,Revenue,Ashmere,Residential Care
Peterborough City Council,Adults,Day opportunities - Older People,Agency Staff,05/03/2018,30168060,2010.62,Revenue,Evergood Associates LTD,External Temporary Staff
Peterborough City Council,Children's & Safeguarding,External Education Placements,Services,05/03/2018,30168167,2621.5,Revenue,Spring Common Academy,Education Expenses
Peterborough City Council,Education,School Standards & Effectiveness,Services,05/03/2018,30168192,1000,Revenue,The West Grantham Academy St Hugh's,Grant Payment
Peterborough City Council,Commissioning and Commercial Operations,Early Years & Quality Improvement,Services,05/03/2018,30168208,22514.81,Revenue,St Johns C of E Pre-School,Grant Payment
Peterborough City Council,Commissioning and Commercial Operations,Early Years & Quality Improvement,Services,05/03/2018,30168212,20668.08,Revenue,Dogsthorpe Community Pre-School,Grant Payment
Peterborough City Council,Commissioning and Commercial Operations,Early Years & Quality Improvement,Services,05/03/2018,30168219,5658.97,Revenue,Southfields Pre-School Playgroup,Grant Payment
Peterborough City Council,Adults,Day opportunities - Older People,Agency Staff,05/03/2018,30168244,-1127.55,Revenue,Evergood Associates LTD,External Temporary Staff
Peterborough City Council,"Cemeteries, Cremation & Registrars",Bereavement Service,Repair & Maintenance of Buildings,05/03/2018,30168249,1854,Revenue,A M Strickland Builders,Premises Maintenance
Peterborough City Council,HR,HR,Services,05/03/2018,30168276,17116.04,Revenue,Edenred,Childcare
Peterborough City Council,Adults,Day opportunities - Older People,Agency Staff,05/03/2018,30168314,1474.91,Revenue,Evergood Associates LTD,External Temporary Staff
Peterborough City Council,Adults,Finance,Agency Staff,05/03/2018,30168321,2433.6,Revenue,Reed Specialist Recruitment Limited,External Temporary Staff
Peterborough City Council,Adults,Finance,Agency Staff,05/03/2018,30168331,2953.6,Revenue,Reed Specialist Recruitment Limited,External Temporary Staff
Peterborough City Council,Adults,Finance,Agency Staff,05/03/2018,30168332,2433.6,Revenue,Reed Specialist Recruitment Limited,External Temporary Staff
Peterborough City Council,Adults,Day opportunities - Older People,Agency Staff,05/03/2018,30168339,1106.18,Revenue,Evergood Associates LTD,External Temporary Staff
Peterborough City Council,Communities,Cohesion,Agency Staff,05/03/2018,30168346,757.44,Revenue,Reed Specialist Recruitment Limited,External Temporary Staff
Peterborough City Council,Adults,Day opportunities - Older People,Agency Staff,05/03/2018,30168357,2212.36,Revenue,Evergood Associates LTD,External Temporary Staff
Peterborough City Council,Communities,Cohesion,Agency Staff,05/03/2018,30168358,757.44,Revenue,Reed Specialist Recruitment Limited,External Temporary Staff
Peterborough City Council,Communities,Cohesion,Agency Staff,05/03/2018,30168398,757.44,Revenue,Reed Specialist Recruitment Limited,External Temporary Staff
Peterborough City Council,Adults,Day opportunities - Older People,Agency Staff,05/03/2018,30168399,1106.18,Revenue,Evergood Associates LTD,External Temporary Staff
Peterborough City Council,Corporate,Corporate,Non Revenue,06/03/2018,8000110553,28000,Capital,Ramboll Danmark,Computer Software
Peterborough City Council,City Servs & Communications,Regulatory Services,Services,07/03/2018,30150868,626,Revenue,Public Analyst Scientific Services Ltd,Scientific Testing
Peterborough City Council,Adults,Independent Sector Placements,Services,07/03/2018,30163069,904.4,Revenue,Axiom Housing Association,Home Care
Peterborough City Council,Adults,Independent Sector Placements,Services,07/03/2018,30163078,553.35,Revenue,Axiom Housing Association,Home Care
Peterborough City Council,Adults,Independent Sector Placements,Services,07/03/2018,30163079,511.7,Revenue,Axiom Housing Association,Home Care
Peterborough City Council,Adults,Independent Sector Placements,Services,07/03/2018,30163080,511.7,Revenue,Axiom Housing Association,Home Care
Peterborough City Council,Adults,Day opportunities - Older People,Agency Staff,07/03/2018,30165315,1221,Revenue,Medicare First,External Temporary Staff
Peterborough City Council,Commissioning and Commercial Operations,Early Years & Quality Improvement,Services,07/03/2018,30165321,5351.25,Revenue,The Peterborough School Limited,Grant Payment
Peterborough City Council,Peterborough Highway Services,Transport & Infrastructure Commissioning,Services,07/03/2018,30165349,1085,Revenue,ITSO Ltd,Computer Software
Peterborough City Council,Education,Special Educational Needs / Inclusion,Services,07/03/2018,30165425,9234,Revenue,Oticon Ltd t/a FrontRow UK,Education Expenses
Peterborough City Council,Children's & Safeguarding,Early Help ASC/CSC,Services,07/03/2018,30165524,2583,Revenue,City College Peterborough,Hired Services
Peterborough City Council,Corporate Property,Office Accomodation,Cleaning & Domestic Supplies,07/03/2018,30165551,1477.28,Revenue,Beebys Ltd,Cleaning
Peterborough City Council,Vivacity/Cultural Services,Cultural Services,Services,07/03/2018,30165553,578.85,Revenue,Chamberlain Music Education,Hired Services
Peterborough City Council,Legal & Democratic,Legal Services,Agency Staff,07/03/2018,30165640,1650,Revenue,Venn Group Ltd,External Temporary Staff
Peterborough City Council,Legal & Democratic,Legal Services,Agency Staff,07/03/2018,30165641,588.94,Revenue,Venn Group Ltd,External Temporary Staff
Peterborough City Council,Legal & Democratic,Legal Services,Agency Staff,07/03/2018,30165642,829.95,Revenue,Venn Group Ltd,External Temporary Staff
Peterborough City Council,Legal & Democratic,Legal Services,Agency Staff,07/03/2018,30165643,653.65,Revenue,Venn Group Ltd,External Temporary Staff
Peterborough City Council,City Servs & Communications,Regulatory Services,Services,07/03/2018,30165647,1000,Revenue,5 Paper Buildings,Legal Costs
Peterborough City Council,City Servs & Communications,Regulatory Services,Services,07/03/2018,30165648,782.4,Revenue,5 Paper Buildings,Legal Costs
Peterborough City Council,Adults,Finance,Third Party Payments,07/03/2018,30165651,9000,Revenue,Lincolnshire Care Association Ltd,Third Party Payments - Contract
Peterborough City Council,City Servs & Communications,"Markets, Tourism & Events",Services,07/03/2018,30165655,543.6,Revenue,Chapter of Peterborough Cathedral,Tickets
Peterborough City Council,Legal & Democratic,Legal Services,Agency Staff,07/03/2018,30165659,821.98,Revenue,Venn Group Ltd,External Temporary Staff
Peterborough City Council,Legal & Democratic,Legal Services,Agency Staff,07/03/2018,30165660,1702,Revenue,Venn Group Ltd,External Temporary Staff
Peterborough City Council,Development and Construction,Building Control,Services,07/03/2018,30165747,1126.25,Revenue,Ruck Consultancy Limited,Contract Services
Peterborough City Council,Corporate,Corporate,Non Revenue,07/03/2018,30165824,3975,Capital,NPS Peterborough Ltd,Consultants Fees
Peterborough City Council,Education,Special Educational Needs / Inclusion,Services,07/03/2018,30165830,500,Revenue,David Hawman,Hired Services
Peterborough City Council,Legal & Democratic,Elections,"Printing, Stationery & General Office Expenses",07/03/2018,30165849,1613.7,Revenue,Shaw & Sons Ltd,Stationery
Peterborough City Council,Commissioning and Commercial Operations,Clare Lodge,Agency Staff,07/03/2018,30165861,1056,Revenue,Wrixon Care Services,External Temporary Staff
Peterborough City Council,Commissioning and Commercial Operations,Clare Lodge,Agency Staff,07/03/2018,30165862,1920,Revenue,Wrixon Care Services,External Temporary Staff
Peterborough City Council,Westcombe Engineering,Westcombe Engineering,"Tools, Equipment, Furniture & Materials",07/03/2018,30165907,836.44,Revenue,Barron Clark Castings Ltd,Items For Resale
Peterborough City Council,Commissioning and Commercial Operations,Commissioning,Services,07/03/2018,30165916,1790,Revenue,BDP Social Care Ltd,Hired Services
Peterborough City Council,Children's & Safeguarding,Early Help ASC/CSC,Services,07/03/2018,30165917,1450,Revenue,BDP Social Care Ltd,Hired Services
Peterborough City Council,Commissioning and Commercial Operations,Commissioning,Services,07/03/2018,30165918,800,Revenue,BDP Social Care Ltd,Hired Services
Peterborough City Council,Communities,Housing,Services,07/03/2018,30165980,714.56,Revenue,DA Rosalia Hotel,Homelessness Bed & Breakfast Costs
Peterborough City Council,Communities,Housing,Services,07/03/2018,30165981,595.56,Revenue,DA Rosalia Hotel,Homelessness Bed & Breakfast Costs
Peterborough City Council,Communities,Housing,Services,07/03/2018,30165982,595.56,Revenue,DA Rosalia Hotel,Homelessness Bed & Breakfast Costs
Peterborough City Council,Communities,Housing,Services,07/03/2018,30165983,595.56,Revenue,DA Rosalia Hotel,Homelessness Bed & Breakfast Costs
Peterborough City Council,Communities,Housing,Services,07/03/2018,30165984,595.56,Revenue,DA Rosalia Hotel,Homelessness Bed & Breakfast Costs
Peterborough City Council,Communities,Housing,Services,07/03/2018,30165986,787.46,Revenue,DA Rosalia Hotel,Homelessness Bed & Breakfast Costs
Peterborough City Council,Communities,Housing,Services,07/03/2018,30165987,714.56,Revenue,DA Rosalia Hotel,Homelessness Bed & Breakfast Costs
Peterborough City Council,Communities,Housing,Services,07/03/2018,30165988,595.56,Revenue,DA Rosalia Hotel,Homelessness Bed & Breakfast Costs
Peterborough City Council,Communities,Housing,Services,07/03/2018,30165989,1834.56,Revenue,DA Rosalia Hotel,Homelessness Bed & Breakfast Costs
Peterborough City Council,Communities,Housing,Services,07/03/2018,30165990,1061.62,Revenue,DA Rosalia Hotel,Homelessness Bed & Breakfast Costs
Peterborough City Council,Communities,Housing,Services,07/03/2018,30165991,1120,Revenue,DA Rosalia Hotel,Homelessness Bed & Breakfast Costs
Peterborough City Council,Communities,Housing,Services,07/03/2018,30165992,595.56,Revenue,DA Rosalia Hotel,Homelessness Bed & Breakfast Costs
Peterborough City Council,Communities,Housing,Services,07/03/2018,30165993,802.04,Revenue,DA Rosalia Hotel,Homelessness Bed & Breakfast Costs
Peterborough City Council,Communities,Housing,Services,07/03/2018,30165994,714.56,Revenue,DA Rosalia Hotel,Homelessness Bed & Breakfast Costs
Peterborough City Council,Communities,Housing,Services,07/03/2018,30165998,595.56,Revenue,DA Rosalia Hotel,Homelessness Bed & Breakfast Costs
Peterborough City Council,Education,School Standards & Effectiveness,Services,07/03/2018,30166002,6732.25,Revenue,Cambridgeshire County Council,Consultants Fees
Peterborough City Council,Communities,Housing,Services,07/03/2018,30166004,595.56,Revenue,DA Rosalia Hotel,Homelessness Bed & Breakfast Costs
Peterborough City Council,Communities,Housing,Services,07/03/2018,30166005,524.44,Revenue,DA Rosalia Hotel,Homelessness Bed & Breakfast Costs
Peterborough City Council,Communities,Housing,Services,07/03/2018,30166006,714.56,Revenue,DA Rosalia Hotel,Homelessness Bed & Breakfast Costs
Peterborough City Council,Communities,Housing,Services,07/03/2018,30166007,1120,Revenue,DA Rosalia Hotel,Homelessness Bed & Breakfast Costs
Peterborough City Council,Communities,Housing,Services,07/03/2018,30166008,595.56,Revenue,DA Rosalia Hotel,Homelessness Bed & Breakfast Costs
Peterborough City Council,Communities,Housing,Services,07/03/2018,30166009,1310.12,Revenue,DA Rosalia Hotel,Homelessness Bed & Breakfast Costs
Peterborough City Council,Communities,Housing,Services,07/03/2018,30166010,714.56,Revenue,DA Rosalia Hotel,Homelessness Bed & Breakfast Costs
Peterborough City Council,Communities,Housing,Services,07/03/2018,30166011,531,Revenue,DA Rosalia Hotel,Homelessness Bed & Breakfast Costs
Peterborough City Council,Communities,Housing,Services,07/03/2018,30166012,714.56,Revenue,DA Rosalia Hotel,Homelessness Bed & Breakfast Costs
Peterborough City Council,Communities,Housing,Services,07/03/2018,30166013,595.56,Revenue,DA Rosalia Hotel,Homelessness Bed & Breakfast Costs
Peterborough City Council,Communities,Housing,Services,07/03/2018,30166019,595.56,Revenue,DA Rosalia Hotel,Homelessness Bed & Breakfast Costs
Peterborough City Council,Communities,Housing,Services,07/03/2018,30166020,816.62,Revenue,DA Rosalia Hotel,Homelessness Bed & Breakfast Costs
Peterborough City Council,Communities,Housing,Services,07/03/2018,30166021,1310.12,Revenue,DA Rosalia Hotel,Homelessness Bed & Breakfast Costs
Peterborough City Council,Communities,Housing,Services,07/03/2018,30166022,816.62,Revenue,DA Rosalia Hotel,Homelessness Bed & Breakfast Costs
Peterborough City Council,Communities,Housing,Services,07/03/2018,30166023,595.56,Revenue,DA Rosalia Hotel,Homelessness Bed & Breakfast Costs
Peterborough City Council,Communities,Housing,Services,07/03/2018,30166025,816.62,Revenue,DA Rosalia Hotel,Homelessness Bed & Breakfast Costs
Peterborough City Council,Communities,Housing,Services,07/03/2018,30166026,816.62,Revenue,DA Rosalia Hotel,Homelessness Bed & Breakfast Costs
Peterborough City Council,Communities,Housing,Services,07/03/2018,30166027,816.62,Revenue,DA Rosalia Hotel,Homelessness Bed & Breakfast Costs
Peterborough City Council,Communities,Housing,Services,07/03/2018,30166028,595.56,Revenue,DA Rosalia Hotel,Homelessness Bed & Breakfast Costs
Peterborough City Council,Communities,Housing,Services,07/03/2018,30166029,843.73,Revenue,DA Rosalia Hotel,Homelessness Bed & Breakfast Costs
Peterborough City Council,ICT,ICT,Services,07/03/2018,30166078,5659.88,Revenue,Capita Business Services Ltd,Computer Software
Peterborough City Council,Legal & Democratic,Legal Services,Services,07/03/2018,30166093,550,Revenue,"Bramwell, Mr Christopher",Legal Costs
Peterborough City Council,Adults,Finance,Agency Staff,07/03/2018,30166176,4764.69,Revenue,Badenoch & Clark Ltd,External Temporary Staff
Peterborough City Council,Adults,Finance,Agency Staff,07/03/2018,30166177,7411.74,Revenue,Badenoch & Clark Ltd,External Temporary Staff
Peterborough City Council,Education,Special Educational Needs / Inclusion,Agency Staff,07/03/2018,30166185,2120,Revenue,Permanent Futures Ltd,External Temporary Staff
Peterborough City Council,Corporate Items,Corporate Services,Agency Staff,07/03/2018,30166318,10725,Revenue,Green Park Interim and Exec Ltd,External Temporary Staff
Peterborough City Council,Sustainable Growth Strategy,Housing & Strategic Planning,Services,07/03/2018,30166340,500,Revenue,Cambridge City Council,Licences
Peterborough City Council,HR,HR WFD & Training,Services,07/03/2018,30166476,1550,Revenue,Dynamis Insight,Course Instructors Fees
Peterborough City Council,"Cemeteries, Cremation & Registrars",Bereavement Service,Services,07/03/2018,30166483,1718,Revenue,Anglia Co-operative Funerals,Contract Funerals
Peterborough City Council,Adults,Independent Sector Placements,Services,07/03/2018,30166737,3188,Revenue,Barchester Healthcare (Werrington Lodge),Residential Care
Peterborough City Council,Adults,Independent Sector Placements,Services,07/03/2018,30166738,2655,Revenue,Barchester Healthcare (Werrington Lodge),Residential Care
Peterborough City Council,Adults,Independent Sector Placements,Services,07/03/2018,30166739,2687.2,Revenue,Barchester Healthcare (Werrington Lodge),Residential Care
Peterborough City Council,Adults,Independent Sector Placements,Services,07/03/2018,30166741,1762.88,Revenue,Barchester Healthcare (Werrington Lodge),Residential Care
Peterborough City Council,Adults,Independent Sector Placements,Services,07/03/2018,30166750,1909.49,Revenue,Barchester Healthcare (Werrington Lodge),Residential Care
Peterborough City Council,Adults,Independent Sector Placements,Services,07/03/2018,30166751,2511.87,Revenue,Barchester Healthcare (Werrington Lodge),Residential Care
Peterborough City Council,Adults,Independent Sector Placements,Services,07/03/2018,30166752,2642.2,Revenue,Barchester Healthcare (Werrington Lodge),Residential Care
Peterborough City Council,Adults,Independent Sector Placements,Services,07/03/2018,30166753,2549.04,Revenue,Barchester Healthcare (Werrington Lodge),Residential Care
Peterborough City Council,Adults,Independent Sector Placements,Services,07/03/2018,30166755,1509.96,Revenue,Barchester Healthcare (Werrington Lodge),Residential Care
Peterborough City Council,Adults,Independent Sector Placements,Services,07/03/2018,30166756,2442.36,Revenue,Barchester Healthcare (Werrington Lodge),Residential Care
Peterborough City Council,Adults,Independent Sector Placements,Services,07/03/2018,30166757,2305.92,Revenue,Barchester Healthcare (Werrington Lodge),Residential Care
Peterborough City Council,Adults,Independent Sector Placements,Services,07/03/2018,30166758,1944.64,Revenue,Barchester Healthcare (Werrington Lodge),Residential Care
Peterborough City Council,Corporate Property,Commercial Propety,Repair & Maintenance of Buildings,07/03/2018,30166834,3414,Revenue,Tesam Distribution Ltd,Premises Repairs
Peterborough City Council,Westcombe Engineering,Westcombe Engineering,"Tools, Equipment, Furniture & Materials",07/03/2018,30166903,561.06,Revenue,Barron Clark Castings Ltd,Items For Resale
Peterborough City Council,Westcombe Engineering,Westcombe Engineering,"Tools, Equipment, Furniture & Materials",07/03/2018,30166905,869.07,Revenue,Barron Clark Castings Ltd,Items For Resale
Peterborough City Council,Westcombe Engineering,Westcombe Engineering,"Tools, Equipment, Furniture & Materials",07/03/2018,30166907,571.75,Revenue,Barron Clark Castings Ltd,Items For Resale
Peterborough City Council,City Servs & Communications,"Markets, Tourism & Events",Services,07/03/2018,30167050,1306.01,Revenue,Vivacity Culture and Leisure,Tickets
Peterborough City Council,Adults,Independent Sector Placements,Services,07/03/2018,30167212,1679.96,Revenue,Maxey House Res Home,Residential Care
Peterborough City Council,Adults,Independent Sector Placements,Services,07/03/2018,30167213,1123.68,Revenue,Maxey House Res Home,Residential Care
Peterborough City Council,Adults,Independent Sector Placements,Services,07/03/2018,30167214,942.72,Revenue,Maxey House Res Home,Residential Care
Peterborough City Council,Adults,Independent Sector Placements,Services,07/03/2018,30167215,1821.88,Revenue,Maxey House Res Home,Residential Care
Peterborough City Council,Adults,Independent Sector Placements,Services,07/03/2018,30167216,1027.36,Revenue,Maxey House Res Home,Residential Care
Peterborough City Council,Adults,Independent Sector Placements,Services,07/03/2018,30167218,1011.84,Revenue,Maxey House Res Home,Residential Care
Peterborough City Council,Adults,Independent Sector Placements,Services,07/03/2018,30167219,1229.72,Revenue,Maxey House Res Home,Residential Care
Peterborough City Council,Adults,Independent Sector Placements,Services,07/03/2018,30167221,2692.52,Revenue,Maxey House Res Home,Residential Care
Peterborough City Council,Adults,Independent Sector Placements,Services,07/03/2018,30167222,1264.4,Revenue,Maxey House Res Home,Residential Care
Peterborough City Council,Adults,Independent Sector Placements,Services,07/03/2018,30167223,1284.08,Revenue,Maxey House Res Home,Residential Care
Peterborough City Council,Adults,Independent Sector Placements,Services,07/03/2018,30167224,1244.68,Revenue,Maxey House Res Home,Residential Care
Peterborough City Council,Adults,Independent Sector Placements,Services,07/03/2018,30167226,995.8,Revenue,Maxey House Res Home,Residential Care
Peterborough City Council,Communities,Community Safety,Services,07/03/2018,30167323,558,Revenue,Creative Spirit,Contractors
Peterborough City Council,Adults,Independent Sector Placements,Services,07/03/2018,30167388,2677.32,Revenue,HEREWARD CARE SERVICES LIMITED,Residential Care
Peterborough City Council,Adults,Independent Sector Placements,Services,07/03/2018,30167389,2621.6,Revenue,HEREWARD CARE SERVICES LIMITED,Residential Care
Peterborough City Council,Adults,Independent Sector Placements,Services,07/03/2018,30167390,2182.2,Revenue,HEREWARD CARE SERVICES LIMITED,Residential Care
Peterborough City Council,Adults,Independent Sector Placements,Services,07/03/2018,30167391,2808.64,Revenue,HEREWARD CARE SERVICES LIMITED,Residential Care
Peterborough City Council,Adults,Independent Sector Placements,Services,07/03/2018,30167392,2678.24,Revenue,HEREWARD CARE SERVICES LIMITED,Residential Care
Peterborough City Council,Adults,Independent Sector Placements,Services,07/03/2018,30167393,3437.52,Revenue,HEREWARD CARE SERVICES LIMITED,Residential Care
Peterborough City Council,Adults,Independent Sector Placements,Services,07/03/2018,30167394,3187.48,Revenue,HEREWARD CARE SERVICES LIMITED,Residential Care
Peterborough City Council,Adults,Independent Sector Placements,Services,07/03/2018,30167395,4497.76,Revenue,HEREWARD CARE SERVICES LIMITED,Residential Care
Peterborough City Council,Commissioning and Commercial Operations,Clare Lodge,Agency Staff,07/03/2018,30167519,1225,Revenue,Mana Resourcing Ltd,Supply Teachers
Peterborough City Council,Adults,Independent Sector Placements,Contract Hire and Operating Leases,07/03/2018,30167660,924.12,Revenue,Peterborough Cars,Hired Transport
Peterborough City Council,Adults,Independent Sector Placements,Contract Hire and Operating Leases,07/03/2018,30167661,630,Revenue,Peterborough Cars,Hired Transport
Peterborough City Council,Legal & Democratic,Legal Services,Agency Staff,07/03/2018,30167667,1006.38,Revenue,Giant Professional Limited,External Temporary Staff
Peterborough City Council,Adults,Independent Sector Placements,Services,07/03/2018,30167718,6420,Revenue,Transitions Supported Living Ltd,Residential Care
Peterborough City Council,Legal & Democratic,Legal Services,Agency Staff,07/03/2018,30167858,2025.38,Revenue,Reed Specialist Recruitment Limited,External Temporary Staff
Peterborough City Council,Commissioning and Commercial Operations,Clare Lodge,Agency Staff,07/03/2018,30167859,568.63,Revenue,Reed Specialist Recruitment Limited,External Temporary Staff
Peterborough City Council,Legal & Democratic,Legal Services,Agency Staff,07/03/2018,30167860,1459.5,Revenue,Reed Specialist Recruitment Limited,External Temporary Staff
Peterborough City Council,Corporate,Corporate,Non Revenue,07/03/2018,30167877,9588,Capital,Casbon Building Services,Grant Payment
Peterborough City Council,Commissioning and Commercial Operations,Commissioning,Services,07/03/2018,30167897,1548.89,Revenue,Wrixon Care Services,Hired Services
Peterborough City Council,Commissioning and Commercial Operations,Commissioning,Services,07/03/2018,30167898,974,Revenue,Wrixon Care Services,Hired Services
Peterborough City Council,Adults,Independent Sector Placements,Services,07/03/2018,30168016,1428.57,Revenue,PHILIA LODGE REST HOME,Residential Care
Peterborough City Council,Adults,Independent Sector Placements,Services,07/03/2018,30168017,2300,Revenue,FIELD HOUSE (EYE) LTD,Residential Care
Peterborough City Council,Adults,Independent Sector Placements,Services,07/03/2018,30168018,1150,Revenue,FIELD HOUSE (EYE) LTD,Residential Care
Peterborough City Council,Adults,Independent Sector Placements,Services,07/03/2018,30168019,2648,Revenue,PHILIA LODGE REST HOME,Residential Care
Peterborough City Council,Communities,Housing,Services,07/03/2018,30168035,937.5,Revenue,Leaders Stamford,Financial Assistance
Peterborough City Council,Adults,Independent Sector Placements,Services,07/03/2018,30168054,1409.19,Revenue,Hales Group Ltd,Home Care
Peterborough City Council,Adults,Independent Sector Placements,Services,07/03/2018,30168056,963.52,Revenue,Hales Group Ltd,Home Care
Peterborough City Council,Adults,Independent Sector Placements,Services,07/03/2018,30168057,961.34,Revenue,Hales Group Ltd,Home Care
Peterborough City Council,Corporate,Corporate,Non Revenue,07/03/2018,30168063,54093.82,Capital,Breyer Group Ltd,Building And Site Works
Peterborough City Council,Adults,Independent Sector Placements,Services,07/03/2018,30168077,1050.8,Revenue,Carewatch Care Services Ltd,Home Care
Peterborough City Council,Adults,Independent Sector Placements,Services,07/03/2018,30168083,553.8,Revenue,Carewatch Care Services Ltd,Home Care
Peterborough City Council,Adults,Independent Sector Placements,Services,07/03/2018,30168087,3116.52,Revenue,Fins Care Ltd t/a St Margarets Rest Home,Residential Care
Peterborough City Council,Adults,Independent Sector Placements,Services,07/03/2018,30168089,2747.04,Revenue,Fins Care Ltd t/a St Margarets Rest Home,Residential Care
Peterborough City Council,Adults,Independent Sector Placements,Services,07/03/2018,30168090,5945.64,Revenue,Fins Care Ltd t/a St Margarets Rest Home,Residential Care
Peterborough City Council,Adults,Independent Sector Placements,Services,07/03/2018,30168091,5945.64,Revenue,Fins Care Ltd t/a St Margarets Rest Home,Residential Care
Peterborough City Council,Adults,Independent Sector Placements,Services,07/03/2018,30168092,6185.64,Revenue,Fins Care Ltd t/a St Margarets Rest Home,Residential Care
Peterborough City Council,Adults,Independent Sector Placements,Services,07/03/2018,30168093,4242.24,Revenue,Fins Care Ltd t/a St Margarets Rest Home,Residential Care
Peterborough City Council,Adults,Independent Sector Placements,Services,07/03/2018,30168094,976.01,Revenue,Fins Care Ltd t/a St Margarets Rest Home,Residential Care
Peterborough City Council,Adults,Independent Sector Placements,Services,07/03/2018,30168095,920.22,Revenue,Fins Care Ltd t/a St Margarets Rest Home,Residential Care
Peterborough City Council,Adults,Independent Sector Placements,Services,07/03/2018,30168096,5945.64,Revenue,Fins Care Ltd t/a St Margarets Rest Home,Residential Care
Peterborough City Council,Commissioning and Commercial Operations,Early Years & Quality Improvement,Services,07/03/2018,30168206,26351.1,Revenue,Seedlings Nursery,Grant Payment
Peterborough City Council,Commissioning and Commercial Operations,Early Years & Quality Improvement,Services,07/03/2018,30168221,682.5,Revenue,Paston & Gunthorpe Pre-School,Grant Payment
Peterborough City Council,Commissioning and Commercial Operations,Early Years & Quality Improvement,Services,07/03/2018,30168225,897,Revenue,Little Tigers Day Nursery,Grant Payment
Peterborough City Council,Commissioning and Commercial Operations,Early Years & Quality Improvement,Services,07/03/2018,30168226,546,Revenue,Winyates Pre School,Grant Payment
Peterborough City Council,Adults,Independent Sector Placements,Services,07/03/2018,30168236,506.16,Revenue,Sense,Home Care
Peterborough City Council,Adults,Independent Sector Placements,Services,07/03/2018,30168242,1355.64,Revenue,KT Health (Ltd),Residential Care
Peterborough City Council,Adults,Independent Sector Placements,Services,07/03/2018,30168246,1610.25,Revenue,K2 CARE LTD,Home Care
Peterborough City Council,Adults,Independent Sector Placements,Services,07/03/2018,30168247,2293.65,Revenue,K2 CARE LTD,Home Care
Peterborough City Council,Commissioning and Commercial Operations,Clare Lodge,Services,07/03/2018,30168330,1390,Revenue,"Asplin, Ms Holly",Hired Services
Peterborough City Council,Communities,Cohesion,Agency Staff,07/03/2018,30168407,757.44,Revenue,Reed Specialist Recruitment Limited,External Temporary Staff
Peterborough City Council,Adults,Finance,Agency Staff,07/03/2018,30168408,2433.6,Revenue,Reed Specialist Recruitment Limited,External Temporary Staff
Peterborough City Council,Development and Construction,Development Management,Agency Staff,07/03/2018,30168410,1170,Revenue,Reed Specialist Recruitment Limited,External Temporary Staff
Peterborough City Council,Communities,Cohesion,Agency Staff,07/03/2018,30168423,757.44,Revenue,Reed Specialist Recruitment Limited,External Temporary Staff
Peterborough City Council,Adults,Finance,Agency Staff,07/03/2018,30168424,2433.6,Revenue,Reed Specialist Recruitment Limited,External Temporary Staff
Peterborough City Council,Adults,Independent Sector Placements,Services,07/03/2018,30168426,849.38,Revenue,Fins Care Ltd t/a St Margarets Rest Home,Residential Care
Peterborough City Council,Adults,Independent Sector Placements,Services,07/03/2018,30168428,3651.48,Revenue,Fins Care Ltd t/a St Margarets Rest Home,Residential Care
Peterborough City Council,Financial Services,Finance,Agency Staff,07/03/2018,30168450,602.02,Revenue,Reed Specialist Recruitment Limited,External Temporary Staff
Peterborough City Council,Legal & Democratic,Legal Services,Agency Staff,07/03/2018,30168456,1678.43,Revenue,Reed Specialist Recruitment Limited,External Temporary Staff
Peterborough City Council,Commissioning and Commercial Operations,Commissioning Team,Agency Staff,07/03/2018,30168458,1808.35,Revenue,Reed Specialist Recruitment Limited,External Temporary Staff
Peterborough City Council,Commissioning and Commercial Operations,Commissioning Team,Agency Staff,07/03/2018,30168464,2243.6,Revenue,Reed Specialist Recruitment Limited,External Temporary Staff
Peterborough City Council,Adults,Independent Sector Placements,Services,07/03/2018,30168469,1067.38,Revenue,LAVENDER HOUSE RESIDENTIAL HOME,Residential Care
Peterborough City Council,Financial Services,Finance,Agency Staff,07/03/2018,30168472,1471.6,Revenue,Reed Specialist Recruitment Limited,External Temporary Staff
Peterborough City Council,Education,School Standards & Effectiveness,Services,07/03/2018,30168482,600,Revenue,Beccles Free School,Grant Payment
Peterborough City Council,Education,School Standards & Effectiveness,Services,07/03/2018,30168491,550,Revenue,Witchford Village College,Grant Payment
Peterborough City Council,Children's & Safeguarding,External Education Placements,Services,07/03/2018,30168492,1603.5,Revenue,Farcet C.E. (C) Primary School,Out Of Area Education Costs
Peterborough City Council,Children's & Safeguarding,External Education Placements,Services,07/03/2018,30168493,3977.33,Revenue,Lincoln Castle Academy,Out Of Area Education Costs
Peterborough City Council,Commissioning and Commercial Operations,Clare Lodge,Agency Staff,07/03/2018,30168508,1952,Revenue,Wrixon Care Services,External Temporary Staff
Peterborough City Council,Legal & Democratic,Legal Services,Agency Staff,07/03/2018,30168514,854.4,Revenue,Reed Specialist Recruitment Limited,External Temporary Staff
Peterborough City Council,Communities,Housing,Services,07/03/2018,30168516,507.5,Revenue,Eastfield Guesthouse,Homelessness Bed & Breakfast Costs
Peterborough City Council,Communities,Housing,Services,07/03/2018,30168520,507.5,Revenue,Eastfield Guesthouse,Homelessness Bed & Breakfast Costs
Peterborough City Council,Communities,Housing,Services,07/03/2018,30168528,507.5,Revenue,Eastfield Guesthouse,Homelessness Bed & Breakfast Costs
Peterborough City Council,Communities,Housing,Services,07/03/2018,30168530,507.5,Revenue,Eastfield Guesthouse,Homelessness Bed & Breakfast Costs
Peterborough City Council,Communities,Housing,Services,07/03/2018,30168539,525,Revenue,Eastfield Guesthouse,Homelessness Bed & Breakfast Costs
Peterborough City Council,Communities,Housing,Services,07/03/2018,30168544,525,Revenue,Eastfield Guesthouse,Homelessness Bed & Breakfast Costs
Peterborough City Council,Communities,Housing,Services,07/03/2018,30168547,525,Revenue,Eastfield Guesthouse,Homelessness Bed & Breakfast Costs
Peterborough City Council,Communities,Housing,Services,07/03/2018,30168558,525,Revenue,Eastfield Guesthouse,Homelessness Bed & Breakfast Costs
Peterborough City Council,Communities,Housing,Services,07/03/2018,30168576,525,Revenue,Eastfield Guesthouse,Homelessness Bed & Breakfast Costs
Peterborough City Council,Adults,Learning Disability,Services,07/03/2018,30168610,700,Revenue,SAFE PLACES ORGANISATION COMMUNITY INTEREST COMPANY,Subscriptions
Peterborough City Council,Communities,Housing,Services,07/03/2018,30168628,525,Revenue,Eastfield Guesthouse,Homelessness Bed & Breakfast Costs
Peterborough City Council,Communities,Housing,Services,07/03/2018,30168629,525,Revenue,Eastfield Guesthouse,Homelessness Bed & Breakfast Costs
Peterborough City Council,Communities,Housing,Services,07/03/2018,30168630,525,Revenue,Eastfield Guesthouse,Homelessness Bed & Breakfast Costs
Peterborough City Council,Communities,Housing,Services,07/03/2018,30168631,525,Revenue,Eastfield Guesthouse,Homelessness Bed & Breakfast Costs
Peterborough City Council,Corporate,Corporate,Non Revenue,07/03/2018,30168635,-4213.5,Capital,NPS Peterborough Ltd,Consultants Fees
Peterborough City Council,Communities,Housing,Services,07/03/2018,30168636,525,Revenue,Eastfield Guesthouse,Homelessness Bed & Breakfast Costs
Peterborough City Council,Communities,Housing,Services,07/03/2018,30168638,525,Revenue,Eastfield Guesthouse,Homelessness Bed & Breakfast Costs
Peterborough City Council,Corporate,Corporate,Non Revenue,07/03/2018,30168639,4213.5,Capital,NPS Peterborough Ltd,Consultants Fees
Peterborough City Council,Education,Special Educational Needs / Inclusion,Services,07/03/2018,30168642,720,Revenue,Families First Peterborough,Education Expenses
Peterborough City Council,Adults,Independent Sector Placements,Services,07/03/2018,30168651,511.2,Revenue,Carewatch Care Services Ltd,Home Care
Peterborough City Council,Vivacity/Cultural Services,Cultural Services,Services,07/03/2018,30168653,1000,Revenue,Peterborough Centre for Young Musicians,Hired Services
Peterborough City Council,Vivacity/Cultural Services,Cultural Services,Services,07/03/2018,30168665,1625,Revenue,Peterborough Centre for Young Musicians,Hired Services
Peterborough City Council,Corporate,Corporate,Non Revenue,07/03/2018,30168669,1775.2,Balance Sheet,The Prudential Assurance Company Ltd,Pensions
Peterborough City Council,Corporate,Corporate,Non Revenue,07/03/2018,30168672,4255.94,Balance Sheet,The Prudential Assurance Company Ltd,Pensions
Peterborough City Council,Adults,Independent Sector Placements,Services,07/03/2018,30168682,532.5,Revenue,Carewatch Care Services Ltd,Home Care
Peterborough City Council,Adults,Independent Sector Placements,Services,07/03/2018,30168689,1371.43,Revenue,FIELD HOUSE (EYE) LTD,Residential Care
Peterborough City Council,Adults,Independent Sector Placements,Services,07/03/2018,30168690,2628.57,Revenue,FIELD HOUSE (EYE) LTD,Residential Care
Peterborough City Council,Adults,Independent Sector Placements,Services,07/03/2018,30168698,732.22,Revenue,Hales Group Ltd,Home Care
Peterborough City Council,Adults,Independent Sector Placements,Services,07/03/2018,30168702,2869.44,Revenue,Hales Group Ltd,Home Care
Peterborough City Council,Adults,Independent Sector Placements,Services,07/03/2018,30168731,1028.16,Revenue,Maxey House Res Home,Residential Care
Peterborough City Council,Adults,Independent Sector Placements,Services,07/03/2018,30168732,1050.6,Revenue,Maxey House Res Home,Residential Care
Peterborough City Council,Adults,Independent Sector Placements,Services,07/03/2018,30168756,1284.08,Revenue,FIELD HOUSE (EYE) LTD,Residential Care
Peterborough City Council,Corporate Property,Commercial Propety,Repair & Maintenance of Buildings,07/03/2018,30168800,3498.25,Revenue,Tesam Distribution Ltd,Premises Repairs
Peterborough City Council,Education,Special Educational Needs / Inclusion,Services,07/03/2018,30168845,671.47,Revenue,Children's Therapy Solutions Ltd,Occupational Health
Peterborough City Council,Education,Special Educational Needs / Inclusion,Services,07/03/2018,30168847,649.19,Revenue,Children's Therapy Solutions Ltd,Occupational Health
Peterborough City Council,Education,Special Educational Needs / Inclusion,Services,07/03/2018,30168860,727.7,Revenue,Children's Therapy Solutions Ltd,Occupational Health
Peterborough City Council,Education,Special Educational Needs / Inclusion,Services,07/03/2018,30168900,937.5,Revenue,The National Teaching & Advisory Service,Education Expenses
Peterborough City Council,Education,Special Educational Needs / Inclusion,Services,07/03/2018,30168901,1500,Revenue,The National Teaching & Advisory Service,Education Expenses
Peterborough City Council,ICT,ICT,Services,07/03/2018,30168924,16050,Revenue,Cambridgeshire County Council,Computer Software
Peterborough City Council,Adults,Independent Sector Placements,Services,07/03/2018,8000108169,1008.88,Revenue,Axiom Housing Association,Home Care
Peterborough City Council,Adults,Independent Sector Placements,Services,07/03/2018,8000108379,833,Revenue,Axiom Care Ltd,Home Care
Peterborough City Council,Adults,Independent Sector Placements,Services,07/03/2018,8000108380,583.1,Revenue,Axiom Care Ltd,Home Care
Peterborough City Council,Adults,Independent Sector Placements,Services,07/03/2018,8000108382,666.4,Revenue,Axiom Care Ltd,Home Care
Peterborough City Council,Adults,Independent Sector Placements,Services,07/03/2018,8000108384,2451.4,Revenue,Axiom Care Ltd,Home Care
Peterborough City Council,Adults,Independent Sector Placements,Services,07/03/2018,8000108386,666.4,Revenue,Axiom Care Ltd,Home Care
Peterborough City Council,Adults,Independent Sector Placements,Services,07/03/2018,8000108387,904.4,Revenue,Axiom Care Ltd,Home Care
Peterborough City Council,Adults,Independent Sector Placements,Services,07/03/2018,8000108389,666.4,Revenue,Axiom Care Ltd,Home Care
Peterborough City Council,Adults,Independent Sector Placements,Services,07/03/2018,8000108390,583.1,Revenue,Axiom Care Ltd,Home Care
Peterborough City Council,Adults,Independent Sector Placements,Services,07/03/2018,8000108392,583.1,Revenue,Axiom Care Ltd,Home Care
Peterborough City Council,Adults,Independent Sector Placements,Services,07/03/2018,8000108393,749.7,Revenue,Axiom Care Ltd,Home Care
Peterborough City Council,Adults,Independent Sector Placements,Services,07/03/2018,8000108400,583.1,Revenue,Axiom Care Ltd,Home Care
Peterborough City Council,Adults,Independent Sector Placements,Services,07/03/2018,8000108401,2499,Revenue,Axiom Care Ltd,Home Care
Peterborough City Council,Adults,Independent Sector Placements,Services,07/03/2018,8000108406,666.4,Revenue,Axiom Care Ltd,Home Care
Peterborough City Council,Adults,Independent Sector Placements,Services,07/03/2018,8000108407,2261,Revenue,Axiom Care Ltd,Home Care
Peterborough City Council,Adults,Independent Sector Placements,Services,07/03/2018,8000108412,583.1,Revenue,Axiom Care Ltd,Home Care
Peterborough City Council,Adults,Independent Sector Placements,Services,07/03/2018,8000108415,511.7,Revenue,Axiom Care Ltd,Home Care
Peterborough City Council,Adults,Independent Sector Placements,Services,07/03/2018,8000108416,952,Revenue,Axiom Care Ltd,Home Care
Peterborough City Council,Adults,Independent Sector Placements,Services,07/03/2018,8000108418,523.6,Revenue,Axiom Care Ltd,Home Care
Peterborough City Council,Adults,Independent Sector Placements,Services,07/03/2018,8000108420,1082.9,Revenue,Axiom Care Ltd,Home Care
Peterborough City Council,Adults,Independent Sector Placements,Services,07/03/2018,8000108423,666.4,Revenue,Axiom Care Ltd,Home Care
Peterborough City Council,Adults,Independent Sector Placements,Services,07/03/2018,8000108424,749.7,Revenue,Axiom Care Ltd,Home Care
Peterborough City Council,Adults,Independent Sector Placements,Services,07/03/2018,8000108425,636.65,Revenue,Axiom Care Ltd,Home Care
Peterborough City Council,Adults,Independent Sector Placements,Services,07/03/2018,8000108435,529.8,Revenue,Axiom Housing Association,Home Care
Peterborough City Council,Adults,Independent Sector Placements,Services,07/03/2018,8000108440,588.6,Revenue,Axiom Housing Association,Home Care
Peterborough City Council,Adults,Independent Sector Placements,Services,07/03/2018,8000108443,617.85,Revenue,Axiom Housing Association,Home Care
Peterborough City Council,Adults,Independent Sector Placements,Services,07/03/2018,8000108457,588.6,Revenue,Axiom Housing Association,Home Care
Peterborough City Council,Adults,Independent Sector Placements,Services,07/03/2018,8000108461,738.24,Revenue,Axiom Housing Association,Home Care
Peterborough City Council,Adults,Independent Sector Placements,Services,07/03/2018,8000108464,1088.25,Revenue,Axiom Housing Association,Home Care
Peterborough City Council,Adults,Independent Sector Placements,Services,07/03/2018,8000108465,853.05,Revenue,Axiom Housing Association,Home Care
Peterborough City Council,Adults,Independent Sector Placements,Services,07/03/2018,8000109174,2451.4,Revenue,Axiom Care Ltd,Home Care
Peterborough City Council,Adults,Independent Sector Placements,Services,07/03/2018,8000109176,666.4,Revenue,Axiom Care Ltd,Home Care
Peterborough City Council,Adults,Independent Sector Placements,Services,07/03/2018,8000109178,666.4,Revenue,Axiom Care Ltd,Home Care
Peterborough City Council,Adults,Independent Sector Placements,Services,07/03/2018,8000109187,1130.5,Revenue,Axiom Care Ltd,Home Care
Peterborough City Council,Adults,Independent Sector Placements,Services,07/03/2018,8000109188,535.5,Revenue,Axiom Care Ltd,Home Care
Peterborough City Council,Adults,Independent Sector Placements,Services,07/03/2018,8000109190,916.3,Revenue,Axiom Care Ltd,Home Care
Peterborough City Council,Adults,Independent Sector Placements,Services,07/03/2018,8000109191,511.7,Revenue,Axiom Care Ltd,Home Care
Peterborough City Council,Adults,Independent Sector Placements,Services,07/03/2018,8000109192,666.4,Revenue,Axiom Care Ltd,Home Care
Peterborough City Council,Adults,Independent Sector Placements,Services,07/03/2018,8000109194,583.1,Revenue,Axiom Care Ltd,Home Care
Peterborough City Council,Adults,Independent Sector Placements,Services,07/03/2018,8000109195,1249.5,Revenue,Axiom Care Ltd,Home Care
Peterborough City Council,Adults,Independent Sector Placements,Services,07/03/2018,8000109199,666.4,Revenue,Axiom Care Ltd,Home Care
Peterborough City Council,Adults,Independent Sector Placements,Services,07/03/2018,8000109200,666.4,Revenue,Axiom Care Ltd,Home Care
Peterborough City Council,Adults,Independent Sector Placements,Services,07/03/2018,8000109204,666.4,Revenue,Axiom Care Ltd,Home Care
Peterborough City Council,Adults,Independent Sector Placements,Services,07/03/2018,8000109205,505.75,Revenue,Axiom Care Ltd,Home Care
Peterborough City Council,Adults,Independent Sector Placements,Services,07/03/2018,8000109208,583.1,Revenue,Axiom Care Ltd,Home Care
Peterborough City Council,Adults,Independent Sector Placements,Services,07/03/2018,8000109210,916.3,Revenue,Axiom Care Ltd,Home Care
Peterborough City Council,Adults,Independent Sector Placements,Services,07/03/2018,8000109211,1154.3,Revenue,Axiom Care Ltd,Home Care
Peterborough City Council,Adults,Independent Sector Placements,Services,07/03/2018,8000109214,666.4,Revenue,Axiom Care Ltd,Home Care
Peterborough City Council,Adults,Independent Sector Placements,Services,07/03/2018,8000109215,666.4,Revenue,Axiom Care Ltd,Home Care
Peterborough City Council,Adults,Independent Sector Placements,Services,07/03/2018,8000109217,749.7,Revenue,Axiom Care Ltd,Home Care
Peterborough City Council,Adults,Independent Sector Placements,Services,07/03/2018,8000109218,511.7,Revenue,Axiom Care Ltd,Home Care
Peterborough City Council,Adults,Independent Sector Placements,Services,07/03/2018,8000109219,511.7,Revenue,Axiom Care Ltd,Home Care
Peterborough City Council,Adults,Independent Sector Placements,Services,07/03/2018,8000109220,999.6,Revenue,Axiom Care Ltd,Home Care
Peterborough City Council,Adults,Independent Sector Placements,Services,07/03/2018,8000109221,618.8,Revenue,Axiom Care Ltd,Home Care
Peterborough City Council,Adults,Independent Sector Placements,Services,07/03/2018,8000109226,583.1,Revenue,Axiom Care Ltd,Home Care
Peterborough City Council,Adults,Independent Sector Placements,Services,07/03/2018,8000109234,1160.25,Revenue,Axiom Care Ltd,Home Care
Peterborough City Council,Adults,Independent Sector Placements,Services,07/03/2018,8000109235,583.1,Revenue,Axiom Care Ltd,Home Care
Peterborough City Council,Adults,Independent Sector Placements,Services,07/03/2018,8000109238,1043.7,Revenue,Augusta Care Ltd,Home Care
Peterborough City Council,Adults,Independent Sector Placements,Services,07/03/2018,8000109239,1391.6,Revenue,Augusta Care Ltd,Home Care
Peterborough City Council,Adults,Independent Sector Placements,Services,07/03/2018,8000109240,1391.6,Revenue,Augusta Care Ltd,Home Care
Peterborough City Council,Adults,Independent Sector Placements,Services,07/03/2018,8000109241,1391.6,Revenue,Augusta Care Ltd,Home Care
Peterborough City Council,Adults,Independent Sector Placements,Services,07/03/2018,8000109242,1391.6,Revenue,Augusta Care Ltd,Home Care
Peterborough City Council,Adults,Independent Sector Placements,Services,07/03/2018,8000109243,1391.6,Revenue,Augusta Care Ltd,Home Care
Peterborough City Council,Adults,Independent Sector Placements,Services,07/03/2018,8000109244,1391.6,Revenue,Augusta Care Ltd,Home Care
Peterborough City Council,Adults,Independent Sector Placements,Services,07/03/2018,8000109245,1391.6,Revenue,Augusta Care Ltd,Home Care
Peterborough City Council,Adults,Independent Sector Placements,Services,07/03/2018,8000109246,3081.4,Revenue,Augusta Care Ltd,Home Care
Peterborough City Council,Adults,Independent Sector Placements,Services,07/03/2018,8000109247,3081.4,Revenue,Augusta Care Ltd,Home Care
Peterborough City Council,Adults,Independent Sector Placements,Services,07/03/2018,8000109248,3081.4,Revenue,Augusta Care Ltd,Home Care
Peterborough City Council,Adults,Independent Sector Placements,Services,07/03/2018,8000109267,573.75,Revenue,Axiom Care Ltd,Home Care
Peterborough City Council,Adults,Independent Sector Placements,Services,07/03/2018,8000109268,945,Revenue,Axiom Care Ltd,Home Care
Peterborough City Council,Education,HTS & CSC Transport,Contract Hire and Operating Leases,07/03/2018,8000110270,1266,Revenue,A2B Euro Cars,Hired Transport
Peterborough City Council,Education,HTS & CSC Transport,Contract Hire and Operating Leases,07/03/2018,8000110272,970,Revenue,A2B Euro Cars,Hired Transport
Peterborough City Council,Education,HTS & CSC Transport,Contract Hire and Operating Leases,07/03/2018,8000110274,1031.3,Revenue,Goldstar Cabs Ltd,Hired Transport
Peterborough City Council,Children's & Safeguarding,Commissioning - CSC,Services,07/03/2018,8000110317,851.5,Revenue,Redacted Personal Information,Financial Assistance
Peterborough City Council,Children's & Safeguarding,Commissioning - CSC,Services,07/03/2018,8000110317,940.85,Revenue,Redacted Personal Information,Financial Assistance
Peterborough City Council,Children's & Safeguarding,Child Health,Services,09/03/2018,30158942,1750,Revenue,P'Boro Council For Voluntary Srvs (PCVS),Purchased Social Care Services
Peterborough City Council,Public Health,PH Commissioning,Third Party Payments,09/03/2018,30159429,1536,Revenue,Cambridgeshire Community Services,Third Party Payments - Contract
Peterborough City Council,Adults,Block Contracts,Third Party Payments,09/03/2018,30162929,5664.4,Revenue,Axiom Crossroads Care,Third Party Payments - Contract
Peterborough City Council,Adults,Block Contracts,Third Party Payments,09/03/2018,30162930,1999.2,Revenue,Axiom Crossroads Care,Third Party Payments - Contract
Peterborough City Council,Adults,Block Contracts,Third Party Payments,09/03/2018,30162932,5664.4,Revenue,Axiom Crossroads Care,Third Party Payments - Contract
Peterborough City Council,Adults,Block Contracts,Third Party Payments,09/03/2018,30162933,1999.2,Revenue,Axiom Crossroads Care,Third Party Payments - Contract
Peterborough City Council,Adults,Block Contracts,Third Party Payments,09/03/2018,30162935,5664.4,Revenue,Axiom Crossroads Care,Third Party Payments - Contract
Peterborough City Council,Adults,Block Contracts,Third Party Payments,09/03/2018,30162936,1999.2,Revenue,Axiom Crossroads Care,Third Party Payments - Contract
Peterborough City Council,Director,Director,Agency Staff,09/03/2018,30163145,-6380.32,Revenue,Cambridgeshire Community Services,External Temporary Staff
Peterborough City Council,Adults,Home Services Delivery Model,Third Party Payments,09/03/2018,30163464,44166.66,Revenue,Axiom Housing Association,Grant-Third Party
Peterborough City Council,Communities,Community Safety,Services,09/03/2018,30163559,3000,Revenue,Cambridgeshire Constabulary,Road Safety
Peterborough City Council,Adults,Block Contracts,Third Party Payments,09/03/2018,30163927,3563.4,Revenue,Axiom Housing Association,Third Party Payments - Contract
Peterborough City Council,Public Health,PH Commissioning,Third Party Payments,09/03/2018,30164853,1079,Revenue,Cambridgeshire Community Services,Third Party Payments - Contract
Peterborough City Council,Development and Construction,Development Management,Services,09/03/2018,30165416,546,Revenue,Johnston Press Midlands Division,Advertising
Peterborough City Council,Children's & Safeguarding,Early Help ASC/CSC,Services,09/03/2018,30165667,2997.5,Revenue,Triple P Uk Ltd,Hired Services
Peterborough City Council,Children's & Safeguarding,Commissioning - CSC,Services,09/03/2018,30165927,737.2,Revenue,Sahara Community Care Services,Purchased Social Care Services
Peterborough City Council,Westcombe Engineering,Westcombe Engineering,"Tools, Equipment, Furniture & Materials",09/03/2018,30165970,585.39,Revenue,Carillon Industrial Services Ltd,Materials
Peterborough City Council,Communities,Service Director - Adults & Communities,Third Party Payments,09/03/2018,30165971,884,Revenue,Enterprise Managed Services Limited,Grant-Third Party
Peterborough City Council,Legal & Democratic,Legal Services,Services,09/03/2018,30166192,600,Revenue,Jane Bennington,Legal Costs
Peterborough City Council,Adults,Home Services Delivery Model,Services,09/03/2018,30166254,1734,Revenue,Handyman Steve,Contractors
Peterborough City Council,Peterborough Highway Services,Highway & Drainage Control,Agency Staff,09/03/2018,30166258,1633.5,Revenue,Matchtech,External Temporary Staff
Peterborough City Council,Financial Services,Finance,Agency Staff,09/03/2018,30166337,1120,Revenue,Morgan Hunt UK Ltd,External Temporary Staff
Peterborough City Council,Peterborough Serco Strategic Partnership,Peterborough Serco Strategic Partnership,Services,09/03/2018,30166533,1762.62,Revenue,Whistl UK Ltd,Postage
Peterborough City Council,Adults,Independent Sector Placements,Services,09/03/2018,30166559,1472.4,Revenue,Athena (Ashlynn Grange),Residential Care
Peterborough City Council,Adults,Independent Sector Placements,Services,09/03/2018,30166560,1209.28,Revenue,Athena (Ashlynn Grange),Residential Care
Peterborough City Council,Adults,Independent Sector Placements,Services,09/03/2018,30166561,1796.12,Revenue,Athena (Ashlynn Grange),Residential Care
Peterborough City Council,Adults,Independent Sector Placements,Services,09/03/2018,30166562,1594.12,Revenue,Athena (Ashlynn Grange),Residential Care
Peterborough City Council,Adults,Independent Sector Placements,Services,09/03/2018,30166563,1768.12,Revenue,Athena (Ashlynn Grange),Residential Care
Peterborough City Council,Adults,Independent Sector Placements,Services,09/03/2018,30166564,1579.84,Revenue,Athena (Ashlynn Grange),Residential Care
Peterborough City Council,Adults,Independent Sector Placements,Services,09/03/2018,30166565,1980,Revenue,Athena (Ashlynn Grange),Residential Care
Peterborough City Council,Adults,Independent Sector Placements,Services,09/03/2018,30166566,973.96,Revenue,Athena (Ashlynn Grange),Residential Care
Peterborough City Council,Adults,Independent Sector Placements,Services,09/03/2018,30166567,944.16,Revenue,Athena (Ashlynn Grange),Residential Care
Peterborough City Council,Adults,Independent Sector Placements,Services,09/03/2018,30166568,1703.28,Revenue,Athena (Ashlynn Grange),Residential Care
Peterborough City Council,Adults,Independent Sector Placements,Services,09/03/2018,30166569,974.4,Revenue,Athena (Ashlynn Grange),Residential Care
Peterborough City Council,Adults,Independent Sector Placements,Services,09/03/2018,30166570,1002.4,Revenue,Athena (Ashlynn Grange),Residential Care
Peterborough City Council,Adults,Independent Sector Placements,Services,09/03/2018,30166571,1821.88,Revenue,Athena (Ashlynn Grange),Residential Care
Peterborough City Council,Adults,Independent Sector Placements,Services,09/03/2018,30166572,1054.4,Revenue,Athena (Ashlynn Grange),Residential Care
Peterborough City Council,Adults,Independent Sector Placements,Services,09/03/2018,30166574,1821.88,Revenue,Athena (Ashlynn Grange),Residential Care
Peterborough City Council,Adults,Independent Sector Placements,Services,09/03/2018,30166575,1624.12,Revenue,Athena (Ashlynn Grange),Residential Care
Peterborough City Council,Adults,Independent Sector Placements,Services,09/03/2018,30166576,2305.92,Revenue,Athena (Ashlynn Grange),Residential Care
Peterborough City Council,Adults,Independent Sector Placements,Services,09/03/2018,30166577,1070.61,Revenue,Athena (Ashlynn Grange),Residential Care
Peterborough City Council,Adults,Independent Sector Placements,Services,09/03/2018,30166578,1272.08,Revenue,Athena (Ashlynn Grange),Residential Care
Peterborough City Council,Adults,Independent Sector Placements,Services,09/03/2018,30166579,1669.08,Revenue,Athena (Ashlynn Grange),Residential Care
Peterborough City Council,Adults,Independent Sector Placements,Services,09/03/2018,30166580,1821.88,Revenue,Athena (Ashlynn Grange),Residential Care
Peterborough City Council,Adults,Independent Sector Placements,Services,09/03/2018,30166582,652.89,Revenue,Athena (Ashlynn Grange),Residential Care
Peterborough City Council,Adults,Independent Sector Placements,Services,09/03/2018,30166583,1146.32,Revenue,Athena (Ashlynn Grange),Residential Care
Peterborough City Council,Adults,Independent Sector Placements,Services,09/03/2018,30166589,1736.76,Revenue,Athena (Ashlynn Grange),Residential Care
Peterborough City Council,Adults,Independent Sector Placements,Services,09/03/2018,30166590,1427.72,Revenue,Athena (Ashlynn Grange),Residential Care
Peterborough City Council,Adults,Independent Sector Placements,Services,09/03/2018,30166591,1302.72,Revenue,Athena (Ashlynn Grange),Residential Care
Peterborough City Council,Adults,Independent Sector Placements,Services,09/03/2018,30166592,1756.12,Revenue,Athena (Ashlynn Grange),Residential Care
Peterborough City Council,Adults,Independent Sector Placements,Services,09/03/2018,30166593,1685.72,Revenue,Athena (Ashlynn Grange),Residential Care
Peterborough City Council,Adults,Independent Sector Placements,Services,09/03/2018,30166594,1244.68,Revenue,Athena (Ashlynn Grange),Residential Care
Peterborough City Council,Adults,Independent Sector Placements,Services,09/03/2018,30166597,1032.56,Revenue,Athena (Ashlynn Grange),Residential Care
Peterborough City Council,Adults,Independent Sector Placements,Services,09/03/2018,30166603,1164.76,Revenue,Athena (Ashlynn Grange),Residential Care
Peterborough City Council,Adults,Independent Sector Placements,Services,09/03/2018,30166605,1070.61,Revenue,Athena (Ashlynn Grange),Residential Care
Peterborough City Council,Adults,Independent Sector Placements,Services,09/03/2018,30166606,843.8,Revenue,Athena (Ashlynn Grange),Residential Care
Peterborough City Council,Adults,Independent Sector Placements,Services,09/03/2018,30166612,808.88,Revenue,Athena (Ashlynn Grange),Residential Care
Peterborough City Council,Adults,Independent Sector Placements,Services,09/03/2018,30166614,2305.92,Revenue,Athena (Ashlynn Grange),Residential Care
Peterborough City Council,Adults,Independent Sector Placements,Services,09/03/2018,30166622,859.64,Revenue,Athena (Ashlynn Grange),Residential Care
Peterborough City Council,Adults,Independent Sector Placements,Services,09/03/2018,30166623,953.29,Revenue,Athena (Ashlynn Grange),Residential Care
Peterborough City Council,Adults,Independent Sector Placements,Services,09/03/2018,30166624,1152.12,Revenue,Athena (Ashlynn Grange),Residential Care
Peterborough City Council,Adults,Independent Sector Placements,Services,09/03/2018,30166627,1236.48,Revenue,Athena (Ashlynn Grange),Residential Care
Peterborough City Council,Adults,Independent Sector Placements,Services,09/03/2018,30166628,1672.96,Revenue,Athena (Ashlynn Grange),Residential Care
Peterborough City Council,Adults,Independent Sector Placements,Services,09/03/2018,30166630,1804.12,Revenue,Athena (Ashlynn Grange),Residential Care
Peterborough City Council,Adults,Independent Sector Placements,Services,09/03/2018,30166631,1762.36,Revenue,Athena (Ashlynn Grange),Residential Care
Peterborough City Council,Adults,Independent Sector Placements,Services,09/03/2018,30166633,1315.92,Revenue,Athena (Ashlynn Grange),Residential Care
Peterborough City Council,Adults,Independent Sector Placements,Services,09/03/2018,30166634,1632.28,Revenue,Athena (Ashlynn Grange),Residential Care
Peterborough City Council,Amey Peterborough & Waste Management,Waste Management,Services,09/03/2018,30166875,12212,Revenue,H W Martin Waste Ltd,Contractors
Peterborough City Council,Westcombe Engineering,Westcombe Engineering,"Tools, Equipment, Furniture & Materials",09/03/2018,30166944,638.3,Revenue,Barron Clark Castings Ltd,Items For Resale
Peterborough City Council,Westcombe Engineering,Westcombe Engineering,"Tools, Equipment, Furniture & Materials",09/03/2018,30166946,748.08,Revenue,Barron Clark Castings Ltd,Items For Resale
Peterborough City Council,Westcombe Engineering,Westcombe Engineering,"Tools, Equipment, Furniture & Materials",09/03/2018,30166949,983.41,Revenue,Barron Clark Castings Ltd,Items For Resale
Peterborough City Council,Adults,Finance,Third Party Payments,09/03/2018,30167051,35975,Revenue,AGE UK Cambridgeshire and Peterborough,Third Party Payments - Contract
Peterborough City Council,Adults,Block Contracts,Third Party Payments,09/03/2018,30167064,7583.33,Revenue,Home Group Ltd,Third Party Payments - Contract
Peterborough City Council,Adults,Independent Sector Placements,Services,09/03/2018,30167088,1726.03,Revenue,Pilgrim Havens,Residential Care
Peterborough City Council,Adults,Independent Sector Placements,Services,09/03/2018,30167090,1631.76,Revenue,Pilgrim Havens,Residential Care
Peterborough City Council,Adults,Independent Sector Placements,Services,09/03/2018,30167091,926.64,Revenue,Pilgrim Havens,Residential Care
Peterborough City Council,Adults,Independent Sector Placements,Services,09/03/2018,30167094,635.08,Revenue,Pilgrim Havens,Residential Care
Peterborough City Council,Adults,Independent Sector Placements,Services,09/03/2018,30167095,1585.2,Revenue,Pilgrim Havens,Residential Care
Peterborough City Council,Adults,Independent Sector Placements,Services,09/03/2018,30167097,1320.08,Revenue,Pilgrim Havens,Residential Care
Peterborough City Council,Adults,Independent Sector Placements,Services,09/03/2018,30167100,1069.59,Revenue,Pilgrim Havens,Residential Care
Peterborough City Council,Adults,Independent Sector Placements,Services,09/03/2018,30167101,1284.08,Revenue,Pilgrim Havens,Residential Care
Peterborough City Council,Adults,Independent Sector Placements,Services,09/03/2018,30167102,916.08,Revenue,Pilgrim Havens,Residential Care
Peterborough City Council,Development and Construction,Development Management,Agency Staff,09/03/2018,30167188,1000.21,Revenue,Reed Specialist Recruitment Limited,External Temporary Staff
Peterborough City Council,Development and Construction,Development Management,Agency Staff,09/03/2018,30167197,1000.21,Revenue,Reed Specialist Recruitment Limited,External Temporary Staff
Peterborough City Council,Development and Construction,Development Management,Agency Staff,09/03/2018,30167282,1000.21,Revenue,Reed Specialist Recruitment Limited,External Temporary Staff
Peterborough City Council,City Servs & Communications,Regulatory Services,Agency Staff,09/03/2018,30167299,1209.53,Revenue,Reed Specialist Recruitment Limited,External Temporary Staff
Peterborough City Council,Adults,Independent Sector Placements,Services,09/03/2018,30167310,4374.4,Revenue,Longueville Court (Barchester),Residential Care
Peterborough City Council,Commissioning and Commercial Operations,Clare Lodge,Services,09/03/2018,30167496,7699.84,Revenue,Rotamaster Ltd,Hired Services
Peterborough City Council,Peterborough Highway Services,Transport & Infrastructure Commissioning,Services,09/03/2018,30167526,185197.99,Revenue,Stagecoach in Peterborough,Contractors
Peterborough City Council,Children's & Safeguarding,Early Help ASC/CSC,Agency Staff,09/03/2018,30167856,521.77,Revenue,Reed Specialist Recruitment Limited,External Temporary Staff
Peterborough City Council,City Servs & Communications,Parking Services,Agency Staff,09/03/2018,30167861,981.36,Revenue,Reed Specialist Recruitment Limited,External Temporary Staff
Peterborough City Council,Financial Services,Finance,Agency Staff,09/03/2018,30167862,528.77,Revenue,Reed Specialist Recruitment Limited,External Temporary Staff
Peterborough City Council,Corporate,Corporate,Non Revenue,09/03/2018,30167864,2583.6,Capital,Reed Specialist Recruitment Limited,Consultants Fees
Peterborough City Council,Corporate Property,Office Accomodation,Agency Staff,09/03/2018,30167866,4691.51,Revenue,Reed Specialist Recruitment Limited,External Temporary Staff
Peterborough City Council,City Servs & Communications,Regulatory Services,Agency Staff,09/03/2018,30167868,1209.53,Revenue,Reed Specialist Recruitment Limited,External Temporary Staff
Peterborough City Council,Adults,Independent Sector Placements,Services,09/03/2018,30167891,905.9,Revenue,Athena (Ashlynn Grange),Residential Care
Peterborough City Council,City Servs & Communications,Parking Services,Agency Staff,09/03/2018,30168438,1247.15,Revenue,Reed Specialist Recruitment Limited,External Temporary Staff
Peterborough City Council,Children's & Safeguarding,Early Help ASC/CSC,Agency Staff,09/03/2018,30168441,533.64,Revenue,Reed Specialist Recruitment Limited,External Temporary Staff
Peterborough City Council,Legal & Democratic,Legal Services,Agency Staff,09/03/2018,30168448,891.17,Revenue,Reed Specialist Recruitment Limited,External Temporary Staff
Peterborough City Council,City Servs & Communications,Regulatory Services,Agency Staff,09/03/2018,30168452,596.59,Revenue,Reed Specialist Recruitment Limited,External Temporary Staff
Peterborough City Council,Peterborough Highway Services,Highway Services - HoS,Agency Staff,09/03/2018,30168457,867.43,Revenue,Reed Specialist Recruitment Limited,External Temporary Staff
Peterborough City Council,Financial Services,Finance,Agency Staff,09/03/2018,30168460,646.76,Revenue,Reed Specialist Recruitment Limited,External Temporary Staff
Peterborough City Council,Financial Services,Finance,Agency Staff,09/03/2018,30168461,646.76,Revenue,Reed Specialist Recruitment Limited,External Temporary Staff
Peterborough City Council,Adults,Independent Sector Placements,Services,09/03/2018,30168468,926.28,Revenue,Athena (Ashlynn Grange),Residential Care
Peterborough City Council,Corporate,Corporate,Non Revenue,09/03/2018,30168470,2325.24,Capital,Reed Specialist Recruitment Limited,Consultants Fees
Peterborough City Council,Corporate Property,Office Accomodation,Agency Staff,09/03/2018,30168473,4691.51,Revenue,Reed Specialist Recruitment Limited,External Temporary Staff
Peterborough City Council,Commissioning and Commercial Operations,Commissioning Team,Agency Staff,09/03/2018,30168477,1808.35,Revenue,Reed Specialist Recruitment Limited,External Temporary Staff
Peterborough City Council,Legal & Democratic,Legal Services,Agency Staff,09/03/2018,30168478,1678.43,Revenue,Reed Specialist Recruitment Limited,External Temporary Staff
Peterborough City Council,Commissioning and Commercial Operations,Clare Lodge,Agency Staff,09/03/2018,30168481,720.23,Revenue,Reed Specialist Recruitment Limited,External Temporary Staff
Peterborough City Council,HR,HR,Services,09/03/2018,30168505,1144,Revenue,Disclosure and Barring Service,Criminal Record Check
Peterborough City Council,Corporate Property,Office Accomodation,Repair & Maintenance of Buildings,09/03/2018,30168586,5796.71,Revenue,Baker Perkins Ltd,Service Charges - Premises
Peterborough City Council,Education,HTS & CSC Transport,Contract Hire and Operating Leases,09/03/2018,30168637,1189.14,Revenue,Lincolnshire County Council,Hired Transport
Peterborough City Council,Children's & Safeguarding,External Education Placements,Services,09/03/2018,30168646,14000,Revenue,Barford Children's Services,Boarding Out Allowances
Peterborough City Council,Children's & Safeguarding,External Education Placements,Services,09/03/2018,30168648,15200,Revenue,Barford Children's Services,Boarding Out Allowances
Peterborough City Council,Children's & Safeguarding,External Education Placements,Services,09/03/2018,30168652,14000,Revenue,Barford Children's Services,Boarding Out Allowances
Peterborough City Council,Education,Service Director Education,Employee Costs,09/03/2018,30168670,26641.68,Revenue,Teachers Pensions,Pensions
Peterborough City Council,Corporate,Corporate,Non Revenue,09/03/2018,30168818,3968.61,Capital,Enterprise Managed Services Limited,Consultants Fees
Peterborough City Council,Children's & Safeguarding,Commissioning - CSC,Services,09/03/2018,30168854,929.08,Revenue,Cambridgeshirehomecare,Purchased Social Care Services
Peterborough City Council,Children's & Safeguarding,Commissioning - CSC,Services,09/03/2018,30168857,929.08,Revenue,Cambridgeshirehomecare,Purchased Social Care Services
Peterborough City Council,City Servs & Communications,"Markets, Tourism & Events",Services,09/03/2018,30168910,5040.51,Revenue,National Express Ltd,Contractors
Peterborough City Council,Financial Services,Insurance,Services,09/03/2018,30168914,2925,Revenue,"Harris, Mr Paul",Hired Services
Peterborough City Council,Adults,Independent Sector Placements,Services,09/03/2018,30168939,642.6,Revenue,Axiom Housing Association,Home Care
Peterborough City Council,Adults,Independent Sector Placements,Services,09/03/2018,30168940,916.3,Revenue,Axiom Housing Association,Home Care
Peterborough City Council,Adults,Independent Sector Placements,Services,09/03/2018,30168941,749.7,Revenue,Axiom Housing Association,Home Care
Peterborough City Council,Adults,Independent Sector Placements,Services,09/03/2018,30168945,618.8,Revenue,Axiom Housing Association,Home Care
Peterborough City Council,Adults,Independent Sector Placements,Services,09/03/2018,30168947,1270.33,Revenue,Axiom Housing Association,Home Care
Peterborough City Council,Commissioning and Commercial Operations,Commissioning Team,Agency Staff,09/03/2018,30168979,3940.5,Revenue,Service Care Solutions Ltd,External Temporary Staff
Peterborough City Council,Peterborough Highway Services,Highway Services - HoS,Agency Staff,09/03/2018,30168992,849.46,Revenue,Reed Specialist Recruitment Limited,External Temporary Staff
Peterborough City Council,Director,Director,Agency Staff,09/03/2018,30169013,6380.32,Revenue,Cambridgeshire Community Services,External Temporary Staff
Peterborough City Council,Education,Special Educational Needs / Inclusion,Services,09/03/2018,30169017,3839.44,Revenue,Tripod Learning Ltd,Education Expenses
Peterborough City Council,Adults,Independent Sector Placements,Services,09/03/2018,30169041,4800,Revenue,Longueville Court (Barchester),Residential Care
Peterborough City Council,Commissioning and Commercial Operations,Commissioning Team,Agency Staff,09/03/2018,30169062,6436.15,Revenue,Service Care Solutions Ltd,External Temporary Staff
Peterborough City Council,Adults,Finance,Agency Staff,09/03/2018,30169066,2953.6,Revenue,Reed Specialist Recruitment Limited,External Temporary Staff
Peterborough City Council,Adults,Independent Sector Placements,Services,09/03/2018,30169089,2959.88,Revenue,THE CLAIR FRANCIS RETIREMENT HOME,Residential Care
Peterborough City Council,Adults,Independent Sector Placements,Services,09/03/2018,30169090,1821.88,Revenue,THE CLAIR FRANCIS RETIREMENT HOME,Residential Care
Peterborough City Council,Education,School Standards & Effectiveness,Services,09/03/2018,30169091,7090,Revenue,Davington Primary School,Grant Payment
Peterborough City Council,Adults,Independent Sector Placements,Services,09/03/2018,30169092,921.72,Revenue,THE CLAIR FRANCIS RETIREMENT HOME,Residential Care
Peterborough City Council,Adults,Independent Sector Placements,Services,09/03/2018,30169093,788.12,Revenue,THE CLAIR FRANCIS RETIREMENT HOME,Residential Care
Peterborough City Council,Adults,Independent Sector Placements,Services,09/03/2018,30169095,1237.16,Revenue,THE CLAIR FRANCIS RETIREMENT HOME,Residential Care
Peterborough City Council,Adults,Independent Sector Placements,Services,09/03/2018,30169096,1284.08,Revenue,THE CLAIR FRANCIS RETIREMENT HOME,Residential Care
Peterborough City Council,Adults,Independent Sector Placements,Services,09/03/2018,30169097,1821.88,Revenue,THE CLAIR FRANCIS RETIREMENT HOME,Residential Care
Peterborough City Council,Education,School Standards & Effectiveness,Services,09/03/2018,30169099,1600,Revenue,Northampton Academy,Grant Payment
Peterborough City Council,Adults,Independent Sector Placements,Services,09/03/2018,30169100,1626.68,Revenue,THE CLAIR FRANCIS RETIREMENT HOME,Residential Care
Peterborough City Council,Commissioning and Commercial Operations,Early Years & Quality Improvement,Services,09/03/2018,30169101,663,Revenue,Anna-Ca-Soo Day Nursery,Grant Payment
Peterborough City Council,Adults,Independent Sector Placements,Services,09/03/2018,30169102,1281.84,Revenue,THE CLAIR FRANCIS RETIREMENT HOME,Residential Care
Peterborough City Council,Adults,Independent Sector Placements,Services,09/03/2018,30169103,797.96,Revenue,THE CLAIR FRANCIS RETIREMENT HOME,Residential Care
Peterborough City Council,Commissioning and Commercial Operations,Early Years & Quality Improvement,Services,09/03/2018,30169105,1170,Revenue,Herlington Pre-School,Grant Payment
Peterborough City Council,Adults,Independent Sector Placements,Services,09/03/2018,30169106,1821.88,Revenue,THE CLAIR FRANCIS RETIREMENT HOME,Residential Care
Peterborough City Council,Commissioning and Commercial Operations,Early Years & Quality Improvement,Services,09/03/2018,30169110,546,Revenue,Little Tigers Day Nursery,Grant Payment
Peterborough City Council,Adults,Independent Sector Placements,Services,09/03/2018,30169111,938.32,Revenue,THE CLAIR FRANCIS RETIREMENT HOME,Residential Care
Peterborough City Council,Adults,Independent Sector Placements,Services,09/03/2018,30169113,1161.24,Revenue,THE CLAIR FRANCIS RETIREMENT HOME,Residential Care
Peterborough City Council,Adults,Independent Sector Placements,Services,09/03/2018,30169114,1103.04,Revenue,THE CLAIR FRANCIS RETIREMENT HOME,Residential Care
Peterborough City Council,Adults,Independent Sector Placements,Services,09/03/2018,30169116,1038.44,Revenue,THE CLAIR FRANCIS RETIREMENT HOME,Residential Care
Peterborough City Council,Education,School Standards & Effectiveness,Services,09/03/2018,30169128,677.25,Revenue,Sir Harry Smith Community College,Grant Payment
Peterborough City Council,Education,School Standards & Effectiveness,Services,09/03/2018,30169132,600,Revenue,Gosberton House Academy,Grant Payment
Peterborough City Council,Education,School Standards & Effectiveness,Services,09/03/2018,30169135,600,Revenue,St Simon Stock Catholic School,Grant Payment
Peterborough City Council,Education,School Standards & Effectiveness,Services,09/03/2018,30169137,1140,Revenue,The Duston School,Grant Payment
Peterborough City Council,Adults,Independent Sector Placements,Services,09/03/2018,30169140,1074,Revenue,ABOUT ME CARE AND SUPPORT LTD,Home Care
Peterborough City Council,Adults,Independent Sector Placements,Services,09/03/2018,30169142,662.3,Revenue,ABOUT ME CARE AND SUPPORT LTD,Home Care
Peterborough City Council,Adults,Independent Sector Placements,Services,09/03/2018,30169143,2550.75,Revenue,ABOUT ME CARE AND SUPPORT LTD,Home Care
Peterborough City Council,Adults,Independent Sector Placements,Services,09/03/2018,30169145,859.2,Revenue,ABOUT ME CARE AND SUPPORT LTD,Home Care
Peterborough City Council,Adults,Independent Sector Placements,Services,09/03/2018,30169149,1888.45,Revenue,ABOUT ME CARE AND SUPPORT LTD,Home Care
Peterborough City Council,Adults,Independent Sector Placements,Services,09/03/2018,30169150,1494.67,Revenue,ABOUT ME CARE AND SUPPORT LTD,Home Care
Peterborough City Council,Adults,Independent Sector Placements,Services,09/03/2018,30169151,2165.9,Revenue,ABOUT ME CARE AND SUPPORT LTD,Home Care
Peterborough City Council,Adults,Independent Sector Placements,Services,09/03/2018,30169153,1324.88,Revenue,ABOUT ME CARE AND SUPPORT LTD,Home Care
Peterborough City Council,Adults,Independent Sector Placements,Services,09/03/2018,30169154,1839.23,Revenue,ABOUT ME CARE AND SUPPORT LTD,Home Care
Peterborough City Council,Adults,Independent Sector Placements,Services,09/03/2018,30169156,572.8,Revenue,ABOUT ME CARE AND SUPPORT LTD,Home Care
Peterborough City Council,Adults,Independent Sector Placements,Services,09/03/2018,30169157,1284.08,Revenue,THE CLAIR FRANCIS RETIREMENT HOME,Residential Care
Peterborough City Council,Adults,Independent Sector Placements,Services,09/03/2018,30169158,965.64,Revenue,THE CLAIR FRANCIS RETIREMENT HOME,Residential Care
Peterborough City Council,Commissioning and Commercial Operations,Early Years & Quality Improvement,Services,09/03/2018,30169194,628.32,Revenue,Redacted Personal Information,Grant Payment
Peterborough City Council,Commissioning and Commercial Operations,Commissioning Team,Agency Staff,09/03/2018,30169216,4728.6,Revenue,Service Care Solutions Ltd,External Temporary Staff
Peterborough City Council,Commissioning and Commercial Operations,Commissioning Team,Rents,09/03/2018,30169223,15192.32,Revenue,Cross Keys Homes,Rent
Peterborough City Council,Education,Special Educational Needs / Inclusion,Services,09/03/2018,30169249,540,Revenue,Families First Peterborough,Education Expenses
Peterborough City Council,Commissioning and Commercial Operations,Commissioning Team,Agency Staff,09/03/2018,30169261,-1050.8,Revenue,Service Care Solutions Ltd,External Temporary Staff
Peterborough City Council,Corporate,Corporate,Non Revenue,09/03/2018,30169290,1054,Capital,Imperial Civil Enforcement Solutions,Computer Software
Peterborough City Council,Commissioning and Commercial Operations,Clare Lodge,Repair & Maintenance of Buildings,09/03/2018,30169645,983.88,Revenue,Southview Building Solutions Ltd,Premises Repairs
Peterborough City Council,Adults,Independent Sector Placements,Services,09/03/2018,8000110479,8792.85,Revenue,Cambridgeshirehomecare,Home Care
Peterborough City Council,Education,HTS & CSC Transport,Contract Hire and Operating Leases,09/03/2018,8000110562,1540.35,Revenue,Redacted Personal Information,Hired Transport
Peterborough City Council,Education,HTS & CSC Transport,Contract Hire and Operating Leases,09/03/2018,8000110563,693.74,Revenue,Redacted Personal Information,Hired Transport
Peterborough City Council,Education,HTS & CSC Transport,Contract Hire and Operating Leases,09/03/2018,8000110564,1248.25,Revenue,Redacted Personal Information,Hired Transport
Peterborough City Council,Education,HTS & CSC Transport,Contract Hire and Operating Leases,09/03/2018,8000110565,748.87,Revenue,Redacted Personal Information,Hired Transport
Peterborough City Council,Education,HTS & CSC Transport,Contract Hire and Operating Leases,09/03/2018,8000110568,772.87,Revenue,Redacted Personal Information,Hired Transport
Peterborough City Council,Education,HTS & CSC Transport,Contract Hire and Operating Leases,09/03/2018,8000110569,1799.25,Revenue,Redacted Personal Information,Hired Transport
Peterborough City Council,Corporate,Corporate,Non Revenue,12/03/2018,30164798,597.3,Capital,Princebuild Limited,Building And Site Works
Peterborough City Council,City Servs & Communications,Parking Services,"Tools, Equipment, Furniture & Materials",12/03/2018,30165369,3596,Revenue,Broxap Ltd,Furniture And Equipment Purchase
Peterborough City Council,Adults,Home Services Delivery Model,Services,12/03/2018,30165664,595,Revenue,Dave Elms Building & Maintenance,Contractors
Peterborough City Council,"Cemeteries, Cremation & Registrars",Bereavement Service,Repair & Maintenance of Buildings,12/03/2018,30165837,5722.07,Revenue,Facultatieve Technologies Ltd,Cremators
Peterborough City Council,Children's & Safeguarding,Children's Social Care,Agency Staff,12/03/2018,30165965,1406,Revenue,NonStop Recruitment Ltd,External Temporary Staff
Peterborough City Council,Corporate,Corporate,Non Revenue,12/03/2018,30166076,4950,Capital,The Froglife Trust,Building And Site Works
Peterborough City Council,Corporate,Corporate,Non Revenue,12/03/2018,30166077,4990,Capital,The Froglife Trust,Building And Site Works
Peterborough City Council,Commissioning and Commercial Operations,Commissioning,Services,12/03/2018,30166080,3900,Revenue,121 Social Care Limited,Hired Services
Peterborough City Council,Commissioning and Commercial Operations,Commissioning,Services,12/03/2018,30166081,4920,Revenue,121 Social Care Limited,Hired Services
Peterborough City Council,Children's & Safeguarding,Access to Resources & Specialist Commissioning,Agency Staff,12/03/2018,30166181,880,Revenue,HCL Social Care,External Temporary Staff
Peterborough City Council,"Cemeteries, Cremation & Registrars",Bereavement Service,Repair & Maintenance of Buildings,12/03/2018,30166342,1087.29,Revenue,Facultatieve Technologies Ltd,Cremators
Peterborough City Council,Director,Director,Training Expenses,12/03/2018,30166369,585,Revenue,Derby City Council,Training
Peterborough City Council,Adults,Independent Sector Placements,Services,12/03/2018,30166713,3880.88,Revenue,Bandrum Nursing Home Ltd,Residential Care
Peterborough City Council,Adults,Independent Sector Placements,Services,12/03/2018,30166717,1614.32,Revenue,BUPA Care Homes,Residential Care
Peterborough City Council,Communities,Housing,Services,12/03/2018,30166785,583.3,Revenue,DA Rosalia Hotel,Homelessness Bed & Breakfast Costs
Peterborough City Council,Adults,Home Services Delivery Model,Services,12/03/2018,30166919,646,Revenue,Rawheat Heating & Plumbing Eng.,Contractors
Peterborough City Council,"Cemeteries, Cremation & Registrars",Bereavement Service,Repair & Maintenance of Buildings,12/03/2018,30167035,1641.62,Revenue,Facultatieve Technologies Ltd,Cremators
Peterborough City Council,Commissioning and Commercial Operations,Clare Lodge,Agency Staff,12/03/2018,30167104,1056,Revenue,Wrixon Care Services,External Temporary Staff
Peterborough City Council,Commissioning and Commercial Operations,Clare Lodge,Agency Staff,12/03/2018,30167105,848,Revenue,Wrixon Care Services,External Temporary Staff
Peterborough City Council,City Servs & Communications,"Markets, Tourism & Events",Repair & Maintenance of Buildings,12/03/2018,30167365,1058.46,Revenue,The K A Wing Group Ltd,Premises Maintenance
Peterborough City Council,Adults,Independent Sector Placements,Services,12/03/2018,30167506,-926.82,Revenue,Avery House (Peterborough) t/a Brighterkind,Residential Care
Peterborough City Council,Adults,Independent Sector Placements,Services,12/03/2018,30167507,704.23,Revenue,Avery House (Peterborough) t/a Brighterkind,Residential Care
Peterborough City Council,Commissioning and Commercial Operations,Clare Lodge,Agency Staff,12/03/2018,30167513,980,Revenue,Mana Resourcing Ltd,Supply Teachers
Peterborough City Council,Corporate,Corporate,Non Revenue,12/03/2018,30167666,112672.65,Capital,Southview Building Solutions Ltd,Building And Site Works
Peterborough City Council,Corporate,Corporate,Non Revenue,12/03/2018,30167885,4009.2,Capital,Richards Property Refurbishments,Grant Payment
Peterborough City Council,Corporate,Corporate,Non Revenue,12/03/2018,30167886,1303.61,Capital,Obam Domestic Lift Services Ltd,Grant Payment
Peterborough City Council,Corporate,Corporate,Non Revenue,12/03/2018,30167887,603.75,Capital,Gaswise Services Ltd,Grant Payment
Peterborough City Council,Corporate,Corporate,Non Revenue,12/03/2018,30167889,15858,Capital,Warics Ltd,Grant Payment
Peterborough City Council,Corporate,Corporate,Non Revenue,12/03/2018,30167890,8485.2,Capital,Nadeem Construction Ltd,Grant Payment
Peterborough City Council,Adults,Independent Sector Placements,Services,12/03/2018,30167907,2280,Revenue,COMFORCARE SENIOR SERVICES,Home Care
Peterborough City Council,Adults,Independent Sector Placements,Services,12/03/2018,30167908,1214.25,Revenue,COMFORCARE SENIOR SERVICES,Home Care
Peterborough City Council,Adults,Independent Sector Placements,Services,12/03/2018,30167909,839.25,Revenue,COMFORCARE SENIOR SERVICES,Home Care
Peterborough City Council,Adults,Independent Sector Placements,Services,12/03/2018,30167911,628.25,Revenue,COMFORCARE SENIOR SERVICES,Home Care
Peterborough City Council,Adults,Independent Sector Placements,Services,12/03/2018,30167913,733,Revenue,COMFORCARE SENIOR SERVICES,Home Care
Peterborough City Council,Adults,Independent Sector Placements,Services,12/03/2018,30167914,624.5,Revenue,COMFORCARE SENIOR SERVICES,Home Care
Peterborough City Council,Adults,Independent Sector Placements,Services,12/03/2018,30167915,1969.25,Revenue,COMFORCARE SENIOR SERVICES,Home Care
Peterborough City Council,Adults,Independent Sector Placements,Services,12/03/2018,30167916,868,Revenue,COMFORCARE SENIOR SERVICES,Home Care
Peterborough City Council,Adults,Independent Sector Placements,Services,12/03/2018,30167918,2296.25,Revenue,COMFORCARE SENIOR SERVICES,Home Care
Peterborough City Council,Adults,Independent Sector Placements,Services,12/03/2018,30167919,1402.25,Revenue,COMFORCARE SENIOR SERVICES,Home Care
Peterborough City Council,Adults,Independent Sector Placements,Services,12/03/2018,30167922,1557.5,Revenue,COMFORCARE SENIOR SERVICES,Home Care
Peterborough City Council,Adults,Independent Sector Placements,Services,12/03/2018,30167927,739.25,Revenue,COMFORCARE SENIOR SERVICES,Home Care
Peterborough City Council,Adults,Independent Sector Placements,Services,12/03/2018,30167928,1110,Revenue,COMFORCARE SENIOR SERVICES,Home Care
Peterborough City Council,Adults,Independent Sector Placements,Services,12/03/2018,30167930,1970.25,Revenue,COMFORCARE SENIOR SERVICES,Home Care
Peterborough City Council,Adults,Independent Sector Placements,Services,12/03/2018,30167933,1820.75,Revenue,COMFORCARE SENIOR SERVICES,Home Care
Peterborough City Council,Adults,Independent Sector Placements,Services,12/03/2018,30167935,1946.25,Revenue,COMFORCARE SENIOR SERVICES,Home Care
Peterborough City Council,Adults,Independent Sector Placements,Services,12/03/2018,30167937,568.75,Revenue,COMFORCARE SENIOR SERVICES,Home Care
Peterborough City Council,Commissioning and Commercial Operations,Clare Lodge,"Tools, Equipment, Furniture & Materials",12/03/2018,30168557,5263.71,Revenue,Southview Building Solutions Ltd,Furniture And Equipment Repairs
Peterborough City Council,Commissioning and Commercial Operations,Clare Lodge,Repair & Maintenance of Buildings,12/03/2018,30168559,4260,Revenue,Southview Building Solutions Ltd,Premises Repairs
Peterborough City Council,Corporate,Corporate,Non Revenue,12/03/2018,30168704,1985.55,Capital,Gaswise Services Ltd,Grant Payment
Peterborough City Council,Corporate,Corporate,Non Revenue,12/03/2018,30168705,633.15,Capital,Gaswise Services Ltd,Grant Payment
Peterborough City Council,Corporate,Corporate,Non Revenue,12/03/2018,30168706,3446.1,Capital,Gaswise Services Ltd,Grant Payment
Peterborough City Council,Corporate,Corporate,Non Revenue,12/03/2018,30168707,1109.85,Capital,Gaswise Services Ltd,Grant Payment
Peterborough City Council,Corporate,Corporate,Non Revenue,12/03/2018,30168708,1485.75,Capital,Gaswise Services Ltd,Grant Payment
Peterborough City Council,Corporate,Corporate,Non Revenue,12/03/2018,30168711,2066.53,Capital,Bloom & Wake Ltd,Grant Payment
Peterborough City Council,Corporate,Corporate,Non Revenue,12/03/2018,30168712,2075.95,Capital,Bloom & Wake Ltd,Grant Payment
Peterborough City Council,Corporate,Corporate,Non Revenue,12/03/2018,30168713,1827.25,Capital,Bloom & Wake Ltd,Grant Payment
Peterborough City Council,Corporate,Corporate,Non Revenue,12/03/2018,30168714,2074.75,Capital,Bloom & Wake Ltd,Grant Payment
Peterborough City Council,Corporate,Corporate,Non Revenue,12/03/2018,30168715,2319.32,Capital,Bloom & Wake Ltd,Grant Payment
Peterborough City Council,Corporate,Corporate,Non Revenue,12/03/2018,30168716,1916.1,Capital,Bloom & Wake Ltd,Grant Payment
Peterborough City Council,Corporate,Corporate,Non Revenue,12/03/2018,30168717,1656.59,Capital,Bloom & Wake Ltd,Grant Payment
Peterborough City Council,Corporate,Corporate,Non Revenue,12/03/2018,30168718,2271.79,Capital,Bloom & Wake Ltd,Grant Payment
Peterborough City Council,Corporate,Corporate,Non Revenue,12/03/2018,30168719,1839.77,Capital,Bloom & Wake Ltd,Grant Payment
Peterborough City Council,Westcombe Engineering,Westcombe Engineering,"Tools, Equipment, Furniture & Materials",12/03/2018,30168788,982,Revenue,Barron Clark Castings Ltd,Items For Resale
Peterborough City Council,Adults,Day opportunities - Older People,Agency Staff,12/03/2018,30168834,3785.1,Revenue,Service Care Solutions Ltd,External Temporary Staff
Peterborough City Council,Adults,Independent Sector Placements,Services,12/03/2018,30168846,-876.6,Revenue,Avery House (Peterborough) t/a Brighterkind,Residential Care
Peterborough City Council,Adults,Finance,Agency Staff,12/03/2018,30168899,532.8,Revenue,Reed Specialist Recruitment Limited,External Temporary Staff
Peterborough City Council,Corporate,Corporate,Non Revenue,12/03/2018,30168909,454895.87,Capital,Kier Construction Ltd,Building And Site Works
Peterborough City Council,Corporate,Corporate,Non Revenue,12/03/2018,30168912,30741.18,Capital,Lindum Group Ltd,Building And Site Works
Peterborough City Council,Corporate,Corporate,Non Revenue,12/03/2018,30168913,730487.55,Capital,Kier Construction Ltd,Building And Site Works
Peterborough City Council,Children's & Safeguarding,External Education Placements,Services,12/03/2018,30168934,12796.53,Revenue,Ethelbert Childrens Services,Boarding Out Allowances
Peterborough City Council,Children's & Safeguarding,External Education Placements,Services,12/03/2018,30168935,12546.14,Revenue,Ethelbert Childrens Services,Boarding Out Allowances
Peterborough City Council,Children's & Safeguarding,External Education Placements,Services,12/03/2018,30168936,12887.14,Revenue,Ethelbert Childrens Services,Boarding Out Allowances
Peterborough City Council,Adults,Independent Sector Placements,Services,12/03/2018,30169139,579,Revenue,COMFORCARE SENIOR SERVICES,Home Care
Peterborough City Council,Education,School Standards & Effectiveness,Services,12/03/2018,30169196,818,Revenue,Weston Hills Primary School,Grant Payment
Peterborough City Council,Adults,Independent Sector Placements,Services,12/03/2018,30169250,549.12,Revenue,HEADWAY CAMBRIDGESHIRE,Day Care
Peterborough City Council,Adults,Independent Sector Placements,Services,12/03/2018,30169263,6966.72,Revenue,Autism Care (UK) Ltd,Residential Care
Peterborough City Council,Adults,Independent Sector Placements,Services,12/03/2018,30169264,6966.72,Revenue,Autism Care (UK) Ltd,Residential Care
Peterborough City Council,Adults,Independent Sector Placements,Services,12/03/2018,30169266,528.57,Revenue,Avery House (Peterborough) t/a Brighterkind,Residential Care
Peterborough City Council,Adults,Independent Sector Placements,Services,12/03/2018,30169267,4800,Revenue,Longueville Court (Barchester),Residential Care
Peterborough City Council,Corporate,Corporate,Non Revenue,12/03/2018,30169283,4091,Capital,A W Morley T/A Morley Building Services,Grant Payment
Peterborough City Council,Corporate,Corporate,Non Revenue,12/03/2018,30169287,4545,Capital,Gaswise Services Ltd,Grant Payment
Peterborough City Council,Corporate,Corporate,Non Revenue,12/03/2018,30169293,550,Capital,A W Morley T/A Morley Building Services,Grant Payment
Peterborough City Council,Corporate,Corporate,Non Revenue,12/03/2018,30169295,10745,Capital,Gaswise Services Ltd,Grant Payment
Peterborough City Council,Corporate,Corporate,Non Revenue,12/03/2018,30169298,2065.35,Capital,Gaswise Services Ltd,Grant Payment
Peterborough City Council,Corporate,Corporate,Non Revenue,12/03/2018,30169299,2868.6,Capital,Gaswise Services Ltd,Grant Payment
Peterborough City Council,Corporate,Corporate,Non Revenue,12/03/2018,30169300,4235,Capital,Gaswise Services Ltd,Grant Payment
Peterborough City Council,Peterborough Highway Services,Highway Services - HoS,Agency Staff,12/03/2018,30169302,858.45,Revenue,Reed Specialist Recruitment Limited,External Temporary Staff
Peterborough City Council,Adults,Independent Sector Placements,Services,12/03/2018,30169352,3224,Revenue,STAR RESIDENTIAL HOME LTD,Residential Care
Peterborough City Council,Adults,Independent Sector Placements,Services,12/03/2018,30169353,1612,Revenue,STAR RESIDENTIAL HOME LTD,Residential Care
Peterborough City Council,Vivacity/Cultural Services,Cultural Services,Services,12/03/2018,30169359,631.45,Revenue,Peterborough Centre for Young Musicians,Hired Services
Peterborough City Council,Vivacity/Cultural Services,Cultural Services,Services,12/03/2018,30169360,564.44,Revenue,Peterborough Centre for Young Musicians,Hired Services
Peterborough City Council,Vivacity/Cultural Services,Cultural Services,Services,12/03/2018,30169362,525,Revenue,Peterborough Centre for Young Musicians,Hired Services
Peterborough City Council,Vivacity/Cultural Services,Cultural Services,Services,12/03/2018,30169365,2332.8,Revenue,Peterborough Centre for Young Musicians,Hired Services
Peterborough City Council,Communities,Housing,Services,12/03/2018,30169377,507.5,Revenue,Eastfield Guesthouse,Homelessness Bed & Breakfast Costs
Peterborough City Council,City Servs & Communications,Parking Services,Services,12/03/2018,30169380,2162.5,Revenue,C N SECURITY,Security
Peterborough City Council,Communities,Cohesion,Agency Staff,12/03/2018,30169417,568.08,Revenue,Reed Specialist Recruitment Limited,External Temporary Staff
Peterborough City Council,Communities,Housing,Services,12/03/2018,30169429,507.5,Revenue,Eastfield Guesthouse,Homelessness Bed & Breakfast Costs
Peterborough City Council,Communities,Housing,Services,12/03/2018,30169430,525,Revenue,Eastfield Guesthouse,Homelessness Bed & Breakfast Costs
Peterborough City Council,Communities,Housing,Services,12/03/2018,30169431,507.5,Revenue,Eastfield Guesthouse,Homelessness Bed & Breakfast Costs
Peterborough City Council,Communities,Housing,Services,12/03/2018,30169436,507.5,Revenue,Eastfield Guesthouse,Homelessness Bed & Breakfast Costs
Peterborough City Council,Communities,Housing,Services,12/03/2018,30169441,525,Revenue,Eastfield Guesthouse,Homelessness Bed & Breakfast Costs
Peterborough City Council,Communities,Housing,Services,12/03/2018,30169448,525,Revenue,Eastfield Guesthouse,Homelessness Bed & Breakfast Costs
Peterborough City Council,Communities,Housing,Services,12/03/2018,30169449,525,Revenue,Eastfield Guesthouse,Homelessness Bed & Breakfast Costs
Peterborough City Council,Communities,Housing,Services,12/03/2018,30169453,525,Revenue,Eastfield Guesthouse,Homelessness Bed & Breakfast Costs
Peterborough City Council,Communities,Housing,Services,12/03/2018,30169454,525,Revenue,Eastfield Guesthouse,Homelessness Bed & Breakfast Costs
Peterborough City Council,Communities,Housing,Services,12/03/2018,30169456,525,Revenue,Eastfield Guesthouse,Homelessness Bed & Breakfast Costs
Peterborough City Council,Communities,Housing,Services,12/03/2018,30169457,525,Revenue,Eastfield Guesthouse,Homelessness Bed & Breakfast Costs
Peterborough City Council,Communities,Housing,Services,12/03/2018,30169458,525,Revenue,Eastfield Guesthouse,Homelessness Bed & Breakfast Costs
Peterborough City Council,Communities,Housing,Services,12/03/2018,30169459,525,Revenue,Eastfield Guesthouse,Homelessness Bed & Breakfast Costs
Peterborough City Council,Communities,Housing,Services,12/03/2018,30169461,525,Revenue,Eastfield Guesthouse,Homelessness Bed & Breakfast Costs
Peterborough City Council,Adults,Independent Sector Placements,Services,12/03/2018,30169529,600.08,Revenue,Avery House (Peterborough) t/a Brighterkind,Residential Care
Peterborough City Council,Adults,Independent Sector Placements,Services,12/03/2018,30169530,600.08,Revenue,Avery House (Peterborough) t/a Brighterkind,Residential Care
Peterborough City Council,Adults,Independent Sector Placements,Services,12/03/2018,30169545,2687.2,Revenue,STAR RESIDENTIAL HOME LTD,Residential Care
Peterborough City Council,Adults,Independent Sector Placements,Services,12/03/2018,30169547,1490.24,Revenue,STAR RESIDENTIAL HOME LTD,Residential Care
Peterborough City Council,Adults,Independent Sector Placements,Services,12/03/2018,30169548,2582.2,Revenue,STAR RESIDENTIAL HOME LTD,Residential Care
Peterborough City Council,Adults,Home Services Delivery Model,Services,12/03/2018,30169573,1615,Revenue,Fletton Electrics Ltd,Contractors
Peterborough City Council,Adults,Independent Sector Placements,Services,12/03/2018,30169585,2648,Revenue,PHILIA LODGE REST HOME,Residential Care
Peterborough City Council,Education,School Standards & Effectiveness,Services,12/03/2018,30169592,6270,Revenue,Five Acre Wood School,Grant Payment
Peterborough City Council,Education,School Standards & Effectiveness,Services,12/03/2018,30169594,790,Revenue,Shireland Collegiate Academy,Grant Payment
Peterborough City Council,Adults,Independent Sector Placements,Services,12/03/2018,30169600,4377.24,Revenue,Fins Care Ltd t/a St Margarets Rest Home,Residential Care
Peterborough City Council,Adults,Independent Sector Placements,Services,12/03/2018,30169601,2021.88,Revenue,PHILIA LODGE REST HOME,Residential Care
Peterborough City Council,Adults,Independent Sector Placements,Services,12/03/2018,30169604,3188.29,Revenue,Fins Care Ltd t/a St Margarets Rest Home,Residential Care
Peterborough City Council,Adults,Independent Sector Placements,Services,12/03/2018,30169610,3474.12,Revenue,PHILIA LODGE REST HOME,Residential Care
Peterborough City Council,Adults,Independent Sector Placements,Services,12/03/2018,8000109252,755.25,Revenue,COMFORCARE SENIOR SERVICES,Home Care
Peterborough City Council,Adults,Independent Sector Placements,Services,12/03/2018,8000109256,2893.25,Revenue,COMFORCARE SENIOR SERVICES,Home Care
Peterborough City Council,Adults,Independent Sector Placements,Services,12/03/2018,8000109259,1363.75,Revenue,COMFORCARE SENIOR SERVICES,Home Care
Peterborough City Council,Adults,Independent Sector Placements,Services,12/03/2018,8000109261,947,Revenue,COMFORCARE SENIOR SERVICES,Home Care
Peterborough City Council,Adults,Independent Sector Placements,Services,12/03/2018,8000109262,641.75,Revenue,COMFORCARE SENIOR SERVICES,Home Care
Peterborough City Council,Adults,Independent Sector Placements,Services,12/03/2018,8000109265,710.25,Revenue,COMFORCARE SENIOR SERVICES,Home Care
Peterborough City Council,Adults,Independent Sector Placements,Services,12/03/2018,8000110031,505.05,Revenue,MEARS GROUP,Home Care
Peterborough City Council,Adults,Independent Sector Placements,Services,12/03/2018,8000110035,887.85,Revenue,MEARS GROUP,Home Care
Peterborough City Council,Adults,Independent Sector Placements,Services,12/03/2018,8000110038,670.05,Revenue,MEARS GROUP,Home Care
Peterborough City Council,Adults,Independent Sector Placements,Services,12/03/2018,8000110044,1924.05,Revenue,MEARS GROUP,Home Care
Peterborough City Council,Adults,Independent Sector Placements,Services,12/03/2018,8000110045,988.2,Revenue,MEARS GROUP,Home Care
Peterborough City Council,Adults,Independent Sector Placements,Services,12/03/2018,8000110047,911.85,Revenue,MEARS GROUP,Home Care
Peterborough City Council,Adults,Independent Sector Placements,Services,12/03/2018,8000110048,616.35,Revenue,MEARS GROUP,Home Care
Peterborough City Council,Adults,Independent Sector Placements,Services,12/03/2018,8000110049,566.1,Revenue,MEARS GROUP,Home Care
Peterborough City Council,Adults,Independent Sector Placements,Services,12/03/2018,8000110051,1223.7,Revenue,MEARS GROUP,Home Care
Peterborough City Council,Adults,Independent Sector Placements,Services,12/03/2018,8000110052,812.4,Revenue,MEARS GROUP,Home Care
Peterborough City Council,Adults,Independent Sector Placements,Services,12/03/2018,8000110057,834.75,Revenue,MEARS GROUP,Home Care
Peterborough City Council,Adults,Independent Sector Placements,Services,12/03/2018,8000110063,1003.5,Revenue,MEARS GROUP,Home Care
Peterborough City Council,Adults,Independent Sector Placements,Services,12/03/2018,8000110066,541.65,Revenue,MEARS GROUP,Home Care
Peterborough City Council,Adults,Independent Sector Placements,Services,12/03/2018,8000110074,972.45,Revenue,MEARS GROUP,Home Care
Peterborough City Council,Adults,Independent Sector Placements,Services,12/03/2018,8000110077,1745.25,Revenue,MEARS GROUP,Home Care
Peterborough City Council,Adults,Independent Sector Placements,Services,12/03/2018,8000110084,803.25,Revenue,MEARS GROUP,Home Care
Peterborough City Council,Adults,Independent Sector Placements,Services,12/03/2018,8000110085,1676.4,Revenue,MEARS GROUP,Home Care
Peterborough City Council,Adults,Independent Sector Placements,Services,12/03/2018,8000110086,516.75,Revenue,MEARS GROUP,Home Care
Peterborough City Council,Adults,Independent Sector Placements,Services,12/03/2018,8000110092,580.5,Revenue,MEARS GROUP,Home Care
Peterborough City Council,Adults,Independent Sector Placements,Services,12/03/2018,8000110093,969.15,Revenue,MEARS GROUP,Home Care
Peterborough City Council,Adults,Independent Sector Placements,Services,12/03/2018,8000110095,1300.65,Revenue,MEARS GROUP,Home Care
Peterborough City Council,Adults,Independent Sector Placements,Services,12/03/2018,8000110103,603.75,Revenue,MEARS GROUP,Home Care
Peterborough City Council,Adults,Independent Sector Placements,Services,12/03/2018,8000110109,500.55,Revenue,MEARS GROUP,Home Care
Peterborough City Council,Adults,Independent Sector Placements,Services,12/03/2018,8000110113,1842.45,Revenue,MEARS GROUP,Home Care
Peterborough City Council,Adults,Independent Sector Placements,Services,12/03/2018,8000110115,758.85,Revenue,MEARS GROUP,Home Care
Peterborough City Council,Adults,Independent Sector Placements,Services,12/03/2018,8000110116,567.15,Revenue,MEARS GROUP,Home Care
Peterborough City Council,Adults,Independent Sector Placements,Services,12/03/2018,8000110118,534.15,Revenue,MEARS GROUP,Home Care
Peterborough City Council,Adults,Independent Sector Placements,Services,12/03/2018,8000110119,2006.85,Revenue,MEARS GROUP,Home Care
Peterborough City Council,Adults,Independent Sector Placements,Services,12/03/2018,8000110121,877.95,Revenue,MEARS GROUP,Home Care
Peterborough City Council,Adults,Independent Sector Placements,Services,12/03/2018,8000110122,1334.85,Revenue,MEARS GROUP,Home Care
Peterborough City Council,Adults,Independent Sector Placements,Services,12/03/2018,8000110123,715.65,Revenue,MEARS GROUP,Home Care
Peterborough City Council,Adults,Independent Sector Placements,Services,12/03/2018,8000110127,777.45,Revenue,MEARS GROUP,Home Care
Peterborough City Council,Adults,Independent Sector Placements,Services,12/03/2018,8000110128,844.95,Revenue,MEARS GROUP,Home Care
Peterborough City Council,Adults,Independent Sector Placements,Services,12/03/2018,8000110133,1270.8,Revenue,MEARS GROUP,Home Care
Peterborough City Council,Adults,Independent Sector Placements,Services,12/03/2018,8000110136,520.65,Revenue,MEARS GROUP,Home Care
Peterborough City Council,Adults,Independent Sector Placements,Services,12/03/2018,8000110138,728.4,Revenue,MEARS GROUP,Home Care
Peterborough City Council,Adults,Independent Sector Placements,Services,12/03/2018,8000110140,845.7,Revenue,MEARS GROUP,Home Care
Peterborough City Council,Adults,Independent Sector Placements,Services,12/03/2018,8000110144,549.6,Revenue,MEARS GROUP,Home Care
Peterborough City Council,Adults,Independent Sector Placements,Services,12/03/2018,8000110146,1958.4,Revenue,MEARS GROUP,Home Care
Peterborough City Council,Adults,Independent Sector Placements,Services,12/03/2018,8000110150,825.3,Revenue,MEARS GROUP,Home Care
Peterborough City Council,Adults,Independent Sector Placements,Services,12/03/2018,8000110211,778.25,Revenue,COMFORCARE SENIOR SERVICES,Home Care
Peterborough City Council,Adults,Independent Sector Placements,Services,12/03/2018,8000110212,1102.75,Revenue,COMFORCARE SENIOR SERVICES,Home Care
Peterborough City Council,Adults,Independent Sector Placements,Services,12/03/2018,8000110213,885,Revenue,COMFORCARE SENIOR SERVICES,Home Care
Peterborough City Council,Adults,Independent Sector Placements,Services,12/03/2018,8000110215,987,Revenue,COMFORCARE SENIOR SERVICES,Home Care
Peterborough City Council,Legal & Democratic,Democratic Services,Contract Hire and Operating Leases,12/03/2018,8000110618,534.32,Revenue,Lex Autolease Ltd,Leasing Charges
Peterborough City Council,Corporate,Corporate,Non Revenue,13/03/2018,30170360,135279.84,Capital,Southview Building Solutions Ltd,Building And Site Works
Peterborough City Council,Legal & Democratic,Legal Services,Services,14/03/2018,30164686,700,Revenue,"Sleight, Mr Nigel",Legal Costs
Peterborough City Council,Adults,Block Contracts,Third Party Payments,14/03/2018,30166088,1821.88,Revenue,Park Vista Care Home,Third Party Payments - Contract
Peterborough City Council,Adults,Block Contracts,Third Party Payments,14/03/2018,30166089,1821.88,Revenue,Park Vista Care Home,Third Party Payments - Contract
Peterborough City Council,Education,School Standards & Effectiveness,Services,14/03/2018,30166112,850,Revenue,The Park Lane Primary School,Grant Payment
Peterborough City Council,Corporate,Corporate,Non Revenue,14/03/2018,30166117,1225,Capital,Northborough Community Association,Grant Payment
Peterborough City Council,Adults,Block Contracts,Third Party Payments,14/03/2018,30166160,2305.92,Revenue,Park Vista Care Home,Third Party Payments - Contract
Peterborough City Council,Adults,Block Contracts,Third Party Payments,14/03/2018,30166162,2460,Revenue,Park Vista Care Home,Third Party Payments - Contract
Peterborough City Council,Adults,Block Contracts,Third Party Payments,14/03/2018,30166163,2305.92,Revenue,Park Vista Care Home,Third Party Payments - Contract
Peterborough City Council,Adults,Block Contracts,Third Party Payments,14/03/2018,30166164,2460,Revenue,Park Vista Care Home,Third Party Payments - Contract
Peterborough City Council,Adults,Day opportunities - Older People,Agency Staff,14/03/2018,30166175,1221,Revenue,Medicare First,External Temporary Staff
Peterborough City Council,Peterborough Highway Services,Network and Traffic Management,Services,14/03/2018,30166178,3743.86,Revenue,Dynniq UK Ltd,Contractors
Peterborough City Council,Peterborough Highway Services,Highway & Drainage Control,Agency Staff,14/03/2018,30166184,1316.7,Revenue,Matchtech,External Temporary Staff
Peterborough City Council,Adults,Therapy/Reablement/Community Equipment,Agency Staff,14/03/2018,30166186,5372.4,Revenue,HCL Social Care,External Temporary Staff
Peterborough City Council,ICT,ICT,Agency Staff,14/03/2018,30166270,2000,Revenue,Cranford Solutions (UK) Ltd,External Temporary Staff
Peterborough City Council,"Cemeteries, Cremation & Registrars",Bereavement Service,"Tools, Equipment, Furniture & Materials",14/03/2018,30166273,2560,Revenue,Ashdown Supplies,Materials
Peterborough City Council,Adults,Therapy/Reablement/Community Equipment,Agency Staff,14/03/2018,30166328,3580.06,Revenue,HCL Social Care,External Temporary Staff
Peterborough City Council,Corporate,Corporate,Non Revenue,14/03/2018,30166338,397453.28,Capital,Coulson & Son Ltd,Building And Site Works
Peterborough City Council,Legal & Democratic,Legal Services,Agency Staff,14/03/2018,30166352,2062.5,Revenue,Venn Group Ltd,External Temporary Staff
Peterborough City Council,Legal & Democratic,Legal Services,Agency Staff,14/03/2018,30166353,1702,Revenue,Venn Group Ltd,External Temporary Staff
Peterborough City Council,Legal & Democratic,Legal Services,Agency Staff,14/03/2018,30166354,526.79,Revenue,Venn Group Ltd,External Temporary Staff
Peterborough City Council,Development and Construction,Development Management,Services,14/03/2018,30166362,574.74,Revenue,Johnston Press Midlands Division,Advertising
Peterborough City Council,Adults,Home Services Delivery Model,Third Party Payments,14/03/2018,30166374,2933.36,Revenue,NACRO,Grant-Third Party
Peterborough City Council,Adults,Mental Capacity Act & DoLs,Services,14/03/2018,30166377,2824.2,Revenue,Dr Nauman Khalil Ltd,Hired Services
Peterborough City Council,Peterborough Highway Services,Transport & Infrastructure Commissioning,Services,14/03/2018,30166380,2822,Revenue,UK Power Networks (operations) Ltd,Contractors
Peterborough City Council,Peterborough Highway Services,Transport & Infrastructure Commissioning,Services,14/03/2018,30166392,620,Revenue,UK Power Networks (operations) Ltd,Contractors
Peterborough City Council,Adults,Independent Sector Placements,Services,14/03/2018,30166417,2819.89,Revenue,Qu'appelle Care Home Ltd,Residential Care
Peterborough City Council,Adults,Independent Sector Placements,Services,14/03/2018,30166429,1261.04,Revenue,GCH (North London) Ltd - Tudors,Residential Care
Peterborough City Council,"Cemeteries, Cremation & Registrars",Bereavement Service,Services,14/03/2018,30166484,1554,Revenue,Anglia Co-operative Funerals,Contract Funerals
Peterborough City Council,Education,Special Educational Needs / Inclusion,Training Expenses,14/03/2018,30166493,2246,Revenue,Cambs & P'boro NHS Foundation Trust,Training
Peterborough City Council,HR,HR WFD & Training,Services,14/03/2018,30166510,1600,Revenue,In-Trac Training & Consultancy Services,Course Instructors Fees
Peterborough City Council,Legal & Democratic,Legal Services,Services,14/03/2018,30166518,1090,Revenue,Miss Jodie Drummond,Legal Costs
Peterborough City Council,Legal & Democratic,Legal Services,Services,14/03/2018,30166519,2740,Revenue,Miss Amy Lindsey,Legal Costs
Peterborough City Council,Children's & Safeguarding,Child Health,Repair & Maintenance of Buildings,14/03/2018,30166602,514,Revenue,Britannia Fire & Security Ltd,Premises Maintenance
Peterborough City Council,Adults,Independent Sector Placements,Services,14/03/2018,30166707,1336.12,Revenue,BROADLEIGH NURSING HOME,Residential Care
Peterborough City Council,Adults,Independent Sector Placements,Services,14/03/2018,30166708,1439.68,Revenue,BROADLEIGH NURSING HOME,Residential Care
Peterborough City Council,Adults,Independent Sector Placements,Services,14/03/2018,30166709,2072.16,Revenue,BROADLEIGH NURSING HOME,Residential Care
Peterborough City Council,Adults,Independent Sector Placements,Services,14/03/2018,30166710,2164.12,Revenue,LAVENDER HOUSE RESIDENTIAL HOME,Residential Care
Peterborough City Council,Adults,Independent Sector Placements,Services,14/03/2018,30166711,1910.44,Revenue,LAVENDER HOUSE RESIDENTIAL HOME,Residential Care
Peterborough City Council,Communities,Housing,Services,14/03/2018,30166786,816.62,Revenue,DA Rosalia Hotel,Homelessness Bed & Breakfast Costs
Peterborough City Council,Communities,Housing,Services,14/03/2018,30166796,595.56,Revenue,DA Rosalia Hotel,Homelessness Bed & Breakfast Costs
Peterborough City Council,Communities,Housing,Services,14/03/2018,30166798,714.56,Revenue,DA Rosalia Hotel,Homelessness Bed & Breakfast Costs
Peterborough City Council,Communities,Housing,Services,14/03/2018,30166801,816.62,Revenue,DA Rosalia Hotel,Homelessness Bed & Breakfast Costs
Peterborough City Council,Communities,Housing,Services,14/03/2018,30166805,816.62,Revenue,DA Rosalia Hotel,Homelessness Bed & Breakfast Costs
Peterborough City Council,Communities,Housing,Services,14/03/2018,30166809,1310.12,Revenue,DA Rosalia Hotel,Homelessness Bed & Breakfast Costs
Peterborough City Council,Communities,Housing,Services,14/03/2018,30166810,1310.12,Revenue,DA Rosalia Hotel,Homelessness Bed & Breakfast Costs
Peterborough City Council,Communities,Housing,Services,14/03/2018,30166811,595.56,Revenue,DA Rosalia Hotel,Homelessness Bed & Breakfast Costs
Peterborough City Council,Communities,Housing,Services,14/03/2018,30166812,816.62,Revenue,DA Rosalia Hotel,Homelessness Bed & Breakfast Costs
Peterborough City Council,Communities,Housing,Services,14/03/2018,30166813,595.56,Revenue,DA Rosalia Hotel,Homelessness Bed & Breakfast Costs
Peterborough City Council,Communities,Housing,Services,14/03/2018,30166815,816.62,Revenue,DA Rosalia Hotel,Homelessness Bed & Breakfast Costs
Peterborough City Council,Communities,Housing,Services,14/03/2018,30166818,1834.56,Revenue,DA Rosalia Hotel,Homelessness Bed & Breakfast Costs
Peterborough City Council,Communities,Housing,Services,14/03/2018,30166820,595.56,Revenue,DA Rosalia Hotel,Homelessness Bed & Breakfast Costs
Peterborough City Council,Communities,Housing,Services,14/03/2018,30166823,595.56,Revenue,DA Rosalia Hotel,Homelessness Bed & Breakfast Costs
Peterborough City Council,Communities,Housing,Services,14/03/2018,30166824,595.56,Revenue,DA Rosalia Hotel,Homelessness Bed & Breakfast Costs
Peterborough City Council,Communities,Housing,Services,14/03/2018,30166830,595.56,Revenue,DA Rosalia Hotel,Homelessness Bed & Breakfast Costs
Peterborough City Council,Communities,Housing,Services,14/03/2018,30166831,595.56,Revenue,DA Rosalia Hotel,Homelessness Bed & Breakfast Costs
Peterborough City Council,Communities,Housing,Services,14/03/2018,30166832,595.56,Revenue,DA Rosalia Hotel,Homelessness Bed & Breakfast Costs
Peterborough City Council,Communities,Housing,Services,14/03/2018,30166833,714.56,Revenue,DA Rosalia Hotel,Homelessness Bed & Breakfast Costs
Peterborough City Council,Communities,Housing,Services,14/03/2018,30166835,595.56,Revenue,DA Rosalia Hotel,Homelessness Bed & Breakfast Costs
Peterborough City Council,Public Health,PH Commissioning,Services,14/03/2018,30166836,18045,Revenue,Soil Association Ltd,Hired Services
Peterborough City Council,Communities,Housing,Services,14/03/2018,30166837,1180.62,Revenue,DA Rosalia Hotel,Homelessness Bed & Breakfast Costs
Peterborough City Council,Corporate,Corporate,Non Revenue,14/03/2018,30166839,151064,Capital,Quadrant Security Group Ltd,Furniture And Equipment Purchase
Peterborough City Council,Communities,Housing,Services,14/03/2018,30166840,595.56,Revenue,DA Rosalia Hotel,Homelessness Bed & Breakfast Costs
Peterborough City Council,Communities,Housing,Services,14/03/2018,30166841,714.56,Revenue,DA Rosalia Hotel,Homelessness Bed & Breakfast Costs
Peterborough City Council,City Servs & Communications,Marketing & Communications,Services,14/03/2018,30166844,662.5,Revenue,ALSOprint Ltd,Printing
Peterborough City Council,Communities,Housing,Services,14/03/2018,30166845,714.56,Revenue,DA Rosalia Hotel,Homelessness Bed & Breakfast Costs
Peterborough City Council,Communities,Housing,Services,14/03/2018,30166846,1120,Revenue,DA Rosalia Hotel,Homelessness Bed & Breakfast Costs
Peterborough City Council,Communities,Housing,Services,14/03/2018,30166848,595.56,Revenue,DA Rosalia Hotel,Homelessness Bed & Breakfast Costs
Peterborough City Council,Communities,Housing,Services,14/03/2018,30166851,816.62,Revenue,DA Rosalia Hotel,Homelessness Bed & Breakfast Costs
Peterborough City Council,Communities,Housing,Services,14/03/2018,30166853,595.56,Revenue,DA Rosalia Hotel,Homelessness Bed & Breakfast Costs
Peterborough City Council,Communities,Housing,Services,14/03/2018,30166854,714.56,Revenue,DA Rosalia Hotel,Homelessness Bed & Breakfast Costs
Peterborough City Council,Communities,Housing,Services,14/03/2018,30166855,595.56,Revenue,DA Rosalia Hotel,Homelessness Bed & Breakfast Costs
Peterborough City Council,Communities,Housing,Services,14/03/2018,30166857,1061.62,Revenue,DA Rosalia Hotel,Homelessness Bed & Breakfast Costs
Peterborough City Council,Communities,Housing,Services,14/03/2018,30166858,816.62,Revenue,DA Rosalia Hotel,Homelessness Bed & Breakfast Costs
Peterborough City Council,Communities,Housing,Services,14/03/2018,30166859,714.56,Revenue,DA Rosalia Hotel,Homelessness Bed & Breakfast Costs
Peterborough City Council,ICT,ICT,Services,14/03/2018,30166860,31189.78,Revenue,Northgate Public Services (UK) Ltd,Computer Software
Peterborough City Council,Children's & Safeguarding,External Education Placements,Services,14/03/2018,30166895,18533.35,Revenue,Dove Adolescent Services Ltd,Boarding Out Allowances
Peterborough City Council,Financial Services,Finance,Services,14/03/2018,30166909,46533,Revenue,Cambridgeshire County Council,Consultants Fees
Peterborough City Council,Legal & Democratic,Legal Services,Services,14/03/2018,30167034,600,Revenue,Mr Paul Hollow,Legal Costs
Peterborough City Council,"Cemeteries, Cremation & Registrars",Bereavement Service,Services,14/03/2018,30167046,1578.33,Revenue,Anglia Co-operative Funerals,Contract Funerals
Peterborough City Council,Commissioning and Commercial Operations,Clare Lodge,Agency Staff,14/03/2018,30167106,2304,Revenue,Wrixon Care Services,External Temporary Staff
Peterborough City Council,Commissioning and Commercial Operations,Clare Lodge,Agency Staff,14/03/2018,30167107,1048,Revenue,Wrixon Care Services,External Temporary Staff
Peterborough City Council,Adults,Independent Sector Placements,Services,14/03/2018,30167178,625,Revenue,Park Vista Care Home,Residential Care
Peterborough City Council,Adults,Independent Sector Placements,Services,14/03/2018,30167179,2305.92,Revenue,Park Vista Care Home,Residential Care
Peterborough City Council,Adults,Independent Sector Placements,Services,14/03/2018,30167180,1033.44,Revenue,Park Vista Care Home,Residential Care
Peterborough City Council,Adults,Independent Sector Placements,Services,14/03/2018,30167181,984.88,Revenue,Park Vista Care Home,Residential Care
Peterborough City Council,Adults,Independent Sector Placements,Services,14/03/2018,30167182,1821.88,Revenue,Park Vista Care Home,Residential Care
Peterborough City Council,Adults,Independent Sector Placements,Services,14/03/2018,30167183,1182.08,Revenue,Park Vista Care Home,Residential Care
Peterborough City Council,Adults,Independent Sector Placements,Services,14/03/2018,30167184,1276,Revenue,Park Vista Care Home,Residential Care
Peterborough City Council,Adults,Independent Sector Placements,Services,14/03/2018,30167185,1289.08,Revenue,Park Vista Care Home,Residential Care
Peterborough City Council,Adults,Independent Sector Placements,Services,14/03/2018,30167186,1259,Revenue,Park Vista Care Home,Residential Care
Peterborough City Council,Adults,Independent Sector Placements,Services,14/03/2018,30167187,620.2,Revenue,Park Vista Care Home,Residential Care
Peterborough City Council,Adults,Independent Sector Placements,Services,14/03/2018,30167251,935.6,Revenue,Park Vista Care Home,Residential Care
Peterborough City Council,Adults,Independent Sector Placements,Services,14/03/2018,30167252,936.44,Revenue,Park Vista Care Home,Residential Care
Peterborough City Council,Adults,Independent Sector Placements,Services,14/03/2018,30167253,625,Revenue,Park Vista Care Home,Residential Care
Peterborough City Council,Adults,Independent Sector Placements,Services,14/03/2018,30167254,625,Revenue,Park Vista Care Home,Residential Care
Peterborough City Council,Adults,Independent Sector Placements,Services,14/03/2018,30167255,1026.44,Revenue,Park Vista Care Home,Residential Care
Peterborough City Council,Adults,Independent Sector Placements,Services,14/03/2018,30167256,1284.08,Revenue,Park Vista Care Home,Residential Care
Peterborough City Council,Adults,Independent Sector Placements,Services,14/03/2018,30167257,1332,Revenue,Park Vista Care Home,Residential Care
Peterborough City Council,Adults,Independent Sector Placements,Services,14/03/2018,30167258,849.36,Revenue,Park Vista Care Home,Residential Care
Peterborough City Council,Adults,Independent Sector Placements,Services,14/03/2018,30167259,1384.04,Revenue,Park Vista Care Home,Residential Care
Peterborough City Council,Adults,Independent Sector Placements,Services,14/03/2018,30167260,924.96,Revenue,Park Vista Care Home,Residential Care
Peterborough City Council,Commissioning and Commercial Operations,Clare Lodge,Agency Staff,14/03/2018,30167261,1040,Revenue,Wrixon Care Services,External Temporary Staff
Peterborough City Council,Adults,Independent Sector Placements,Services,14/03/2018,30167263,676.8,Revenue,Park Vista Care Home,Residential Care
Peterborough City Council,Adults,Independent Sector Placements,Services,14/03/2018,30167264,1038.44,Revenue,Park Vista Care Home,Residential Care
Peterborough City Council,Adults,Independent Sector Placements,Services,14/03/2018,30167265,1284.08,Revenue,Park Vista Care Home,Residential Care
Peterborough City Council,Adults,Independent Sector Placements,Services,14/03/2018,30167266,1821.88,Revenue,Park Vista Care Home,Residential Care
Peterborough City Council,Adults,Independent Sector Placements,Services,14/03/2018,30167267,2800,Revenue,Park Vista Care Home,Residential Care
Peterborough City Council,Adults,Independent Sector Placements,Services,14/03/2018,30167268,1284.08,Revenue,Park Vista Care Home,Residential Care
Peterborough City Council,Adults,Block Contracts,Third Party Payments,14/03/2018,30167312,60548.12,Revenue,HEREWARD CARE SERVICES LIMITED,Third Party Payments - Contract
Peterborough City Council,Adults,Block Contracts,Third Party Payments,14/03/2018,30167314,4836.07,Revenue,ABOUT ME CARE AND SUPPORT LTD,Third Party Payments - Contract
Peterborough City Council,Adults,Independent Sector Placements,Services,14/03/2018,30167329,1662.2,Revenue,LAVENDER HOUSE RESIDENTIAL HOME,Residential Care
Peterborough City Council,Adults,Independent Sector Placements,Services,14/03/2018,30167330,1801.2,Revenue,LAVENDER HOUSE RESIDENTIAL HOME,Residential Care
Peterborough City Council,Adults,Independent Sector Placements,Services,14/03/2018,30167331,1331.96,Revenue,LAVENDER HOUSE RESIDENTIAL HOME,Residential Care
Peterborough City Council,Adults,Independent Sector Placements,Services,14/03/2018,30167332,625.4,Revenue,LAVENDER HOUSE RESIDENTIAL HOME,Residential Care
Peterborough City Council,Adults,Independent Sector Placements,Services,14/03/2018,30167333,2520,Revenue,LAVENDER HOUSE RESIDENTIAL HOME,Residential Care
Peterborough City Council,Adults,Independent Sector Placements,Services,14/03/2018,30167334,2006.36,Revenue,LAVENDER HOUSE RESIDENTIAL HOME,Residential Care
Peterborough City Council,Adults,Independent Sector Placements,Services,14/03/2018,30167335,1241.88,Revenue,LAVENDER HOUSE RESIDENTIAL HOME,Residential Care
Peterborough City Council,City Servs & Communications,Regulatory Services,Agency Staff,14/03/2018,30167387,1209.53,Revenue,Reed Specialist Recruitment Limited,External Temporary Staff
Peterborough City Council,Legal & Democratic,Elections,Services,14/03/2018,30167488,2074.8,Revenue,Print UK,Printing
Peterborough City Council,Adults,Independent Sector Placements,Services,14/03/2018,30167503,2485.12,Revenue,Peterborough Care  The Maltings,Residential Care
Peterborough City Council,Adults,Independent Sector Placements,Services,14/03/2018,30167504,2509.72,Revenue,Peterborough Care  The Maltings,Residential Care
Peterborough City Council,Adults,Independent Sector Placements,Services,14/03/2018,30167505,2409.4,Revenue,Peterborough Care  The Maltings,Residential Care
Peterborough City Council,Corporate Property,Office Accomodation,Energy Costs,14/03/2018,30167523,-7536.4,Revenue,British Gas Business,Electricity
Peterborough City Council,Corporate Property,Office Accomodation,Energy Costs,14/03/2018,30167523,7764.81,Revenue,British Gas Business,Electricity
Peterborough City Council,Corporate Property,Office Accomodation,Energy Costs,14/03/2018,30167523,-1867.72,Revenue,British Gas Business,Electricity
Peterborough City Council,Corporate Property,Office Accomodation,Energy Costs,14/03/2018,30167523,1867.72,Revenue,British Gas Business,Electricity
Peterborough City Council,Corporate Property,Office Accomodation,Energy Costs,14/03/2018,30167523,1434.48,Revenue,British Gas Business,Electricity
Peterborough City Council,Corporate Property,Office Accomodation,Energy Costs,14/03/2018,30167523,1892.67,Revenue,British Gas Business,Electricity
Peterborough City Council,Amey Peterborough & Waste Management,Waste & Operational Svs Mgmt,Energy Costs,14/03/2018,30167523,783.56,Revenue,British Gas Business,Electricity
Peterborough City Council,Adults,Independent Sector Placements,Services,14/03/2018,30167613,544.32,Revenue,Carers Trust Cambridgeshire,Home Care
Peterborough City Council,Adults,Independent Sector Placements,Services,14/03/2018,30167615,521.64,Revenue,Carers Trust Cambridgeshire,Home Care
Peterborough City Council,Adults,Independent Sector Placements,Services,14/03/2018,30167643,627.48,Revenue,Carers Trust Cambridgeshire,Home Care
Peterborough City Council,Adults,Independent Sector Placements,Services,14/03/2018,30167662,6332.04,Revenue,NORTH EAST AUTISM SOCIETY,Residential Care
Peterborough City Council,Commissioning and Commercial Operations,Clare Lodge,Agency Staff,14/03/2018,30167669,1936,Revenue,Wrixon Care Services,External Temporary Staff
Peterborough City Council,Vivacity/Cultural Services,Cultural Services,Energy Costs,14/03/2018,30167738,2015.25,Revenue,British Gas Business,Electricity
Peterborough City Council,Vivacity/Cultural Services,Cultural Services,Energy Costs,14/03/2018,30167738,2608.91,Revenue,British Gas Business,Electricity
Peterborough City Council,Corporate Property,Office Accomodation,Energy Costs,14/03/2018,30167740,1350.13,Revenue,British Gas Business,Electricity
Peterborough City Council,Vivacity/Cultural Services,Cultural Services,Energy Costs,14/03/2018,30167740,1403.75,Revenue,British Gas Business,Electricity
Peterborough City Council,Adults,Independent Sector Placements,Services,14/03/2018,30167893,544.32,Revenue,Carers Trust Cambridgeshire,Home Care
Peterborough City Council,Adults,Independent Sector Placements,Services,14/03/2018,30167895,737.1,Revenue,Carers Trust Cambridgeshire,Home Care
Peterborough City Council,Children's & Safeguarding,Children's Social Care,Services,14/03/2018,30168168,1045.33,Revenue,Redacted Personal Information,Financial Assistance
Peterborough City Council,Corporate,Corporate,Non Revenue,14/03/2018,30168251,95168.79,Capital,Coulson & Son Ltd,Building And Site Works
Peterborough City Council,Public Health,PH Commissioning,Third Party Payments,14/03/2018,30168254,2022,Revenue,Cambridgeshire Community Services,Third Party Payments - Contract
Peterborough City Council,Peterborough Highway Services,Network and Traffic Management,Services,14/03/2018,30168298,3677,Revenue,Dynniq UK Ltd,Contractors
Peterborough City Council,Development and Construction,Development Management,Agency Staff,14/03/2018,30168417,910,Revenue,Reed Specialist Recruitment Limited,External Temporary Staff
Peterborough City Council,Development and Construction,Development Management,Agency Staff,14/03/2018,30168419,1161.88,Revenue,Reed Specialist Recruitment Limited,External Temporary Staff
Peterborough City Council,Development and Construction,Development Management,Agency Staff,14/03/2018,30168443,1000.21,Revenue,Reed Specialist Recruitment Limited,External Temporary Staff
Peterborough City Council,Development and Construction,Development Management,Agency Staff,14/03/2018,30168449,1186.25,Revenue,Reed Specialist Recruitment Limited,External Temporary Staff
Peterborough City Council,Adults,Home Services Delivery Model,Third Party Payments,14/03/2018,30168569,5017.14,Revenue,Peterborough Womens Aid,Grant-Third Party
Peterborough City Council,Westcombe Engineering,Westcombe Engineering,Energy Costs,14/03/2018,30168606,1392.18,Revenue,British Gas Business,Electricity
Peterborough City Council,Westcombe Engineering,Westcombe Engineering,Energy Costs,14/03/2018,30168606,1179.74,Revenue,British Gas Business,Electricity
Peterborough City Council,Children's & Safeguarding,Child Health,Energy Costs,14/03/2018,30168623,649.92,Revenue,British Gas Business,Electricity
Peterborough City Council,Amey Peterborough & Waste Management,Waste & Operational Svs Mgmt,Energy Costs,14/03/2018,30168623,582.57,Revenue,British Gas Business,Electricity
Peterborough City Council,Education,PFI,Water Services,14/03/2018,30168699,1464.33,Revenue,Anglian Water Business National,Water
Peterborough City Council,Communities,Housing,Water Services,14/03/2018,30168699,5199.47,Revenue,Anglian Water Business National,Water
Peterborough City Council,Communities,Housing,Water Services,14/03/2018,30168699,1131.64,Revenue,Anglian Water Business National,Water
Peterborough City Council,Corporate,Corporate,Non Revenue,14/03/2018,30168710,3225,Capital,Allworks Home Improvements Ltd,Grant Payment
Peterborough City Council,Westcombe Engineering,Westcombe Engineering,"Tools, Equipment, Furniture & Materials",14/03/2018,30168785,731.84,Revenue,Barron Clark Castings Ltd,Items For Resale
Peterborough City Council,Westcombe Engineering,Westcombe Engineering,"Tools, Equipment, Furniture & Materials",14/03/2018,30168793,580.04,Revenue,Barron Clark Castings Ltd,Items For Resale
Peterborough City Council,Westcombe Engineering,Westcombe Engineering,"Tools, Equipment, Furniture & Materials",14/03/2018,30168794,785.6,Revenue,Barron Clark Castings Ltd,Items For Resale
Peterborough City Council,Corporate,Corporate,Non Revenue,14/03/2018,30168821,2168.25,Capital,Enterprise Managed Services Limited,Consultants Fees
Peterborough City Council,Corporate,Corporate,Non Revenue,14/03/2018,30168822,4758.49,Capital,Enterprise Managed Services Limited,Consultants Fees
Peterborough City Council,Legal & Democratic,Legal Services,Agency Staff,14/03/2018,30168915,1566.63,Revenue,Giant Professional Limited,External Temporary Staff
Peterborough City Council,City Servs & Communications,"Markets, Tourism & Events",Energy Costs,14/03/2018,30168926,803.08,Revenue,British Gas Business,Electricity
Peterborough City Council,Peterborough Highway Services,Transport & Infrastructure Commissioning,Services,14/03/2018,30168931,92805.05,Revenue,Lincolnshire County Council,Contractors
Peterborough City Council,Public Health,PH Commissioning,Third Party Payments,14/03/2018,30169119,357674.88,Revenue,Cambridgeshire Community Services,Third Party Payments - Contract
Peterborough City Council,Education,Special Educational Needs / Inclusion,Training Expenses,14/03/2018,30169123,635,Revenue,The University Of Birmingham,Training
Peterborough City Council,Communities,Cohesion,Rents,14/03/2018,30169173,625,Revenue,Rightroom Lettings Ltd,Rent
Peterborough City Council,Communities,Cohesion,Rents,14/03/2018,30169174,575,Revenue,Record Property Solutions,Rent
Peterborough City Council,Communities,Cohesion,Rents,14/03/2018,30169175,625,Revenue,Record Property Solutions,Rent
Peterborough City Council,Communities,Cohesion,Rents,14/03/2018,30169176,800,Revenue,Hope Into Action,Rent
Peterborough City Council,Communities,Cohesion,Rents,14/03/2018,30169178,800,Revenue,Rightroom Lettings Ltd,Rent
Peterborough City Council,Communities,Cohesion,Rents,14/03/2018,30169180,750,Revenue,Redacted Personal Information,Rent
Peterborough City Council,Communities,Cohesion,Rents,14/03/2018,30169181,625,Revenue,Record Property Solutions,Rent
Peterborough City Council,Communities,Cohesion,Rents,14/03/2018,30169182,575,Revenue,Redacted Personal Information,Rent
Peterborough City Council,Corporate,Corporate,Non Revenue,14/03/2018,30169211,950.7,Capital,Smooth Removals (Peterborough) Ltd,Building And Site Works
Peterborough City Council,Communities,Service Director - Adults & Communities,Third Party Payments,14/03/2018,30169240,34667,Revenue,Rainbow Savers Anglia Credit Union Ltd,Grant-Third Party
Peterborough City Council,Education,Pupil Referral Unit,Energy Costs,14/03/2018,30169252,712.81,Revenue,British Gas Business,Electricity
Peterborough City Council,Education,Pupil Referral Unit,Energy Costs,14/03/2018,30169252,3819.09,Revenue,British Gas Business,Electricity
Peterborough City Council,Legal & Democratic,Legal Services,Agency Staff,14/03/2018,30169416,864.01,Revenue,Reed Specialist Recruitment Limited,External Temporary Staff
Peterborough City Council,Corporate Property,Office Accomodation,Agency Staff,14/03/2018,30169420,3277.56,Revenue,Reed Specialist Recruitment Limited,External Temporary Staff
Peterborough City Council,Commissioning and Commercial Operations,Commissioning Team,Agency Staff,14/03/2018,30169421,2243.6,Revenue,Reed Specialist Recruitment Limited,External Temporary Staff
Peterborough City Council,Adults,Finance,Agency Staff,14/03/2018,30169423,2953.6,Revenue,Reed Specialist Recruitment Limited,External Temporary Staff
Peterborough City Council,Adults,Finance,Agency Staff,14/03/2018,30169425,2433.6,Revenue,Reed Specialist Recruitment Limited,External Temporary Staff
Peterborough City Council,Financial Services,Finance,Agency Staff,14/03/2018,30169426,646.76,Revenue,Reed Specialist Recruitment Limited,External Temporary Staff
Peterborough City Council,Peterborough Highway Services,Transport & Infrastructure Commissioning,Services,14/03/2018,30169444,6443.98,Revenue,Stagecoach in Peterborough,Contractors
Peterborough City Council,Education,Special Educational Needs / Inclusion,Training Expenses,14/03/2018,30169446,635,Revenue,The University Of Birmingham,Training
Peterborough City Council,Education,Special Educational Needs / Inclusion,Training Expenses,14/03/2018,30169447,635,Revenue,The University Of Birmingham,Training
Peterborough City Council,"Director, OP & JV",Growth HoS,Third Party Payments,14/03/2018,30169508,2110840.32,Revenue,Skanska Construction UK Ltd,Third Party Payments - Contract
Peterborough City Council,Communities,Housing,Services,14/03/2018,30169554,553.02,Revenue,DA Rosalia Hotel,Homelessness Bed & Breakfast Costs
Peterborough City Council,Communities,Housing,Services,14/03/2018,30169556,909.96,Revenue,DA Rosalia Hotel,Homelessness Bed & Breakfast Costs
Peterborough City Council,Communities,Housing,Services,14/03/2018,30169557,561.44,Revenue,DA Rosalia Hotel,Homelessness Bed & Breakfast Costs
Peterborough City Council,Adults,Independent Sector Placements,Services,14/03/2018,30169575,506.65,Revenue,Maxey House Res Home,Residential Care
Peterborough City Council,Adults,Independent Sector Placements,Services,14/03/2018,30169595,2021.88,Revenue,PHILIA LODGE REST HOME,Residential Care
Peterborough City Council,Corporate,Corporate,Non Revenue,14/03/2018,30169605,13136,Capital,Casbon Building Services,Grant Payment
Peterborough City Council,Corporate,Corporate,Non Revenue,14/03/2018,30169611,1329.6,Capital,Warics Ltd,Grant Payment
Peterborough City Council,Corporate,Corporate,Non Revenue,14/03/2018,30169612,2021.33,Capital,Richards Property Refurbishments,Grant Payment
Peterborough City Council,Adults,Independent Sector Placements,Services,14/03/2018,30169626,2648,Revenue,PHILIA LODGE REST HOME,Residential Care
Peterborough City Council,Communities,Performance & Information,Agency Staff,14/03/2018,30169633,578.38,Revenue,Reed Specialist Recruitment Limited,External Temporary Staff
Peterborough City Council,Peterborough Highway Services,Highway Services - HoS,Agency Staff,14/03/2018,30169637,870.43,Revenue,Reed Specialist Recruitment Limited,External Temporary Staff
Peterborough City Council,Commissioning and Commercial Operations,Commissioning Team,Agency Staff,14/03/2018,30169639,1808.35,Revenue,Reed Specialist Recruitment Limited,External Temporary Staff
Peterborough City Council,Legal & Democratic,Legal Services,Agency Staff,14/03/2018,30169648,768,Revenue,Reed Specialist Recruitment Limited,External Temporary Staff
Peterborough City Council,Development and Construction,Development Management,Agency Staff,14/03/2018,30169649,1000.21,Revenue,Reed Specialist Recruitment Limited,External Temporary Staff
Peterborough City Council,Legal & Democratic,Legal Services,Agency Staff,14/03/2018,30169658,901.85,Revenue,Ten-Percent.co.uk Limited,External Temporary Staff
Peterborough City Council,Adults,Independent Sector Placements,Services,14/03/2018,30169665,1079.56,Revenue,Sanctuary Care Limited,Residential Care
Peterborough City Council,Adults,Independent Sector Placements,Services,14/03/2018,30169669,3963.76,Revenue,Fins Care Ltd t/a St Margarets Rest Home,Residential Care
Peterborough City Council,Adults,Independent Sector Placements,Services,14/03/2018,30169676,829.2,Revenue,GCH (North London) Ltd - Tudors,Residential Care
Peterborough City Council,Adults,Independent Sector Placements,Services,14/03/2018,30169678,1971.43,Revenue,GCH (North London) Ltd - Tudors,Residential Care
Peterborough City Council,Adults,Independent Sector Placements,Services,14/03/2018,30169684,-801.84,Revenue,GCH (North London) Ltd - Tudors,Residential Care
Peterborough City Council,Adults,Independent Sector Placements,Services,14/03/2018,30169686,3474.12,Revenue,PHILIA LODGE REST HOME,Residential Care
Peterborough City Council,Adults,Independent Sector Placements,Services,14/03/2018,30169689,881.44,Revenue,PHILIA LODGE REST HOME,Residential Care
Peterborough City Council,Children's & Safeguarding,Access to Resources & Specialist Commissioning,Services,14/03/2018,30169693,4824,Revenue,Youth Justice Board for England and Wales,Boarding Out Allowances
Peterborough City Council,Children's & Safeguarding,External Education Placements,Services,14/03/2018,30169694,2680,Revenue,Youth Justice Board for England and Wales,Boarding Out Allowances
Peterborough City Council,Adults,Independent Sector Placements,Services,14/03/2018,30169696,1811,Revenue,PHILIA LODGE REST HOME,Residential Care
Peterborough City Council,Adults,Independent Sector Placements,Services,14/03/2018,30169699,1990.2,Revenue,PHILIA LODGE REST HOME,Residential Care
Peterborough City Council,Adults,Independent Sector Placements,Services,14/03/2018,30169706,11021,Revenue,PHILIA LODGE REST HOME,Residential Care
Peterborough City Council,Adults,Independent Sector Placements,Services,14/03/2018,30169707,2686.2,Revenue,STAR RESIDENTIAL HOME LTD,Residential Care
Peterborough City Council,Adults,Independent Sector Placements,Services,14/03/2018,30169708,3224,Revenue,STAR RESIDENTIAL HOME LTD,Residential Care
Peterborough City Council,Adults,Independent Sector Placements,Services,14/03/2018,30169710,2877.07,Revenue,STAR RESIDENTIAL HOME LTD,Residential Care
Peterborough City Council,Adults,Independent Sector Placements,Services,14/03/2018,30169711,2600.8,Revenue,STAR RESIDENTIAL HOME LTD,Residential Care
Peterborough City Council,Adults,Independent Sector Placements,Services,14/03/2018,30169715,1062,Revenue,THE HELPING HANDS GROUP,Day Care
Peterborough City Council,Adults,Independent Sector Placements,Services,14/03/2018,30169717,2648,Revenue,PHILIA LODGE REST HOME,Residential Care
Peterborough City Council,Adults,Independent Sector Placements,Services,14/03/2018,30169718,1593,Revenue,THE HELPING HANDS GROUP,Day Care
Peterborough City Council,Adults,Independent Sector Placements,Services,14/03/2018,30169719,610,Revenue,THE HELPING HANDS GROUP,Day Care
Peterborough City Council,Adults,Independent Sector Placements,Services,14/03/2018,30169721,2648,Revenue,PHILIA LODGE REST HOME,Residential Care
Peterborough City Council,Adults,Independent Sector Placements,Services,14/03/2018,30169722,11021,Revenue,PHILIA LODGE REST HOME,Residential Care
Peterborough City Council,Adults,Independent Sector Placements,Services,14/03/2018,30169723,756,Revenue,THE HELPING HANDS GROUP,Day Care
Peterborough City Council,Adults,Independent Sector Placements,Services,14/03/2018,30169725,806,Revenue,STAR RESIDENTIAL HOME LTD,Residential Care
Peterborough City Council,Adults,Independent Sector Placements,Services,14/03/2018,30169726,663.75,Revenue,THE HELPING HANDS GROUP,Day Care
Peterborough City Council,Adults,Independent Sector Placements,Services,14/03/2018,30169727,756,Revenue,THE HELPING HANDS GROUP,Day Care
Peterborough City Council,Adults,Independent Sector Placements,Services,14/03/2018,30169729,1464,Revenue,THE HELPING HANDS GROUP,Day Care
Peterborough City Council,Adults,Independent Sector Placements,Services,14/03/2018,30169730,663.75,Revenue,THE HELPING HANDS GROUP,Day Care
Peterborough City Council,Adults,Independent Sector Placements,Services,14/03/2018,30169731,852.75,Revenue,THE HELPING HANDS GROUP,Day Care
Peterborough City Council,Adults,Independent Sector Placements,Services,14/03/2018,30169732,2302.5,Revenue,THE HELPING HANDS GROUP,Day Care
Peterborough City Council,Adults,Independent Sector Placements,Services,14/03/2018,30169733,1464,Revenue,THE HELPING HANDS GROUP,Day Care
Peterborough City Council,Adults,Independent Sector Placements,Services,14/03/2018,30169739,756,Revenue,THE HELPING HANDS GROUP,Day Care
Peterborough City Council,Adults,Independent Sector Placements,Services,14/03/2018,30169743,585.88,Revenue,THE HELPING HANDS GROUP,Day Care
Peterborough City Council,Adults,Independent Sector Placements,Services,14/03/2018,30169744,504,Revenue,THE HELPING HANDS GROUP,Day Care
Peterborough City Council,Adults,Independent Sector Placements,Services,14/03/2018,30169745,1464,Revenue,THE HELPING HANDS GROUP,Day Care
Peterborough City Council,Adults,Independent Sector Placements,Services,14/03/2018,30169746,1098,Revenue,THE HELPING HANDS GROUP,Day Care
Peterborough City Council,Adults,Independent Sector Placements,Services,14/03/2018,30169748,567,Revenue,THE HELPING HANDS GROUP,Day Care
Peterborough City Council,Adults,Independent Sector Placements,Services,14/03/2018,30169749,756,Revenue,THE HELPING HANDS GROUP,Day Care
Peterborough City Council,City Servs & Communications,"Markets, Tourism & Events",Services,14/03/2018,30169769,1526.39,Revenue,Cambridgeshire Constabulary,Conferences/Events
Peterborough City Council,Peterborough Highway Services,Transport & Infrastructure Commissioning,Services,14/03/2018,30169779,27500,Revenue,Sustrans Ltd,Hired Services
Peterborough City Council,Communities,Cohesion,Services,14/03/2018,30169788,10000,Revenue,P'Boro Council For Voluntary Srvs (PCVS),Hired Services
Peterborough City Council,Adults,Independent Sector Placements,Services,14/03/2018,30169804,1870.85,Revenue,Carewatch Care Services Ltd,Home Care
Peterborough City Council,Adults,Independent Sector Placements,Services,14/03/2018,30169805,1192.8,Revenue,Carewatch Care Services Ltd,Home Care
Peterborough City Council,Adults,Independent Sector Placements,Services,14/03/2018,30169813,646.1,Revenue,Carewatch Care Services Ltd,Home Care
Peterborough City Council,Adults,Independent Sector Placements,Services,14/03/2018,30169814,1107.6,Revenue,Carewatch Care Services Ltd,Home Care
Peterborough City Council,Adults,Independent Sector Placements,Services,14/03/2018,30169816,937.2,Revenue,Carewatch Care Services Ltd,Home Care
Peterborough City Council,Adults,Independent Sector Placements,Services,14/03/2018,30169817,1860.2,Revenue,Carewatch Care Services Ltd,Home Care
Peterborough City Council,Education,School Standards & Effectiveness,Rents,14/03/2018,30169818,2063.45,Revenue,Kingsgate Trading Ltd,Hire Of Premises
Peterborough City Council,Adults,Independent Sector Placements,Services,14/03/2018,30169820,1153.75,Revenue,Carewatch Care Services Ltd,Home Care
Peterborough City Council,Adults,Independent Sector Placements,Services,14/03/2018,30169823,923,Revenue,Carewatch Care Services Ltd,Home Care
Peterborough City Council,Adults,Independent Sector Placements,Services,14/03/2018,30169832,723.02,Revenue,Carewatch Care Services Ltd,Home Care
Peterborough City Council,Adults,Independent Sector Placements,Services,14/03/2018,30169839,660.3,Revenue,Carewatch Care Services Ltd,Home Care
Peterborough City Council,Adults,Independent Sector Placements,Services,14/03/2018,30169843,1278,Revenue,Carewatch Care Services Ltd,Home Care
Peterborough City Council,Adults,Day opportunities - Older People,Agency Staff,14/03/2018,30169857,2397.6,Revenue,Commercial Services Trading Limited,External Temporary Staff
Peterborough City Council,Communities,Housing,Services,14/03/2018,30169859,1395.68,Revenue,Redacted Personal Information,Financial Assistance
Peterborough City Council,Adults,Independent Sector Placements,Services,14/03/2018,30169862,844.9,Revenue,Carewatch Care Services Ltd,Home Care
Peterborough City Council,Communities,Housing,Services,14/03/2018,30169864,1000,Revenue,Redacted Personal Information,Financial Assistance
Peterborough City Council,Corporate,Corporate,Non Revenue,14/03/2018,30169867,452373.46,Balance Sheet,LGSS Cambridgeshire Pension Fund,Pensions
Peterborough City Council,Adults,Independent Sector Placements,Services,14/03/2018,30169868,781,Revenue,Carewatch Care Services Ltd,Home Care
Peterborough City Council,Adults,Independent Sector Placements,Services,14/03/2018,30169870,1611.7,Revenue,Carewatch Care Services Ltd,Home Care
Peterborough City Council,Corporate,Corporate,Non Revenue,14/03/2018,30169871,79483.84,Balance Sheet,LGSS Cambridgeshire Pension Fund,Pensions
Peterborough City Council,Adults,Independent Sector Placements,Services,14/03/2018,30169873,894.6,Revenue,Carewatch Care Services Ltd,Home Care
Peterborough City Council,Adults,Independent Sector Placements,Services,14/03/2018,30169874,956.13,Revenue,Carewatch Care Services Ltd,Home Care
Peterborough City Council,Adults,Independent Sector Placements,Services,14/03/2018,30169875,770.35,Revenue,Carewatch Care Services Ltd,Home Care
Peterborough City Council,Adults,Independent Sector Placements,Services,14/03/2018,30169877,809.4,Revenue,Carewatch Care Services Ltd,Home Care
Peterborough City Council,Corporate,Corporate,Non Revenue,14/03/2018,30169879,19219,Balance Sheet,LGSS Cambridgeshire Pension Fund,Pensions
Peterborough City Council,Adults,Independent Sector Placements,Services,14/03/2018,30169880,1104.05,Revenue,Carewatch Care Services Ltd,Home Care
Peterborough City Council,Adults,Independent Sector Placements,Services,14/03/2018,30169881,518.3,Revenue,Carewatch Care Services Ltd,Home Care
Peterborough City Council,Corporate,Corporate,Non Revenue,14/03/2018,30169882,184363.13,Balance Sheet,LGSS Cambridgeshire Pension Fund,Pensions
Peterborough City Council,Adults,Independent Sector Placements,Services,14/03/2018,30169884,710,Revenue,Carewatch Care Services Ltd,Home Care
Peterborough City Council,Corporate,Corporate,Non Revenue,14/03/2018,30169885,10192.64,Balance Sheet,NHS Pensions,Pensions
Peterborough City Council,Corporate,Corporate,Non Revenue,14/03/2018,30169888,5502.01,Balance Sheet,NHS Pensions,Pensions
Peterborough City Council,Adults,Independent Sector Placements,Services,14/03/2018,30169891,525.4,Revenue,Carewatch Care Services Ltd,Home Care
Peterborough City Council,Corporate,Corporate,Non Revenue,14/03/2018,30169894,1721.69,Balance Sheet,NHS Pensions,Pensions
Peterborough City Council,Corporate,Corporate,Non Revenue,14/03/2018,30169895,1151.13,Balance Sheet,NHS Pensions,Pensions
Peterborough City Council,Adults,Independent Sector Placements,Services,14/03/2018,30169901,1077.48,Revenue,ABBEY COURT PRIORY,Residential Care
Peterborough City Council,Adults,Independent Sector Placements,Services,14/03/2018,30169903,1077.48,Revenue,ABBEY COURT PRIORY,Residential Care
Peterborough City Council,Adults,Independent Sector Placements,Services,14/03/2018,30169905,13696.8,Revenue,CAMBIAN CARE SERVICES LIMITED,Residential Care
Peterborough City Council,Adults,Independent Sector Placements,Services,14/03/2018,30169912,3352.08,Revenue,Fins Care Ltd t/a St Margarets Rest Home,Residential Care
Peterborough City Council,Adults,Independent Sector Placements,Services,14/03/2018,30169914,5940.54,Revenue,Fins Care Ltd t/a St Margarets Rest Home,Residential Care
Peterborough City Council,Adults,Independent Sector Placements,Services,14/03/2018,30169915,3797.4,Revenue,Fins Care Ltd t/a St Margarets Rest Home,Residential Care
Peterborough City Council,Corporate,Corporate,Non Revenue,14/03/2018,30169932,-14489.23,Capital,Enterprise Managed Services Limited,Building And Site Works
Peterborough City Council,Peterborough Highway Services,Highway Mtce & Scheme Commissioning,Services,14/03/2018,30169939,7937.39,Revenue,MeteoGroup UK Ltd,Hired Services
Peterborough City Council,Corporate,Corporate,Non Revenue,14/03/2018,30169943,14489.23,Capital,Enterprise Managed Services Limited,Building And Site Works
Peterborough City Council,Corporate,Corporate,Non Revenue,14/03/2018,30169945,1180923.03,Balance Sheet,HM Revenues & Customs,Taxes
Peterborough City Council,Communities,Housing,Services,14/03/2018,30169966,736,Revenue,Axiom - Peterborough Foyer,Financial Assistance
Peterborough City Council,Adults,Block Contracts,Third Party Payments,14/03/2018,30169999,5329.02,Revenue,Axiom Housing Association Ltd,Third Party Payments - Contract
Peterborough City Council,Adults,Block Contracts,Third Party Payments,14/03/2018,30170002,1607.04,Revenue,Axiom Housing Association Ltd,Third Party Payments - Contract
Peterborough City Council,Adults,Block Contracts,Third Party Payments,14/03/2018,30170005,4360.25,Revenue,Axiom Housing Association Ltd,Third Party Payments - Contract
Peterborough City Council,Children's & Safeguarding,Commissioning - CSC,"Tools, Equipment, Furniture & Materials",14/03/2018,30170038,2895.84,Revenue,Sunrise Medical Limited,Occupational Therapy Equipment
Peterborough City Council,Children's & Safeguarding,Commissioning - CSC,"Tools, Equipment, Furniture & Materials",14/03/2018,30170039,2030.73,Revenue,Sunrise Medical Limited,Occupational Therapy Equipment
Peterborough City Council,Education,Financing - Resources,Services,14/03/2018,30170064,5588.1,Revenue,Sense,Education Expenses
Peterborough City Council,Adults,Home Services Delivery Model,Third Party Payments,14/03/2018,30170071,8259.09,Revenue,Cross Keys Homes,Grant-Third Party
Peterborough City Council,Adults,Strategic Commissioning - Management,Agency Staff,14/03/2018,30170084,6993,Revenue,Sanctuary Personnel Ltd,External Temporary Staff
Peterborough City Council,Adults,Strategic Commissioning - Management,Agency Staff,14/03/2018,30170088,2497.5,Revenue,Sanctuary Personnel Ltd,External Temporary Staff
Peterborough City Council,Adults,Strategic Commissioning - Management,Agency Staff,14/03/2018,30170090,9490.5,Revenue,Sanctuary Personnel Ltd,External Temporary Staff
Peterborough City Council,Communities,Cohesion,Third Party Payments,14/03/2018,30170092,105344,Revenue,Peterborough Citizens Advice Bureau,Grant-Third Party
Peterborough City Council,Adults,Strategic Commissioning - Management,Agency Staff,14/03/2018,30170097,2627,Revenue,Sanctuary Personnel Ltd,External Temporary Staff
Peterborough City Council,Adults,Strategic Commissioning - Management,Agency Staff,14/03/2018,30170110,2835,Revenue,Sanctuary Personnel Ltd,External Temporary Staff
Peterborough City Council,Adults,Strategic Commissioning - Management,Agency Staff,14/03/2018,30170113,5122.65,Revenue,Sanctuary Personnel Ltd,External Temporary Staff
Peterborough City Council,Amey Peterborough & Waste Management,Waste Management,Services,14/03/2018,30170125,6404.31,Revenue,Invixon Limited,Recycling
Peterborough City Council,Adults,Strategic Commissioning - Management,Agency Staff,14/03/2018,30170126,2627,Revenue,Sanctuary Personnel Ltd,External Temporary Staff
Peterborough City Council,Adults,Strategic Commissioning - Management,Agency Staff,14/03/2018,30170127,2975.8,Revenue,Sanctuary Personnel Ltd,External Temporary Staff
Peterborough City Council,Children's & Safeguarding,External Education Placements,Services,14/03/2018,30170138,2575,Revenue,Rigby Hall School,Education Expenses
Peterborough City Council,Children's & Safeguarding,External Education Placements,Services,14/03/2018,30170140,16080,Revenue,Youth Justice Board for England and Wales,Boarding Out Allowances
Peterborough City Council,Education,Financing - Resources,Services,14/03/2018,30170148,2462.84,Revenue,Sense,Education Expenses
Peterborough City Council,Adults,Therapy/Reablement/Community Equipment,"Tools, Equipment, Furniture & Materials",14/03/2018,30170162,796.49,Revenue,Action on Hearing Loss,Occupational Therapy Equipment
Peterborough City Council,Commissioning and Commercial Operations,Clare Lodge,Agency Staff,14/03/2018,30170167,803.16,Revenue,Reed Specialist Recruitment Limited,External Temporary Staff
Peterborough City Council,Westcombe Engineering,Westcombe Engineering,Repair & Maintenance of Buildings,14/03/2018,30170169,5798.13,Revenue,RMS Engineers LTD,Premises Maintenance
Peterborough City Council,Corporate,Corporate,Non Revenue,14/03/2018,30170189,860.16,Capital,Enterprise Managed Services Limited,Consultants Fees
Peterborough City Council,Corporate Property,Commercial Propety,Rents,14/03/2018,30170191,32735.97,Revenue,DVS Management Ltd,Rent
Peterborough City Council,Education,HTS & CSC Transport,Contract Hire and Operating Leases,14/03/2018,8000110650,962.32,Revenue,Peterborough Cars,Hired Transport
Peterborough City Council,Education,HTS & CSC Transport,Contract Hire and Operating Leases,14/03/2018,8000110651,896.74,Revenue,Peterborough Cars,Hired Transport
Peterborough City Council,Education,HTS & CSC Transport,Contract Hire and Operating Leases,14/03/2018,8000110652,1177.9,Revenue,Peterborough Cars,Hired Transport
Peterborough City Council,Education,HTS & CSC Transport,Contract Hire and Operating Leases,14/03/2018,8000110653,731.16,Revenue,Peterborough Cars,Hired Transport
Peterborough City Council,Education,HTS & CSC Transport,Contract Hire and Operating Leases,14/03/2018,8000110654,1062.32,Revenue,Peterborough Cars,Hired Transport
Peterborough City Council,Education,HTS & CSC Transport,Contract Hire and Operating Leases,14/03/2018,8000110655,1967.5,Revenue,Goldstar Cabs Ltd,Hired Transport
Peterborough City Council,Education,HTS & CSC Transport,Contract Hire and Operating Leases,14/03/2018,8000110656,1608.6,Revenue,Goldstar Cabs Ltd,Hired Transport
Peterborough City Council,Education,HTS & CSC Transport,Contract Hire and Operating Leases,14/03/2018,8000110657,2117.5,Revenue,Goldstar Cabs Ltd,Hired Transport
Peterborough City Council,Adults,Independent Sector Placements,Services,14/03/2018,8000110690,1574,Revenue,Redacted Personal Information,Adult Social Care Direct Payments
Peterborough City Council,Adults,Independent Sector Placements,Services,14/03/2018,8000110691,1547.56,Revenue,Redacted Personal Information,Adult Social Care Direct Payments
Peterborough City Council,Adults,Independent Sector Placements,Services,14/03/2018,8000110692,5017.8,Revenue,Redacted Personal Information,Adult Social Care Direct Payments
Peterborough City Council,Adults,Independent Sector Placements,Services,14/03/2018,8000110693,969.76,Revenue,Redacted Personal Information,Adult Social Care Direct Payments
Peterborough City Council,Adults,Independent Sector Placements,Services,14/03/2018,8000110694,1426.52,Revenue,Redacted Personal Information,Adult Social Care Direct Payments
Peterborough City Council,Adults,Independent Sector Placements,Services,14/03/2018,8000110696,1107.6,Revenue,Redacted Personal Information,Adult Social Care Direct Payments
Peterborough City Council,Adults,Independent Sector Placements,Services,14/03/2018,8000110697,795.56,Revenue,Redacted Personal Information,Adult Social Care Direct Payments
Peterborough City Council,Adults,Independent Sector Placements,Services,14/03/2018,8000110698,978.4,Revenue,Redacted Personal Information,Adult Social Care Direct Payments
Peterborough City Council,Adults,Independent Sector Placements,Services,14/03/2018,8000110702,2573.28,Revenue,Redacted Personal Information,Adult Social Care Direct Payments
Peterborough City Council,Adults,Independent Sector Placements,Services,14/03/2018,8000110703,899.04,Revenue,Redacted Personal Information,Adult Social Care Direct Payments
Peterborough City Council,Adults,Independent Sector Placements,Services,14/03/2018,8000110705,2673.2,Revenue,Redacted Personal Information,Adult Social Care Direct Payments
Peterborough City Council,Adults,Independent Sector Placements,Services,14/03/2018,8000110706,1440.8,Revenue,Redacted Personal Information,Adult Social Care Direct Payments
Peterborough City Council,Adults,Independent Sector Placements,Services,14/03/2018,8000110707,7151,Revenue,Redacted Personal Information,Adult Social Care Direct Payments
Peterborough City Council,Adults,Independent Sector Placements,Services,14/03/2018,8000110708,5819.2,Revenue,Redacted Personal Information,Adult Social Care Direct Payments
Peterborough City Council,Adults,Independent Sector Placements,Services,14/03/2018,8000110709,862.4,Revenue,Redacted Personal Information,Adult Social Care Direct Payments
Peterborough City Council,Adults,Independent Sector Placements,Services,14/03/2018,8000110710,5237.4,Revenue,Redacted Personal Information,Adult Social Care Direct Payments
Peterborough City Council,Adults,Independent Sector Placements,Services,14/03/2018,8000110712,8951.04,Revenue,Redacted Personal Information,Adult Social Care Direct Payments
Peterborough City Council,Adults,Independent Sector Placements,Services,14/03/2018,8000110713,585.4,Revenue,Redacted Personal Information,Adult Social Care Direct Payments
Peterborough City Council,Adults,Independent Sector Placements,Services,14/03/2018,8000110714,658.56,Revenue,Redacted Personal Information,Adult Social Care Direct Payments
Peterborough City Council,Adults,Independent Sector Placements,Services,14/03/2018,8000110715,2120.36,Revenue,Redacted Personal Information,Adult Social Care Direct Payments
Peterborough City Council,Adults,Independent Sector Placements,Services,14/03/2018,8000110716,7057.56,Revenue,Redacted Personal Information,Adult Social Care Direct Payments
Peterborough City Council,Adults,Independent Sector Placements,Services,14/03/2018,8000110717,2513.8,Revenue,Redacted Personal Information,Adult Social Care Direct Payments
Peterborough City Council,Adults,Independent Sector Placements,Services,14/03/2018,8000110718,1397.52,Revenue,Redacted Personal Information,Adult Social Care Direct Payments
Peterborough City Council,Adults,Independent Sector Placements,Services,14/03/2018,8000110720,2339.56,Revenue,Redacted Personal Information,Adult Social Care Direct Payments
Peterborough City Council,Adults,Independent Sector Placements,Services,14/03/2018,8000110721,1836.97,Revenue,Redacted Personal Information,Adult Social Care Direct Payments
Peterborough City Council,Adults,Independent Sector Placements,Services,14/03/2018,8000110722,1421.6,Revenue,Redacted Personal Information,Adult Social Care Direct Payments
Peterborough City Council,Adults,Independent Sector Placements,Services,14/03/2018,8000110723,1025.32,Revenue,Redacted Personal Information,Adult Social Care Direct Payments
Peterborough City Council,Adults,Independent Sector Placements,Services,14/03/2018,8000110724,1739.4,Revenue,Redacted Personal Information,Adult Social Care Direct Payments
Peterborough City Council,Adults,Independent Sector Placements,Services,14/03/2018,8000110725,1596.48,Revenue,Redacted Personal Information,Adult Social Care Direct Payments
Peterborough City Council,Adults,Independent Sector Placements,Services,14/03/2018,8000110726,2259.56,Revenue,Redacted Personal Information,Adult Social Care Direct Payments
Peterborough City Council,Adults,Independent Sector Placements,Services,14/03/2018,8000110727,5783.16,Revenue,Redacted Personal Information,Adult Social Care Direct Payments
Peterborough City Council,Adults,Independent Sector Placements,Services,14/03/2018,8000110728,2474,Revenue,Redacted Personal Information,Adult Social Care Direct Payments
Peterborough City Council,Adults,Independent Sector Placements,Services,14/03/2018,8000110729,1290.08,Revenue,Redacted Personal Information,Adult Social Care Direct Payments
Peterborough City Council,Adults,Independent Sector Placements,Services,14/03/2018,8000110730,2576.24,Revenue,Redacted Personal Information,Adult Social Care Direct Payments
Peterborough City Council,Adults,Independent Sector Placements,Services,14/03/2018,8000110732,1629.24,Revenue,Redacted Personal Information,Adult Social Care Direct Payments
Peterborough City Council,Adults,Independent Sector Placements,Services,14/03/2018,8000110733,906.68,Revenue,Redacted Personal Information,Adult Social Care Direct Payments
Peterborough City Council,Adults,Independent Sector Placements,Services,14/03/2018,8000110735,3045.6,Revenue,Redacted Personal Information,Adult Social Care Direct Payments
Peterborough City Council,Adults,Independent Sector Placements,Services,14/03/2018,8000110736,1355.56,Revenue,Redacted Personal Information,Adult Social Care Direct Payments
Peterborough City Council,Adults,Independent Sector Placements,Services,14/03/2018,8000110737,652.56,Revenue,Redacted Personal Information,Adult Social Care Direct Payments
Peterborough City Council,Adults,Independent Sector Placements,Services,14/03/2018,8000110738,1340.4,Revenue,Redacted Personal Information,Adult Social Care Direct Payments
Peterborough City Council,Adults,Independent Sector Placements,Services,14/03/2018,8000110739,1436,Revenue,Redacted Personal Information,Adult Social Care Direct Payments
Peterborough City Council,Adults,Independent Sector Placements,Services,14/03/2018,8000110740,1982.44,Revenue,Redacted Personal Information,Adult Social Care Direct Payments
Peterborough City Council,Adults,Independent Sector Placements,Services,14/03/2018,8000110741,2654.32,Revenue,Redacted Personal Information,Adult Social Care Direct Payments
Peterborough City Council,Adults,Independent Sector Placements,Services,14/03/2018,8000110742,3502.88,Revenue,Redacted Personal Information,Adult Social Care Direct Payments
Peterborough City Council,Adults,Independent Sector Placements,Services,14/03/2018,8000110743,1625,Revenue,Redacted Personal Information,Adult Social Care Direct Payments
Peterborough City Council,Adults,Independent Sector Placements,Services,14/03/2018,8000110744,2585.52,Revenue,Redacted Personal Information,Adult Social Care Direct Payments
Peterborough City Council,Adults,Independent Sector Placements,Services,14/03/2018,8000110745,2451.24,Revenue,Redacted Personal Information,Adult Social Care Direct Payments
Peterborough City Council,Adults,Independent Sector Placements,Services,14/03/2018,8000110748,503.36,Revenue,Redacted Personal Information,Adult Social Care Direct Payments
Peterborough City Council,Adults,Independent Sector Placements,Services,14/03/2018,8000110749,705.36,Revenue,Redacted Personal Information,Adult Social Care Direct Payments
Peterborough City Council,Adults,Independent Sector Placements,Services,14/03/2018,8000110750,648.08,Revenue,Redacted Personal Information,Adult Social Care Direct Payments
Peterborough City Council,Adults,Independent Sector Placements,Services,14/03/2018,8000110751,1533,Revenue,Redacted Personal Information,Adult Social Care Direct Payments
Peterborough City Council,Adults,Independent Sector Placements,Services,14/03/2018,8000110752,883.36,Revenue,Redacted Personal Information,Adult Social Care Direct Payments
Peterborough City Council,Adults,Independent Sector Placements,Services,14/03/2018,8000110754,1090.8,Revenue,Redacted Personal Information,Adult Social Care Direct Payments
Peterborough City Council,Adults,Independent Sector Placements,Services,14/03/2018,8000110755,2176,Revenue,Redacted Personal Information,Adult Social Care Direct Payments
Peterborough City Council,Adults,Independent Sector Placements,Services,14/03/2018,8000110756,1394.48,Revenue,Redacted Personal Information,Adult Social Care Direct Payments
Peterborough City Council,Adults,Independent Sector Placements,Services,14/03/2018,8000110758,1716.32,Revenue,Redacted Personal Information,Adult Social Care Direct Payments
Peterborough City Council,Adults,Independent Sector Placements,Services,14/03/2018,8000110759,537.44,Revenue,Redacted Personal Information,Adult Social Care Direct Payments
Peterborough City Council,Adults,Independent Sector Placements,Services,14/03/2018,8000110760,541.4,Revenue,Redacted Personal Information,Adult Social Care Direct Payments
Peterborough City Council,Adults,Independent Sector Placements,Services,14/03/2018,8000110762,1735.4,Revenue,Redacted Personal Information,Adult Social Care Direct Payments
Peterborough City Council,Adults,Independent Sector Placements,Services,14/03/2018,8000110765,530.84,Revenue,Redacted Personal Information,Adult Social Care Direct Payments
Peterborough City Council,Adults,Independent Sector Placements,Services,14/03/2018,8000110766,709.8,Revenue,Redacted Personal Information,Adult Social Care Direct Payments
Peterborough City Council,Adults,Independent Sector Placements,Services,14/03/2018,8000110767,1341.44,Revenue,Redacted Personal Information,Adult Social Care Direct Payments
Peterborough City Council,Adults,Independent Sector Placements,Services,14/03/2018,8000110770,1562,Revenue,Redacted Personal Information,Adult Social Care Direct Payments
Peterborough City Council,Adults,Independent Sector Placements,Services,14/03/2018,8000110771,555.6,Revenue,Redacted Personal Information,Adult Social Care Direct Payments
Peterborough City Council,Adults,Independent Sector Placements,Services,14/03/2018,8000110772,897.6,Revenue,Redacted Personal Information,Adult Social Care Direct Payments
Peterborough City Council,Adults,Independent Sector Placements,Services,14/03/2018,8000110774,2095.8,Revenue,Redacted Personal Information,Adult Social Care Direct Payments
Peterborough City Council,Adults,Independent Sector Placements,Services,14/03/2018,8000110775,760.88,Revenue,Redacted Personal Information,Adult Social Care Direct Payments
Peterborough City Council,Adults,Independent Sector Placements,Services,14/03/2018,8000110776,725.08,Revenue,Redacted Personal Information,Adult Social Care Direct Payments
Peterborough City Council,Adults,Independent Sector Placements,Services,14/03/2018,8000110777,890.48,Revenue,Redacted Personal Information,Adult Social Care Direct Payments
Peterborough City Council,Adults,Independent Sector Placements,Services,14/03/2018,8000110778,3222.56,Revenue,Redacted Personal Information,Adult Social Care Direct Payments
Peterborough City Council,Adults,Independent Sector Placements,Services,14/03/2018,8000110779,1904,Revenue,Redacted Personal Information,Adult Social Care Direct Payments
Peterborough City Council,Adults,Independent Sector Placements,Services,14/03/2018,8000110781,811.24,Revenue,Redacted Personal Information,Adult Social Care Direct Payments
Peterborough City Council,Adults,Independent Sector Placements,Services,14/03/2018,8000110784,2430.48,Revenue,Redacted Personal Information,Adult Social Care Direct Payments
Peterborough City Council,Adults,Independent Sector Placements,Services,14/03/2018,8000110785,1678.12,Revenue,Redacted Personal Information,Adult Social Care Direct Payments
Peterborough City Council,Adults,Independent Sector Placements,Services,14/03/2018,8000110786,733.36,Revenue,Redacted Personal Information,Adult Social Care Direct Payments
Peterborough City Council,Adults,Independent Sector Placements,Services,14/03/2018,8000110787,3800,Revenue,Redacted Personal Information,Adult Social Care Direct Payments
Peterborough City Council,Adults,Independent Sector Placements,Services,14/03/2018,8000110788,1553.44,Revenue,Redacted Personal Information,Adult Social Care Direct Payments
Peterborough City Council,Adults,Independent Sector Placements,Services,14/03/2018,8000110789,780.72,Revenue,Redacted Personal Information,Adult Social Care Direct Payments
Peterborough City Council,Adults,Independent Sector Placements,Services,14/03/2018,8000110790,1979.16,Revenue,Redacted Personal Information,Adult Social Care Direct Payments
Peterborough City Council,Adults,Independent Sector Placements,Services,14/03/2018,8000110791,5668.24,Revenue,Redacted Personal Information,Adult Social Care Direct Payments
Peterborough City Council,Adults,Independent Sector Placements,Services,14/03/2018,8000110792,1612.08,Revenue,Redacted Personal Information,Adult Social Care Direct Payments
Peterborough City Council,Adults,Independent Sector Placements,Services,14/03/2018,8000110793,4944.48,Revenue,Redacted Personal Information,Adult Social Care Direct Payments
Peterborough City Council,Adults,Independent Sector Placements,Services,14/03/2018,8000110794,5231.44,Revenue,Redacted Personal Information,Adult Social Care Direct Payments
Peterborough City Council,Adults,Independent Sector Placements,Services,14/03/2018,8000110795,6292.08,Revenue,Redacted Personal Information,Adult Social Care Direct Payments
Peterborough City Council,Adults,Independent Sector Placements,Services,14/03/2018,8000110796,1604.6,Revenue,Redacted Personal Information,Adult Social Care Direct Payments
Peterborough City Council,Adults,Independent Sector Placements,Services,14/03/2018,8000110799,7350.08,Revenue,Redacted Personal Information,Adult Social Care Direct Payments
Peterborough City Council,Adults,Independent Sector Placements,Services,14/03/2018,8000110801,3293.68,Revenue,Redacted Personal Information,Adult Social Care Direct Payments
Peterborough City Council,Adults,Independent Sector Placements,Services,14/03/2018,8000110802,952,Revenue,Redacted Personal Information,Adult Social Care Direct Payments
Peterborough City Council,Adults,Independent Sector Placements,Services,14/03/2018,8000110804,15421.08,Revenue,Redacted Personal Information,Adult Social Care Direct Payments
Peterborough City Council,Adults,Independent Sector Placements,Services,14/03/2018,8000110806,2608.68,Revenue,Redacted Personal Information,Adult Social Care Direct Payments
Peterborough City Council,Adults,Independent Sector Placements,Services,14/03/2018,8000110807,1748,Revenue,Redacted Personal Information,Adult Social Care Direct Payments
Peterborough City Council,Adults,Independent Sector Placements,Services,14/03/2018,8000110808,1416.64,Revenue,Redacted Personal Information,Adult Social Care Direct Payments
